{"text_format":"1","workbook":"xlsx","n_sheets":5,"sheets":["الرئيسية","البيانات الاساسية","جدول الامتحانات","الثانوية العامة","كشف الملاحظة"],"not_rendered":{"charts":0,"images":9,"macros":1,"external_links":1,"defined_names":16,"comments":0,"pivot_tables":0},"unopened":[],"bounds":{"document_bytes":16777216,"sheet_cells":100000,"rows_first":2000,"rows_last":500,"rows_between":2000,"halvings":0,"cell_chars":16384,"cell_head_chars":4096},"cells_cut":0,"cells_raw":0,"read":"whole","date_system":"1900"}

{"sheet":"الرئيسية","index":0,"n_rows":18,"n_cols":4,"rows_kept":18,"cut":false,"hidden":false,"merged":[[15,0,16,19],[17,0,21,19],[11,1,12,3],[0,3,6,15]]}
[null,null,null,"برنامج توزيع ملاحظة الثانوية"]
[]
[]
[]
[]
[]
[]
[]
[]
[]
[]
[null,"تصميم وتنفيذ  أ/ محمود عادل عيد  "]
[]
[]
[]
["https://www.facebook.com/M3id11"]
[]
[1066905051]

{"sheet":"البيانات الاساسية","index":1,"n_rows":316,"n_cols":37,"rows_kept":316,"cut":false,"hidden":false,"merged":[[12,27,13,27],[14,27,15,27],[21,27,22,27],[6,28,7,28],[6,29,7,29],[8,28,9,28],[8,29,9,29],[12,28,13,28],[12,29,13,29],[14,28,15,28],[14,29,15,29],[21,28,22,28],[21,29,22,29],[6,25,7,25],[6,26,7,26],[6,27,7,27],[8,27,9,27],[6,22,7,22],[6,23,7,23],[6,24,7,24],[8,26,9,26],[8,25,9,25],[8,24,9,24],[8,22,9,22],[8,23,9,23],[14,22,15,22],[14,23,15,23],[14,24,15,24],[14,25,15,25],[14,26,15,26],[12,22,13,22],[12,23,13,23],[12,24,13,24],[12,25,13,25],[12,26,13,26],[21,25,22,25],[21,26,22,26],[24,21,25,21],[19,21,20,21],[21,22,22,22],[21,23,22,23],[21,24,22,24]]}
[null,null,null,null,null,null,"ح"]
[null,"الامتحان","امتحانات إتمام الشهادة الثانوية العامة",null,"م","أسماء الملاحظين",null,null,null,"م","أسماء المراقبين",null,null,null,"م","العلوم","الرياضيات","الأدبية",null,null,null,"اليوم والتاريخ","الوقت",null,"زمن الإجابة","المادة","الشعبة","الوقت",null,"زمن الإجابة",null,"م","عدد الطلاب في اللجنة","بداية ارقام الجلوس","نهاية ارقام الجلوس","الشعبة"]
[null,"المحافظة"," محافطة الدقهلية",null,{"$f":"IF(ROW()-2<=$C$9,ROW()-2,\"\")","v":1},"ملاحظ 1",{"$f":"IFERROR(IF(F3=\"\",\"\",IF(MATCH(F3,'كشف الملاحظة'!$I$18:$I$77,0)>=0,\"\")),\"ح\")","v":"ح"},{"$f":"IF(G3=$G$1,E3,\"\")","v":1},null,{"$f":"IF(ROW()-2<=$C$10,ROW()-2,\"\")","v":1},"مراقب 1",null,null,null,1,{"$f":"$Z$3","v":"التربية الدينية"},{"$f":"$Z$3","v":"التربية الدينية"},{"$f":"$Z$3","v":"التربية الدينية"},{"$f":"'جدول الامتحانات'!J3","v":"اليوم الأول -الفترة الأولى"},{"$f":"V4","v":"2022-06-21"},1,{"$f":"'جدول الامتحانات'!A3","v":"الثلاثاء"},{"$f":"'جدول الامتحانات'!B3","v":9},{"$f":"'جدول الامتحانات'!C3","v":10.3},{"$f":"'جدول الامتحانات'!D3","v":"ساعة ونصف"},{"$f":"'جدول الامتحانات'!E3","v":"التربية الدينية"},{"$f":"'جدول الامتحانات'!F3","v":"العامة"},{"$f":"'جدول الامتحانات'!G3","v":9},{"$f":"'جدول الامتحانات'!H3","v":10.3},{"$f":"'جدول الامتحانات'!I3","v":"ساعة ونصف"},"علمي علوم",{"$f":"IF(ROW()-2<=$C$8,ROW()-2,\"\")","v":1},{"$f":"C12","v":20},{"$f":"IF(AG3=\"\",\"\",C13)","v":100},{"$f":"IF(AG3=\"\",\"\",AG3+AH3)","v":120},"علمي علوم",{"$f":"AF3","v":1}]
[null,"الإدارة","ادارة شربين التعليمية",null,{"$f":"IF(ROW()-2<=$C$9,ROW()-2,\"\")","v":2},"ملاحظ 2",{"$f":"IFERROR(IF(F4=\"\",\"\",IF(MATCH(F4,'كشف الملاحظة'!$I$18:$I$77,0)>=0,\"\")),\"ح\")","v":"ح"},{"$f":"IF(G4=$G$1,E4,\"\")","v":2},null,{"$f":"IF(ROW()-2<=$C$10,ROW()-2,\"\")","v":2},"مراقب 2",null,null,null,2,{"$f":"$Z$4","v":"التربية الوطنية"},{"$f":"$Z$4","v":"التربية الوطنية"},{"$f":"$Z$4","v":"التربية الوطنية"},{"$f":"'جدول الامتحانات'!J4","v":"اليوم الأول -الفترة الثانية"},{"$f":"V4","v":"2022-06-21"},2,{"$f":"'جدول الامتحانات'!A4","v":"2022-06-21"},{"$f":"'جدول الامتحانات'!B4","v":9},{"$f":"'جدول الامتحانات'!C4","v":12.3},{"$f":"'جدول الامتحانات'!D4","v":"ساعة ونصف"},{"$f":"'جدول الامتحانات'!E4","v":"التربية الوطنية"},{"$f":"'جدول الامتحانات'!F4","v":"العامة"},{"$f":"'جدول الامتحانات'!G4","v":9},{"$f":"'جدول الامتحانات'!H4","v":12.3},{"$f":"'جدول الامتحانات'!I4","v":"ساعة ونصف"},"علمي رياضيات",{"$f":"IF(ROW()-2<=$C$8,ROW()-2,\"\")","v":2},20,{"$f":"IF(AG4=\"\",\"\",IF(AG4=\"\",\"\",AI3+$AF$3))","v":121},{"$f":"IF(AH4=\"\",\"\",AH4+AG4-1)","v":140},"علمي علوم",{"$f":"AF4","v":2}]
[null,"رقم اللجنة","لجنة رقم 500",null,3,"ملاحظ 3",{"$f":"IFERROR(IF(F5=\"\",\"\",IF(MATCH(F5,'كشف الملاحظة'!$I$18:$I$77,0)>=0,\"\")),\"ح\")","v":"ح"},3,null,"",null,null,null,null,3,{"$f":"$Z$5","v":"الاقتصاد"},{"$f":"$Z$5","v":"الاقتصاد"},{"$f":"$Z$5","v":"الاقتصاد"},{"$f":"'جدول الامتحانات'!J5","v":"اليوم الثاني -الفترة الأولى"},{"$f":"V6","v":"2022-06-22"},3,{"$f":"'جدول الامتحانات'!A5","v":"الأربعاء"},{"$f":"'جدول الامتحانات'!B5","v":9},{"$f":"'جدول الامتحانات'!C5","v":10.3},{"$f":"'جدول الامتحانات'!D5","v":"ساعة ونصف"},{"$f":"'جدول الامتحانات'!E5","v":"الاقتصاد"},{"$f":"'جدول الامتحانات'!F5","v":"العامة"},{"$f":"'جدول الامتحانات'!G5","v":9},{"$f":"'جدول الامتحانات'!H5","v":10.3},{"$f":"'جدول الامتحانات'!I5","v":"ساعة ونصف"},"الأدبية",3,20,{"$f":"IF(AG5=\"\",\"\",IF(AG5=\"\",\"\",AI4+$AF$3))","v":141},{"$f":"IF(AH5=\"\",\"\",AH5+AG5-1)","v":160},"علمي رياضيات",3]
[null,"رئيس اللجنة","أ/ محمود",null,4,"ملاحظ 4",{"$f":"IFERROR(IF(F6=\"\",\"\",IF(MATCH(F6,'كشف الملاحظة'!$I$18:$I$77,0)>=0,\"\")),\"ح\")","v":"ح"},4,null,"",null,null,null,null,4,{"$f":"$Z$6","v":"الإحصاء"},{"$f":"$Z$6","v":"الإحصاء"},{"$f":"$Z$6","v":"الإحصاء"},{"$f":"'جدول الامتحانات'!J6","v":"اليوم الثاني -الفترة الثانية"},{"$f":"V6","v":"2022-06-22"},4,{"$f":"'جدول الامتحانات'!A6","v":"2022-06-22"},{"$f":"'جدول الامتحانات'!B6","v":9},{"$f":"'جدول الامتحانات'!C6","v":12.3},{"$f":"'جدول الامتحانات'!D6","v":"ساعة ونصف"},{"$f":"'جدول الامتحانات'!E6","v":"الإحصاء"},{"$f":"'جدول الامتحانات'!F6","v":"العامة"},{"$f":"'جدول الامتحانات'!G6","v":9},{"$f":"'جدول الامتحانات'!H6","v":12.3},{"$f":"'جدول الامتحانات'!I6","v":"ساعة ونصف"},"علمي علوم",4,20,161,180,"علمي علوم",4]
[null,"المراقب الأول","أ/ محمود",null,5,"ملاحظ 5",{"$f":"IFERROR(IF(F7=\"\",\"\",IF(MATCH(F7,'كشف الملاحظة'!$I$18:$I$77,0)>=0,\"\")),\"ح\")","v":"ح"},5,null,"",null,null,null,null,5,{"$f":"$Z$7","v":"اللغة العربية"},{"$f":"$Z$7","v":"اللغة العربية"},{"$f":"$Z$7","v":"اللغة العربية"},{"$f":"'جدول الامتحانات'!J7:J8","v":"اليوم الثالث"},{"$f":"V8","v":"2022-06-26"},5,{"$f":"'جدول الامتحانات'!A7","v":"الأحد"},{"$f":"'جدول الامتحانات'!B7:B8","v":9},{"$f":"'جدول الامتحانات'!C7:C8","v":12},{"$f":"'جدول الامتحانات'!D7:D8","v":"ثلاث ساعات"},{"$f":"'جدول الامتحانات'!E7:E8","v":"اللغة العربية"},{"$f":"'جدول الامتحانات'!F7:F8","v":"العامة"},{"$f":"'جدول الامتحانات'!G7:G8","v":9},{"$f":"'جدول الامتحانات'!H7:H8","v":12},{"$f":"'جدول الامتحانات'!I7:I8","v":"ثلاث ساعات"},null,5,20,181,200,"الأدبية",5]
[null,"عدد اللجان",5,null,6,"ملاحظ 6",{"$f":"IFERROR(IF(F8=\"\",\"\",IF(MATCH(F8,'كشف الملاحظة'!$I$18:$I$77,0)>=0,\"\")),\"ح\")","v":"ح"},6,null,"",null,null,null,null,6,{"$f":"$Z$9","v":"اللغة الأجنبية الثانية"},{"$f":"$Z$9","v":"اللغة الأجنبية الثانية"},{"$f":"$Z$9","v":"اللغة الأجنبية الثانية"},{"$f":"'جدول الامتحانات'!J9","v":"اليوم الرابع"},{"$f":"V10","v":"2022-06-28"},5,{"$f":"'جدول الامتحانات'!A8","v":"2022-06-26"},null,null,null,null,null,null,null,null,null,"",null,null,null,null,""]
[null,"عدد الملاحظين",10,null,7,"ملاحظ 7",{"$f":"IFERROR(IF(F9=\"\",\"\",IF(MATCH(F9,'كشف الملاحظة'!$I$18:$I$77,0)>=0,\"\")),\"ح\")","v":"ح"},7,null,"",null,null,null,null,7,{"$f":"$Z$11","v":"الكيمياء"},{"$f":"$Z$11","v":"الكيمياء"},{"$f":"Z12","v":"الجغرافيا"},{"$f":"'جدول الامتحانات'!J11","v":"اليوم الخامس"},{"$f":"V12","v":"2022-07-03"},6,{"$f":"'جدول الامتحانات'!A9","v":"الثلاثاء"},{"$f":"'جدول الامتحانات'!B9:B10","v":9},{"$f":"'جدول الامتحانات'!C9:C10","v":11},{"$f":"'جدول الامتحانات'!D9:D10","v":"ساعتان"},{"$f":"'جدول الامتحانات'!E9:E10","v":"اللغة الأجنبية الثانية"},{"$f":"'جدول الامتحانات'!F9:F10","v":"العامة"},{"$f":"'جدول الامتحانات'!G9:G10","v":9},{"$f":"'جدول الامتحانات'!H9:H10","v":11},{"$f":"'جدول الامتحانات'!I9:I10","v":"ساعتان"},null,"",null,null,null,null,""]
[null,"عدد المراقبين",2,null,8,"ملاحظ 8",{"$f":"IFERROR(IF(F10=\"\",\"\",IF(MATCH(F10,'كشف الملاحظة'!$I$18:$I$77,0)>=0,\"\")),\"ح\")","v":"ح"},8,null,"",null,null,null,null,8,null,{"$f":"Z13","v":"الرياضيات التطبيقية (الديناميكا)"},null,{"$f":"'جدول الامتحانات'!J13","v":"اليوم السادس"},{"$f":"V14","v":"2022-07-05"},6,{"$f":"'جدول الامتحانات'!A10","v":"2022-06-28"},null,null,null,null,null,null,null,null,null,"",null,null,null,null,""]
[null,"العام الدراسي","2022/2021",null,9,"ملاحظ 9",{"$f":"IFERROR(IF(F11=\"\",\"\",IF(MATCH(F11,'كشف الملاحظة'!$I$18:$I$77,0)>=0,\"\")),\"ح\")","v":"ح"},9,null,"",null,null,null,null,9,{"$f":"$Z$15","v":"اللغة الأجنبية الاولي"},{"$f":"$Z$15","v":"اللغة الأجنبية الاولي"},{"$f":"$Z$15","v":"اللغة الأجنبية الاولي"},{"$f":"'جدول الامتحانات'!J15","v":"اليوم السابع"},{"$f":"V16","v":"2022-07-07"},7,{"$f":"'جدول الامتحانات'!A11","v":"الأحد"},{"$f":"'جدول الامتحانات'!B11","v":9},{"$f":"'جدول الامتحانات'!C11","v":12},{"$f":"'جدول الامتحانات'!D11","v":"ثلاث ساعات"},{"$f":"'جدول الامتحانات'!E11","v":"الكيمياء"},{"$f":"'جدول الامتحانات'!F11","v":"العلو م والرياضبات"},{"$f":"'جدول الامتحانات'!G11","v":9},{"$f":"'جدول الامتحانات'!H11","v":12},{"$f":"'جدول الامتحانات'!I11","v":"ثلاث ساعات"},null,"",null,null,null,null,""]
[null,"عدد الطلاب في اللجنة",20,null,10,"ملاحظ 10",{"$f":"IFERROR(IF(F12=\"\",\"\",IF(MATCH(F12,'كشف الملاحظة'!$I$18:$I$77,0)>=0,\"\")),\"ح\")","v":"ح"},10,null,"",null,null,null,null,10,{"$f":"$Z$17","v":"الفيزياء"},{"$f":"$Z$17","v":"الفيزياء"},{"$f":"Z18","v":"التاريخ"},{"$f":"'جدول الامتحانات'!J17","v":"اليوم الثامن"},{"$f":"V18","v":"2022-07-14"},7,{"$f":"'جدول الامتحانات'!A12","v":"2022-07-03"},{"$f":"'جدول الامتحانات'!B12","v":9},{"$f":"'جدول الامتحانات'!C12","v":12},{"$f":"'جدول الامتحانات'!D12","v":"ثلاث ساعات"},{"$f":"'جدول الامتحانات'!E12","v":"الجغرافيا"},{"$f":"'جدول الامتحانات'!F12","v":"الأدبية"},{"$f":"'جدول الامتحانات'!G12","v":9},{"$f":"'جدول الامتحانات'!H12","v":12},{"$f":"'جدول الامتحانات'!I12","v":"ثلاث ساعات"},null,"",null,null,null,null,""]
[null,"بداية ارقام الجلوس",100,null,"",null,{"$f":"IFERROR(IF(F13=\"\",\"\",IF(MATCH(F13,'كشف الملاحظة'!$I$18:$I$77,0)>=0,\"\")),\"ح\")","v":""},"",null,"",null,null,null,null,11,{"$f":"Z19","v":"الجيولوجيا والعلوم البيئية"},{"$f":"Z20","v":"الرياضيات البحتة (تفاضل وتكامل)"},{"$f":"Z21","v":"علم النفس والاجتماع"},{"$f":"'جدول الامتحانات'!J19","v":"اليوم التاسع"},{"$f":"V20","v":"2022-07-17"},8,{"$f":"'جدول الامتحانات'!A13","v":"الثلاثاء"},{"$f":"'جدول الامتحانات'!B13:B14","v":9},{"$f":"'جدول الامتحانات'!C13:C14","v":11},{"$f":"'جدول الامتحانات'!D13:D14","v":"ساعتان"},{"$f":"'جدول الامتحانات'!E13:E14","v":"الرياضيات التطبيقية (الديناميكا)"},{"$f":"'جدول الامتحانات'!F13:F14","v":"الرياضيات"},{"$f":"'جدول الامتحانات'!G13:G14","v":9},{"$f":"'جدول الامتحانات'!H13:H14","v":11},{"$f":"'جدول الامتحانات'!I13:I14","v":"ساعتان"},null,"",null,null,null,null,""]
[null,null,null,null,"",null,{"$f":"IFERROR(IF(F14=\"\",\"\",IF(MATCH(F14,'كشف الملاحظة'!$I$18:$I$77,0)>=0,\"\")),\"ح\")","v":""},"",null,"",null,null,null,null,12,null,"الرياضيات البحتة جبر وهندسة فراغية )",null,{"$f":"'جدول الامتحانات'!J22","v":"اليوم العاشر"},{"$f":"V23","v":"2022-07-19"},8,{"$f":"'جدول الامتحانات'!A14","v":"2022-07-05"},null,null,null,null,null,null,null,null,null,"",null,null,null,null,""]
[null,null,null,null,"",null,{"$f":"IFERROR(IF(F15=\"\",\"\",IF(MATCH(F15,'كشف الملاحظة'!$I$18:$I$77,0)>=0,\"\")),\"ح\")","v":""},"",null,"",null,null,null,null,13,{"$f":"Z24","v":"الاحياء"},{"$f":"Z25","v":"الرياضيات التطبيقية (الاستاتيكا)"},{"$f":"Z26","v":"الفلسقة والمنطق"},{"$f":"'جدول الامتحانات'!J24","v":"اليوم الحادي عشر"},{"$f":"V25","v":"2022-07-21"},9,{"$f":"'جدول الامتحانات'!A15","v":"الخميس"},{"$f":"'جدول الامتحانات'!B15:B16","v":9},{"$f":"'جدول الامتحانات'!C15:C16","v":12},{"$f":"'جدول الامتحانات'!D15:D16","v":"ثلاث ساعات"},{"$f":"'جدول الامتحانات'!E15:E16","v":"اللغة الأجنبية الاولي"},{"$f":"'جدول الامتحانات'!F15:F16","v":"العامة"},{"$f":"'جدول الامتحانات'!G15:G16","v":9},{"$f":"'جدول الامتحانات'!H15:H16","v":12},{"$f":"'جدول الامتحانات'!I15:I16","v":"ثلاث ساعات"},null,"",null,null,null,null,""]
[null,null,null,null,"",null,{"$f":"IFERROR(IF(F16=\"\",\"\",IF(MATCH(F16,'كشف الملاحظة'!$I$18:$I$77,0)>=0,\"\")),\"ح\")","v":""},"",null,"",null,null,null,null,null,null,null,null,null,null,9,{"$f":"'جدول الامتحانات'!A16","v":"2022-07-07"},null,null,null,null,null,null,null,null,null,"",null,null,null,null,""]
[null,null,null,null,"",null,{"$f":"IFERROR(IF(F17=\"\",\"\",IF(MATCH(F17,'كشف الملاحظة'!$I$18:$I$77,0)>=0,\"\")),\"ح\")","v":""},"",null,"",null,null,null,null,null,null,null,null,null,null,10,{"$f":"'جدول الامتحانات'!A17","v":"الخميس"},{"$f":"'جدول الامتحانات'!B17","v":9},{"$f":"'جدول الامتحانات'!C17","v":12},{"$f":"'جدول الامتحانات'!D17","v":"ثلاث ساعات"},{"$f":"'جدول الامتحانات'!E17","v":"الفيزياء"},{"$f":"'جدول الامتحانات'!F17","v":"العلوم والرياضيات"},{"$f":"'جدول الامتحانات'!G17","v":9},{"$f":"'جدول الامتحانات'!H17","v":12},{"$f":"'جدول الامتحانات'!I17","v":"ثلاث ساعات"},null,"",null,null,null,null,""]
[null,null,null,null,"",null,{"$f":"IFERROR(IF(F18=\"\",\"\",IF(MATCH(F18,'كشف الملاحظة'!$I$18:$I$77,0)>=0,\"\")),\"ح\")","v":""},"",null,"",null,null,null,null,null,null,null,null,null,null,10,{"$f":"'جدول الامتحانات'!A18","v":"2022-07-14"},{"$f":"'جدول الامتحانات'!B18","v":9},{"$f":"'جدول الامتحانات'!C18","v":12},{"$f":"'جدول الامتحانات'!D18","v":"ثلاث ساعات"},{"$f":"'جدول الامتحانات'!E18","v":"التاريخ"},{"$f":"'جدول الامتحانات'!F18","v":"الأدبية"},{"$f":"'جدول الامتحانات'!G18","v":9},{"$f":"'جدول الامتحانات'!H18","v":12},{"$f":"'جدول الامتحانات'!I18","v":"ثلاث ساعات"},null,"",null,null,null,null,""]
[null,null,null,null,"",null,{"$f":"IFERROR(IF(F19=\"\",\"\",IF(MATCH(F19,'كشف الملاحظة'!$I$18:$I$77,0)>=0,\"\")),\"ح\")","v":""},"",null,"",null,null,null,null,null,null,null,null,null,null,11,{"$f":"'جدول الامتحانات'!A19","v":"الأحد"},{"$f":"'جدول الامتحانات'!B19","v":9},{"$f":"'جدول الامتحانات'!C19","v":12},{"$f":"'جدول الامتحانات'!D19","v":"ثلاث ساعات"},{"$f":"'جدول الامتحانات'!E19","v":"الجيولوجيا والعلوم البيئية"},{"$f":"'جدول الامتحانات'!F19","v":"العلوم"},{"$f":"'جدول الامتحانات'!G19","v":9},{"$f":"'جدول الامتحانات'!H19","v":12},{"$f":"'جدول الامتحانات'!I19","v":"ثلاث ساعات"},null,"",null,null,null,null,""]
[null,null,null,null,"",null,{"$f":"IFERROR(IF(F20=\"\",\"\",IF(MATCH(F20,'كشف الملاحظة'!$I$18:$I$77,0)>=0,\"\")),\"ح\")","v":""},"",null,"",null,null,null,null,null,null,null,null,null,null,11,{"$f":"'جدول الامتحانات'!A20","v":"2022-07-17"},{"$f":"'جدول الامتحانات'!B20","v":9},{"$f":"'جدول الامتحانات'!C20","v":11},{"$f":"'جدول الامتحانات'!D20","v":"ساعتان"},{"$f":"'جدول الامتحانات'!E20","v":"الرياضيات البحتة (تفاضل وتكامل)"},{"$f":"'جدول الامتحانات'!F20","v":"الرياضيات"},{"$f":"'جدول الامتحانات'!G20","v":9},{"$f":"'جدول الامتحانات'!H20","v":11},{"$f":"'جدول الامتحانات'!I20","v":"ساعتان"},null,"",null,null,null,null,""]
[null,null,null,null,"",null,{"$f":"IFERROR(IF(F21=\"\",\"\",IF(MATCH(F21,'كشف الملاحظة'!$I$18:$I$77,0)>=0,\"\")),\"ح\")","v":""},"",null,"",null,null,null,null,null,null,null,null,null,null,11,null,{"$f":"'جدول الامتحانات'!B21","v":9},{"$f":"'جدول الامتحانات'!C21","v":12},{"$f":"'جدول الامتحانات'!D21","v":"ثلاث ساعات"},{"$f":"'جدول الامتحانات'!E21","v":"علم النفس والاجتماع"},{"$f":"'جدول الامتحانات'!F21","v":"الأدبية"},{"$f":"'جدول الامتحانات'!G21","v":9},{"$f":"'جدول الامتحانات'!H21","v":12},{"$f":"'جدول الامتحانات'!I21","v":"ثلاث ساعات"},null,"",null,null,null,null,""]
[null,null,null,null,"",null,{"$f":"IFERROR(IF(F22=\"\",\"\",IF(MATCH(F22,'كشف الملاحظة'!$I$18:$I$77,0)>=0,\"\")),\"ح\")","v":""},"",null,"",null,null,null,null,null,null,null,null,null,null,12,{"$f":"'جدول الامتحانات'!A22","v":"الثلاثاء"},{"$f":"'جدول الامتحانات'!B22:B23","v":9},{"$f":"'جدول الامتحانات'!C22:C23","v":11},{"$f":"'جدول الامتحانات'!D22:D23","v":"ساعتان"},{"$f":"'جدول الامتحانات'!E22:E23","v":"الرياضيات البحتة جبر وهندسة فراغية )"},{"$f":"'جدول الامتحانات'!F22:F23","v":"الرياضيات"},{"$f":"'جدول الامتحانات'!G22:G23","v":9},{"$f":"'جدول الامتحانات'!H22:H23","v":11},{"$f":"'جدول الامتحانات'!I22:I23","v":"ساعتان"},null,"",null,null,null,null,""]
[null,null,null,null,"",null,{"$f":"IFERROR(IF(F23=\"\",\"\",IF(MATCH(F23,'كشف الملاحظة'!$I$18:$I$77,0)>=0,\"\")),\"ح\")","v":""},"",null,"",null,null,null,null,null,null,null,null,null,null,12,{"$f":"'جدول الامتحانات'!A23","v":"2022-07-19"},null,null,null,null,null,null,null,null,null,"",null,null,null,null,""]
[null,null,null,null,"",null,{"$f":"IFERROR(IF(F24=\"\",\"\",IF(MATCH(F24,'كشف الملاحظة'!$I$18:$I$77,0)>=0,\"\")),\"ح\")","v":""},"",null,"",null,null,null,null,null,null,null,null,null,null,13,{"$f":"'جدول الامتحانات'!A24","v":"الخميس"},{"$f":"'جدول الامتحانات'!B24","v":9},{"$f":"'جدول الامتحانات'!C24","v":12},{"$f":"'جدول الامتحانات'!D24","v":"ثلاث ساعات"},{"$f":"'جدول الامتحانات'!E24","v":"الاحياء"},{"$f":"'جدول الامتحانات'!F24","v":"العلوم"},{"$f":"'جدول الامتحانات'!G24","v":9},{"$f":"'جدول الامتحانات'!H24","v":12},{"$f":"'جدول الامتحانات'!I24","v":"ثلاث ساعات"},null,"",null,null,null,null,""]
[null,null,null,null,"",null,{"$f":"IFERROR(IF(F25=\"\",\"\",IF(MATCH(F25,'كشف الملاحظة'!$I$18:$I$77,0)>=0,\"\")),\"ح\")","v":""},"",null,"",null,null,null,null,null,null,null,null,null,null,13,{"$f":"'جدول الامتحانات'!A25:A26","v":"2022-07-21"},{"$f":"'جدول الامتحانات'!B25","v":9},{"$f":"'جدول الامتحانات'!C25","v":11},{"$f":"'جدول الامتحانات'!D25","v":"ساعتان"},{"$f":"'جدول الامتحانات'!E25","v":"الرياضيات التطبيقية (الاستاتيكا)"},{"$f":"'جدول الامتحانات'!F25","v":"الرياضيات"},{"$f":"'جدول الامتحانات'!G25","v":9},{"$f":"'جدول الامتحانات'!H25","v":11},{"$f":"'جدول الامتحانات'!I25","v":"ساعتان"},null,"",null,"","",null,""]
[null,null,null,null,"",null,{"$f":"IFERROR(IF(F26=\"\",\"\",IF(MATCH(F26,'كشف الملاحظة'!$I$18:$I$77,0)>=0,\"\")),\"ح\")","v":""},"",null,null,null,null,null,null,null,null,null,null,null,null,13,null,{"$f":"'جدول الامتحانات'!B26","v":9},{"$f":"'جدول الامتحانات'!C26","v":12},{"$f":"'جدول الامتحانات'!D26","v":"ثلاث ساعات"},{"$f":"'جدول الامتحانات'!E26","v":"الفلسقة والمنطق"},{"$f":"'جدول الامتحانات'!F26","v":"الأدبية"},{"$f":"'جدول الامتحانات'!G26","v":9},{"$f":"'جدول الامتحانات'!H26","v":12},{"$f":"'جدول الامتحانات'!I26","v":"ثلاث ساعات"},null,"",null,"","",null,""]
[null,null,null,null,"",null,{"$f":"IFERROR(IF(F27=\"\",\"\",IF(MATCH(F27,'كشف الملاحظة'!$I$18:$I$77,0)>=0,\"\")),\"ح\")","v":""},"",null,null,null,null,null,null,null,null,null,null,null,null,null,null,null,null,null,null,null,null,null,null,null,"",null,"","",null,""]
[null,null,null,null,"",null,{"$f":"IFERROR(IF(F28=\"\",\"\",IF(MATCH(F28,'كشف الملاحظة'!$I$18:$I$77,0)>=0,\"\")),\"ح\")","v":""},"",null,null,null,null,null,null,null,null,null,null,null,null,null,null,null,null,null,null,null,null,null,null,null,"",null,"","",null,""]
[null,null,null,null,"",null,{"$f":"IFERROR(IF(F29=\"\",\"\",IF(MATCH(F29,'كشف الملاحظة'!$I$18:$I$77,0)>=0,\"\")),\"ح\")","v":""},"",null,null,null,null,null,null,null,null,null,null,null,null,null,null,null,null,null,null,null,null,null,null,null,"",null,"","",null,""]
[null,null,null,null,"",null,{"$f":"IFERROR(IF(F30=\"\",\"\",IF(MATCH(F30,'كشف الملاحظة'!$I$18:$I$77,0)>=0,\"\")),\"ح\")","v":""},"",null,null,null,null,null,null,null,null,null,null,null,null,null,null,null,null,null,null,null,null,null,null,null,"",null,"","",null,""]
[null,null,null,null,"",null,{"$f":"IFERROR(IF(F31=\"\",\"\",IF(MATCH(F31,'كشف الملاحظة'!$I$18:$I$77,0)>=0,\"\")),\"ح\")","v":""},"",null,null,null,null,null,null,null,null,null,null,null,null,null,null,null,null,null,null,null,null,null,null,null,"",null,"","",null,""]
[null,null,null,null,"",null,{"$f":"IFERROR(IF(F32=\"\",\"\",IF(MATCH(F32,'كشف الملاحظة'!$I$18:$I$77,0)>=0,\"\")),\"ح\")","v":""},"",null,null,null,null,null,null,null,null,null,null,null,null,null,null,null,null,null,null,null,null,null,null,null,"",null,"","",null,""]
[null,null,null,null,"",null,{"$f":"IFERROR(IF(F33=\"\",\"\",IF(MATCH(F33,'كشف الملاحظة'!$I$18:$I$77,0)>=0,\"\")),\"ح\")","v":""},""]
[null,null,null,null,"",null,{"$f":"IFERROR(IF(F34=\"\",\"\",IF(MATCH(F34,'كشف الملاحظة'!$I$18:$I$77,0)>=0,\"\")),\"ح\")","v":""},""]
[null,null,null,null,"",null,{"$f":"IFERROR(IF(F35=\"\",\"\",IF(MATCH(F35,'كشف الملاحظة'!$I$18:$I$77,0)>=0,\"\")),\"ح\")","v":""},""]
[null,null,null,null,"",null,{"$f":"IFERROR(IF(F36=\"\",\"\",IF(MATCH(F36,'كشف الملاحظة'!$I$18:$I$77,0)>=0,\"\")),\"ح\")","v":""},""]
[null,null,null,null,"",null,{"$f":"IFERROR(IF(F37=\"\",\"\",IF(MATCH(F37,'كشف الملاحظة'!$I$18:$I$77,0)>=0,\"\")),\"ح\")","v":""},""]
[null,null,null,null,"",null,{"$f":"IFERROR(IF(F38=\"\",\"\",IF(MATCH(F38,'كشف الملاحظة'!$I$18:$I$77,0)>=0,\"\")),\"ح\")","v":""},""]
[null,null,null,null,"",null,{"$f":"IFERROR(IF(F39=\"\",\"\",IF(MATCH(F39,'كشف الملاحظة'!$I$18:$I$77,0)>=0,\"\")),\"ح\")","v":""},""]
[null,null,null,null,"",null,{"$f":"IFERROR(IF(F40=\"\",\"\",IF(MATCH(F40,'كشف الملاحظة'!$I$18:$I$77,0)>=0,\"\")),\"ح\")","v":""},""]
[null,null,null,null,"",null,{"$f":"IFERROR(IF(F41=\"\",\"\",IF(MATCH(F41,'كشف الملاحظة'!$I$18:$I$77,0)>=0,\"\")),\"ح\")","v":""},""]
[null,null,null,null,"",null,{"$f":"IFERROR(IF(F42=\"\",\"\",IF(MATCH(F42,'كشف الملاحظة'!$I$18:$I$77,0)>=0,\"\")),\"ح\")","v":""},""]
[null,null,null,null,"",null,{"$f":"IFERROR(IF(F43=\"\",\"\",IF(MATCH(F43,'كشف الملاحظة'!$I$18:$I$77,0)>=0,\"\")),\"ح\")","v":""},""]
[null,null,null,null,"",null,{"$f":"IFERROR(IF(F44=\"\",\"\",IF(MATCH(F44,'كشف الملاحظة'!$I$18:$I$77,0)>=0,\"\")),\"ح\")","v":""},""]
[null,null,null,null,"",null,{"$f":"IFERROR(IF(F45=\"\",\"\",IF(MATCH(F45,'كشف الملاحظة'!$I$18:$I$77,0)>=0,\"\")),\"ح\")","v":""},""]
[null,null,null,null,"",null,{"$f":"IFERROR(IF(F46=\"\",\"\",IF(MATCH(F46,'كشف الملاحظة'!$I$18:$I$77,0)>=0,\"\")),\"ح\")","v":""},""]
[null,null,null,null,"",null,{"$f":"IFERROR(IF(F47=\"\",\"\",IF(MATCH(F47,'كشف الملاحظة'!$I$18:$I$77,0)>=0,\"\")),\"ح\")","v":""},""]
[null,null,null,null,"",null,{"$f":"IFERROR(IF(F48=\"\",\"\",IF(MATCH(F48,'كشف الملاحظة'!$I$18:$I$77,0)>=0,\"\")),\"ح\")","v":""},""]
[null,null,null,null,"",null,{"$f":"IFERROR(IF(F49=\"\",\"\",IF(MATCH(F49,'كشف الملاحظة'!$I$18:$I$77,0)>=0,\"\")),\"ح\")","v":""},""]
[null,null,null,null,"",null,{"$f":"IFERROR(IF(F50=\"\",\"\",IF(MATCH(F50,'كشف الملاحظة'!$I$18:$I$77,0)>=0,\"\")),\"ح\")","v":""},""]
[null,null,null,null,"",null,{"$f":"IFERROR(IF(F51=\"\",\"\",IF(MATCH(F51,'كشف الملاحظة'!$I$18:$I$77,0)>=0,\"\")),\"ح\")","v":""},""]
[null,null,null,null,"",null,{"$f":"IFERROR(IF(F52=\"\",\"\",IF(MATCH(F52,'كشف الملاحظة'!$I$18:$I$77,0)>=0,\"\")),\"ح\")","v":""},""]
[null,null,null,null,"",null,{"$f":"IFERROR(IF(F53=\"\",\"\",IF(MATCH(F53,'كشف الملاحظة'!$I$18:$I$77,0)>=0,\"\")),\"ح\")","v":""},""]
[null,null,null,null,"",null,{"$f":"IFERROR(IF(F54=\"\",\"\",IF(MATCH(F54,'كشف الملاحظة'!$I$18:$I$77,0)>=0,\"\")),\"ح\")","v":""},""]
[null,null,null,null,"",null,{"$f":"IFERROR(IF(F55=\"\",\"\",IF(MATCH(F55,'كشف الملاحظة'!$I$18:$I$77,0)>=0,\"\")),\"ح\")","v":""},""]
[null,null,null,null,"",null,{"$f":"IFERROR(IF(F56=\"\",\"\",IF(MATCH(F56,'كشف الملاحظة'!$I$18:$I$77,0)>=0,\"\")),\"ح\")","v":""},""]
[null,null,null,null,"",null,{"$f":"IFERROR(IF(F57=\"\",\"\",IF(MATCH(F57,'كشف الملاحظة'!$I$18:$I$77,0)>=0,\"\")),\"ح\")","v":""},""]
[null,null,null,null,"",null,{"$f":"IFERROR(IF(F58=\"\",\"\",IF(MATCH(F58,'كشف الملاحظة'!$I$18:$I$77,0)>=0,\"\")),\"ح\")","v":""},""]
[null,null,null,null,"",null,{"$f":"IFERROR(IF(F59=\"\",\"\",IF(MATCH(F59,'كشف الملاحظة'!$I$18:$I$77,0)>=0,\"\")),\"ح\")","v":""},""]
[null,null,null,null,"",null,{"$f":"IFERROR(IF(F60=\"\",\"\",IF(MATCH(F60,'كشف الملاحظة'!$I$18:$I$77,0)>=0,\"\")),\"ح\")","v":""},""]
[null,null,null,null,"",null,{"$f":"IFERROR(IF(F61=\"\",\"\",IF(MATCH(F61,'كشف الملاحظة'!$I$18:$I$77,0)>=0,\"\")),\"ح\")","v":""},""]
[null,null,null,null,"",null,{"$f":"IFERROR(IF(F62=\"\",\"\",IF(MATCH(F62,'كشف الملاحظة'!$I$18:$I$77,0)>=0,\"\")),\"ح\")","v":""},""]
[null,null,null,null,"",null,{"$f":"IFERROR(IF(F63=\"\",\"\",IF(MATCH(F63,'كشف الملاحظة'!$I$18:$I$77,0)>=0,\"\")),\"ح\")","v":""},""]
[null,null,null,null,"",null,{"$f":"IFERROR(IF(F64=\"\",\"\",IF(MATCH(F64,'كشف الملاحظة'!$I$18:$I$77,0)>=0,\"\")),\"ح\")","v":""},""]
[null,null,null,null,"",null,{"$f":"IFERROR(IF(F65=\"\",\"\",IF(MATCH(F65,'كشف الملاحظة'!$I$18:$I$77,0)>=0,\"\")),\"ح\")","v":""},""]
[null,null,null,null,"",null,{"$f":"IFERROR(IF(F66=\"\",\"\",IF(MATCH(F66,'كشف الملاحظة'!$I$18:$I$77,0)>=0,\"\")),\"ح\")","v":""},""]
[null,null,null,null,"",null,{"$f":"IFERROR(IF(F67=\"\",\"\",IF(MATCH(F67,'كشف الملاحظة'!$I$18:$I$77,0)>=0,\"\")),\"ح\")","v":""},""]
[null,null,null,null,{"$f":"IF(ROW()-2<=$C$9,ROW()-2,\"\")","v":""},null,{"$f":"IFERROR(IF(F68=\"\",\"\",IF(MATCH(F68,'كشف الملاحظة'!$I$18:$I$77,0)>=0,\"\")),\"ح\")","v":""},{"$f":"IF(G68=$G$1,E68,\"\")","v":""}]
[null,null,null,null,"",null,{"$f":"IFERROR(IF(F69=\"\",\"\",IF(MATCH(F69,'كشف الملاحظة'!$I$18:$I$77,0)>=0,\"\")),\"ح\")","v":""},""]
[null,null,null,null,"",null,{"$f":"IFERROR(IF(F70=\"\",\"\",IF(MATCH(F70,'كشف الملاحظة'!$I$18:$I$77,0)>=0,\"\")),\"ح\")","v":""},""]
[null,null,null,null,"",null,{"$f":"IFERROR(IF(F71=\"\",\"\",IF(MATCH(F71,'كشف الملاحظة'!$I$18:$I$77,0)>=0,\"\")),\"ح\")","v":""},""]
[null,null,null,null,"",null,{"$f":"IFERROR(IF(F72=\"\",\"\",IF(MATCH(F72,'كشف الملاحظة'!$I$18:$I$77,0)>=0,\"\")),\"ح\")","v":""},""]
[null,null,null,null,"",null,{"$f":"IFERROR(IF(F73=\"\",\"\",IF(MATCH(F73,'كشف الملاحظة'!$I$18:$I$77,0)>=0,\"\")),\"ح\")","v":""},""]
[null,null,null,null,"",null,{"$f":"IFERROR(IF(F74=\"\",\"\",IF(MATCH(F74,'كشف الملاحظة'!$I$18:$I$77,0)>=0,\"\")),\"ح\")","v":""},""]
[null,null,null,null,"",null,{"$f":"IFERROR(IF(F75=\"\",\"\",IF(MATCH(F75,'كشف الملاحظة'!$I$18:$I$77,0)>=0,\"\")),\"ح\")","v":""},""]
[null,null,null,null,"",null,{"$f":"IFERROR(IF(F76=\"\",\"\",IF(MATCH(F76,'كشف الملاحظة'!$I$18:$I$77,0)>=0,\"\")),\"ح\")","v":""},""]
[null,null,null,null,"",null,{"$f":"IFERROR(IF(F77=\"\",\"\",IF(MATCH(F77,'كشف الملاحظة'!$I$18:$I$77,0)>=0,\"\")),\"ح\")","v":""},""]
[null,null,null,null,"",null,{"$f":"IFERROR(IF(F78=\"\",\"\",IF(MATCH(F78,'كشف الملاحظة'!$I$18:$I$77,0)>=0,\"\")),\"ح\")","v":""},""]
[null,null,null,null,"",null,{"$f":"IFERROR(IF(F79=\"\",\"\",IF(MATCH(F79,'كشف الملاحظة'!$I$18:$I$77,0)>=0,\"\")),\"ح\")","v":""},""]
[null,null,null,null,"",null,{"$f":"IFERROR(IF(F80=\"\",\"\",IF(MATCH(F80,'كشف الملاحظة'!$I$18:$I$77,0)>=0,\"\")),\"ح\")","v":""},""]
[null,null,null,null,"",null,{"$f":"IFERROR(IF(F81=\"\",\"\",IF(MATCH(F81,'كشف الملاحظة'!$I$18:$I$77,0)>=0,\"\")),\"ح\")","v":""},""]
[null,null,null,null,"",null,{"$f":"IFERROR(IF(F82=\"\",\"\",IF(MATCH(F82,'كشف الملاحظة'!$I$18:$I$77,0)>=0,\"\")),\"ح\")","v":""},""]
[null,null,null,null,"",null,{"$f":"IFERROR(IF(F83=\"\",\"\",IF(MATCH(F83,'كشف الملاحظة'!$I$18:$I$77,0)>=0,\"\")),\"ح\")","v":""},""]
[null,null,null,null,"",null,{"$f":"IFERROR(IF(F84=\"\",\"\",IF(MATCH(F84,'كشف الملاحظة'!$I$18:$I$77,0)>=0,\"\")),\"ح\")","v":""},""]
[null,null,null,null,"",null,{"$f":"IFERROR(IF(F85=\"\",\"\",IF(MATCH(F85,'كشف الملاحظة'!$I$18:$I$77,0)>=0,\"\")),\"ح\")","v":""},""]
[null,null,null,null,"",null,{"$f":"IFERROR(IF(F86=\"\",\"\",IF(MATCH(F86,'كشف الملاحظة'!$I$18:$I$77,0)>=0,\"\")),\"ح\")","v":""},""]
[null,null,null,null,"",null,{"$f":"IFERROR(IF(F87=\"\",\"\",IF(MATCH(F87,'كشف الملاحظة'!$I$18:$I$77,0)>=0,\"\")),\"ح\")","v":""},""]
[null,null,null,null,"",null,{"$f":"IFERROR(IF(F88=\"\",\"\",IF(MATCH(F88,'كشف الملاحظة'!$I$18:$I$77,0)>=0,\"\")),\"ح\")","v":""},""]
[null,null,null,null,"",null,{"$f":"IFERROR(IF(F89=\"\",\"\",IF(MATCH(F89,'كشف الملاحظة'!$I$18:$I$77,0)>=0,\"\")),\"ح\")","v":""},""]
[null,null,null,null,"",null,{"$f":"IFERROR(IF(F90=\"\",\"\",IF(MATCH(F90,'كشف الملاحظة'!$I$18:$I$77,0)>=0,\"\")),\"ح\")","v":""},""]
[null,null,null,null,"",null,{"$f":"IFERROR(IF(F91=\"\",\"\",IF(MATCH(F91,'كشف الملاحظة'!$I$18:$I$77,0)>=0,\"\")),\"ح\")","v":""},""]
[null,null,null,null,"",null,{"$f":"IFERROR(IF(F92=\"\",\"\",IF(MATCH(F92,'كشف الملاحظة'!$I$18:$I$77,0)>=0,\"\")),\"ح\")","v":""},""]
[null,null,null,null,"",null,{"$f":"IFERROR(IF(F93=\"\",\"\",IF(MATCH(F93,'كشف الملاحظة'!$I$18:$I$77,0)>=0,\"\")),\"ح\")","v":""},""]
[null,null,null,null,"",null,{"$f":"IFERROR(IF(F94=\"\",\"\",IF(MATCH(F94,'كشف الملاحظة'!$I$18:$I$77,0)>=0,\"\")),\"ح\")","v":""},""]
[null,null,null,null,"",null,{"$f":"IFERROR(IF(F95=\"\",\"\",IF(MATCH(F95,'كشف الملاحظة'!$I$18:$I$77,0)>=0,\"\")),\"ح\")","v":""},""]
[null,null,null,null,"",null,{"$f":"IFERROR(IF(F96=\"\",\"\",IF(MATCH(F96,'كشف الملاحظة'!$I$18:$I$77,0)>=0,\"\")),\"ح\")","v":""},""]
[null,null,null,null,"",null,{"$f":"IFERROR(IF(F97=\"\",\"\",IF(MATCH(F97,'كشف الملاحظة'!$I$18:$I$77,0)>=0,\"\")),\"ح\")","v":""},""]
[null,null,null,null,"",null,{"$f":"IFERROR(IF(F98=\"\",\"\",IF(MATCH(F98,'كشف الملاحظة'!$I$18:$I$77,0)>=0,\"\")),\"ح\")","v":""},""]
[null,null,null,null,"",null,{"$f":"IFERROR(IF(F99=\"\",\"\",IF(MATCH(F99,'كشف الملاحظة'!$I$18:$I$77,0)>=0,\"\")),\"ح\")","v":""},""]
[null,null,null,null,"",null,{"$f":"IFERROR(IF(F100=\"\",\"\",IF(MATCH(F100,'كشف الملاحظة'!$I$18:$I$77,0)>=0,\"\")),\"ح\")","v":""},""]
[null,null,null,null,"",null,{"$f":"IFERROR(IF(F101=\"\",\"\",IF(MATCH(F101,'كشف الملاحظة'!$I$18:$I$77,0)>=0,\"\")),\"ح\")","v":""},""]
[null,null,null,null,"",null,{"$f":"IFERROR(IF(F102=\"\",\"\",IF(MATCH(F102,'كشف الملاحظة'!$I$18:$I$77,0)>=0,\"\")),\"ح\")","v":""},""]
[null,null,null,null,"",null,{"$f":"IFERROR(IF(F103=\"\",\"\",IF(MATCH(F103,'كشف الملاحظة'!$I$18:$I$77,0)>=0,\"\")),\"ح\")","v":""},""]
[null,null,null,null,"",null,{"$f":"IFERROR(IF(F104=\"\",\"\",IF(MATCH(F104,'كشف الملاحظة'!$I$18:$I$77,0)>=0,\"\")),\"ح\")","v":""},""]
[null,null,null,null,"",null,{"$f":"IFERROR(IF(F105=\"\",\"\",IF(MATCH(F105,'كشف الملاحظة'!$I$18:$I$77,0)>=0,\"\")),\"ح\")","v":""},""]
[null,null,null,null,"",null,{"$f":"IFERROR(IF(F106=\"\",\"\",IF(MATCH(F106,'كشف الملاحظة'!$I$18:$I$77,0)>=0,\"\")),\"ح\")","v":""},""]
[null,null,null,null,"",null,{"$f":"IFERROR(IF(F107=\"\",\"\",IF(MATCH(F107,'كشف الملاحظة'!$I$18:$I$77,0)>=0,\"\")),\"ح\")","v":""},""]
[null,null,null,null,"",null,{"$f":"IFERROR(IF(F108=\"\",\"\",IF(MATCH(F108,'كشف الملاحظة'!$I$18:$I$77,0)>=0,\"\")),\"ح\")","v":""},""]
[null,null,null,null,"",null,{"$f":"IFERROR(IF(F109=\"\",\"\",IF(MATCH(F109,'كشف الملاحظة'!$I$18:$I$77,0)>=0,\"\")),\"ح\")","v":""},""]
[null,null,null,null,"",null,{"$f":"IFERROR(IF(F110=\"\",\"\",IF(MATCH(F110,'كشف الملاحظة'!$I$18:$I$77,0)>=0,\"\")),\"ح\")","v":""},""]
[null,null,null,null,"",null,{"$f":"IFERROR(IF(F111=\"\",\"\",IF(MATCH(F111,'كشف الملاحظة'!$I$18:$I$77,0)>=0,\"\")),\"ح\")","v":""},""]
[null,null,null,null,"",null,{"$f":"IFERROR(IF(F112=\"\",\"\",IF(MATCH(F112,'كشف الملاحظة'!$I$18:$I$77,0)>=0,\"\")),\"ح\")","v":""},""]
[null,null,null,null,"",null,{"$f":"IFERROR(IF(F113=\"\",\"\",IF(MATCH(F113,'كشف الملاحظة'!$I$18:$I$77,0)>=0,\"\")),\"ح\")","v":""},""]
[null,null,null,null,"",null,{"$f":"IFERROR(IF(F114=\"\",\"\",IF(MATCH(F114,'كشف الملاحظة'!$I$18:$I$77,0)>=0,\"\")),\"ح\")","v":""},""]
[null,null,null,null,"",null,{"$f":"IFERROR(IF(F115=\"\",\"\",IF(MATCH(F115,'كشف الملاحظة'!$I$18:$I$77,0)>=0,\"\")),\"ح\")","v":""},""]
[null,null,null,null,"",null,{"$f":"IFERROR(IF(F116=\"\",\"\",IF(MATCH(F116,'كشف الملاحظة'!$I$18:$I$77,0)>=0,\"\")),\"ح\")","v":""},""]
[null,null,null,null,"",null,{"$f":"IFERROR(IF(F117=\"\",\"\",IF(MATCH(F117,'كشف الملاحظة'!$I$18:$I$77,0)>=0,\"\")),\"ح\")","v":""},""]
[null,null,null,null,"",null,{"$f":"IFERROR(IF(F118=\"\",\"\",IF(MATCH(F118,'كشف الملاحظة'!$I$18:$I$77,0)>=0,\"\")),\"ح\")","v":""},""]
[null,null,null,null,"",null,{"$f":"IFERROR(IF(F119=\"\",\"\",IF(MATCH(F119,'كشف الملاحظة'!$I$18:$I$77,0)>=0,\"\")),\"ح\")","v":""},""]
[null,null,null,null,"",null,{"$f":"IFERROR(IF(F120=\"\",\"\",IF(MATCH(F120,'كشف الملاحظة'!$I$18:$I$77,0)>=0,\"\")),\"ح\")","v":""},""]
[null,null,null,null,"",null,{"$f":"IFERROR(IF(F121=\"\",\"\",IF(MATCH(F121,'كشف الملاحظة'!$I$18:$I$77,0)>=0,\"\")),\"ح\")","v":""},""]
[null,null,null,null,"",null,{"$f":"IFERROR(IF(F122=\"\",\"\",IF(MATCH(F122,'كشف الملاحظة'!$I$18:$I$77,0)>=0,\"\")),\"ح\")","v":""},""]
[null,null,null,null,"",null,{"$f":"IFERROR(IF(F123=\"\",\"\",IF(MATCH(F123,'كشف الملاحظة'!$I$18:$I$77,0)>=0,\"\")),\"ح\")","v":""},""]
[null,null,null,null,"",null,{"$f":"IFERROR(IF(F124=\"\",\"\",IF(MATCH(F124,'كشف الملاحظة'!$I$18:$I$77,0)>=0,\"\")),\"ح\")","v":""},""]
[null,null,null,null,"",null,{"$f":"IFERROR(IF(F125=\"\",\"\",IF(MATCH(F125,'كشف الملاحظة'!$I$18:$I$77,0)>=0,\"\")),\"ح\")","v":""},""]
[null,null,null,null,"",null,{"$f":"IFERROR(IF(F126=\"\",\"\",IF(MATCH(F126,'كشف الملاحظة'!$I$18:$I$77,0)>=0,\"\")),\"ح\")","v":""},""]
[null,null,null,null,"",null,{"$f":"IFERROR(IF(F127=\"\",\"\",IF(MATCH(F127,'كشف الملاحظة'!$I$18:$I$77,0)>=0,\"\")),\"ح\")","v":""},""]
[null,null,null,null,"",null,{"$f":"IFERROR(IF(F128=\"\",\"\",IF(MATCH(F128,'كشف الملاحظة'!$I$18:$I$77,0)>=0,\"\")),\"ح\")","v":""},""]
[null,null,null,null,"",null,{"$f":"IFERROR(IF(F129=\"\",\"\",IF(MATCH(F129,'كشف الملاحظة'!$I$18:$I$77,0)>=0,\"\")),\"ح\")","v":""},""]
[null,null,null,null,"",null,{"$f":"IFERROR(IF(F130=\"\",\"\",IF(MATCH(F130,'كشف الملاحظة'!$I$18:$I$77,0)>=0,\"\")),\"ح\")","v":""},""]
[null,null,null,null,"",null,{"$f":"IFERROR(IF(F131=\"\",\"\",IF(MATCH(F131,'كشف الملاحظة'!$I$18:$I$77,0)>=0,\"\")),\"ح\")","v":""},""]
[null,null,null,null,{"$f":"IF(ROW()-2<=$C$9,ROW()-2,\"\")","v":""},null,{"$f":"IFERROR(IF(F132=\"\",\"\",IF(MATCH(F132,'كشف الملاحظة'!$I$18:$I$77,0)>=0,\"\")),\"ح\")","v":""},{"$f":"IF(G132=$G$1,E132,\"\")","v":""}]
[null,null,null,null,"",null,{"$f":"IFERROR(IF(F133=\"\",\"\",IF(MATCH(F133,'كشف الملاحظة'!$I$18:$I$77,0)>=0,\"\")),\"ح\")","v":""},""]
[null,null,null,null,"",null,{"$f":"IFERROR(IF(F134=\"\",\"\",IF(MATCH(F134,'كشف الملاحظة'!$I$18:$I$77,0)>=0,\"\")),\"ح\")","v":""},""]
[null,null,null,null,"",null,{"$f":"IFERROR(IF(F135=\"\",\"\",IF(MATCH(F135,'كشف الملاحظة'!$I$18:$I$77,0)>=0,\"\")),\"ح\")","v":""},""]
[null,null,null,null,"",null,{"$f":"IFERROR(IF(F136=\"\",\"\",IF(MATCH(F136,'كشف الملاحظة'!$I$18:$I$77,0)>=0,\"\")),\"ح\")","v":""},""]
[null,null,null,null,"",null,{"$f":"IFERROR(IF(F137=\"\",\"\",IF(MATCH(F137,'كشف الملاحظة'!$I$18:$I$77,0)>=0,\"\")),\"ح\")","v":""},""]
[null,null,null,null,"",null,{"$f":"IFERROR(IF(F138=\"\",\"\",IF(MATCH(F138,'كشف الملاحظة'!$I$18:$I$77,0)>=0,\"\")),\"ح\")","v":""},""]
[null,null,null,null,"",null,{"$f":"IFERROR(IF(F139=\"\",\"\",IF(MATCH(F139,'كشف الملاحظة'!$I$18:$I$77,0)>=0,\"\")),\"ح\")","v":""},""]
[null,null,null,null,"",null,{"$f":"IFERROR(IF(F140=\"\",\"\",IF(MATCH(F140,'كشف الملاحظة'!$I$18:$I$77,0)>=0,\"\")),\"ح\")","v":""},""]
[null,null,null,null,"",null,{"$f":"IFERROR(IF(F141=\"\",\"\",IF(MATCH(F141,'كشف الملاحظة'!$I$18:$I$77,0)>=0,\"\")),\"ح\")","v":""},""]
[null,null,null,null,"",null,{"$f":"IFERROR(IF(F142=\"\",\"\",IF(MATCH(F142,'كشف الملاحظة'!$I$18:$I$77,0)>=0,\"\")),\"ح\")","v":""},""]
[null,null,null,null,"",null,{"$f":"IFERROR(IF(F143=\"\",\"\",IF(MATCH(F143,'كشف الملاحظة'!$I$18:$I$77,0)>=0,\"\")),\"ح\")","v":""},""]
[null,null,null,null,"",null,{"$f":"IFERROR(IF(F144=\"\",\"\",IF(MATCH(F144,'كشف الملاحظة'!$I$18:$I$77,0)>=0,\"\")),\"ح\")","v":""},""]
[null,null,null,null,"",null,{"$f":"IFERROR(IF(F145=\"\",\"\",IF(MATCH(F145,'كشف الملاحظة'!$I$18:$I$77,0)>=0,\"\")),\"ح\")","v":""},""]
[null,null,null,null,"",null,{"$f":"IFERROR(IF(F146=\"\",\"\",IF(MATCH(F146,'كشف الملاحظة'!$I$18:$I$77,0)>=0,\"\")),\"ح\")","v":""},""]
[null,null,null,null,"",null,{"$f":"IFERROR(IF(F147=\"\",\"\",IF(MATCH(F147,'كشف الملاحظة'!$I$18:$I$77,0)>=0,\"\")),\"ح\")","v":""},""]
[null,null,null,null,"",null,{"$f":"IFERROR(IF(F148=\"\",\"\",IF(MATCH(F148,'كشف الملاحظة'!$I$18:$I$77,0)>=0,\"\")),\"ح\")","v":""},""]
[null,null,null,null,"",null,{"$f":"IFERROR(IF(F149=\"\",\"\",IF(MATCH(F149,'كشف الملاحظة'!$I$18:$I$77,0)>=0,\"\")),\"ح\")","v":""},""]
[null,null,null,null,"",null,{"$f":"IFERROR(IF(F150=\"\",\"\",IF(MATCH(F150,'كشف الملاحظة'!$I$18:$I$77,0)>=0,\"\")),\"ح\")","v":""},""]
[null,null,null,null,"",null,{"$f":"IFERROR(IF(F151=\"\",\"\",IF(MATCH(F151,'كشف الملاحظة'!$I$18:$I$77,0)>=0,\"\")),\"ح\")","v":""},""]
[null,null,null,null,"",null,{"$f":"IFERROR(IF(F152=\"\",\"\",IF(MATCH(F152,'كشف الملاحظة'!$I$18:$I$77,0)>=0,\"\")),\"ح\")","v":""},""]
[null,null,null,null,"",null,{"$f":"IFERROR(IF(F153=\"\",\"\",IF(MATCH(F153,'كشف الملاحظة'!$I$18:$I$77,0)>=0,\"\")),\"ح\")","v":""},""]
[null,null,null,null,"",null,{"$f":"IFERROR(IF(F154=\"\",\"\",IF(MATCH(F154,'كشف الملاحظة'!$I$18:$I$77,0)>=0,\"\")),\"ح\")","v":""},""]
[null,null,null,null,"",null,{"$f":"IFERROR(IF(F155=\"\",\"\",IF(MATCH(F155,'كشف الملاحظة'!$I$18:$I$77,0)>=0,\"\")),\"ح\")","v":""},""]
[null,null,null,null,"",null,{"$f":"IFERROR(IF(F156=\"\",\"\",IF(MATCH(F156,'كشف الملاحظة'!$I$18:$I$77,0)>=0,\"\")),\"ح\")","v":""},""]
[null,null,null,null,"",null,{"$f":"IFERROR(IF(F157=\"\",\"\",IF(MATCH(F157,'كشف الملاحظة'!$I$18:$I$77,0)>=0,\"\")),\"ح\")","v":""},""]
[null,null,null,null,"",null,{"$f":"IFERROR(IF(F158=\"\",\"\",IF(MATCH(F158,'كشف الملاحظة'!$I$18:$I$77,0)>=0,\"\")),\"ح\")","v":""},""]
[null,null,null,null,"",null,{"$f":"IFERROR(IF(F159=\"\",\"\",IF(MATCH(F159,'كشف الملاحظة'!$I$18:$I$77,0)>=0,\"\")),\"ح\")","v":""},""]
[null,null,null,null,"",null,{"$f":"IFERROR(IF(F160=\"\",\"\",IF(MATCH(F160,'كشف الملاحظة'!$I$18:$I$77,0)>=0,\"\")),\"ح\")","v":""},""]
[null,null,null,null,"",null,{"$f":"IFERROR(IF(F161=\"\",\"\",IF(MATCH(F161,'كشف الملاحظة'!$I$18:$I$77,0)>=0,\"\")),\"ح\")","v":""},""]
[null,null,null,null,"",null,{"$f":"IFERROR(IF(F162=\"\",\"\",IF(MATCH(F162,'كشف الملاحظة'!$I$18:$I$77,0)>=0,\"\")),\"ح\")","v":""},""]
[null,null,null,null,"",null,{"$f":"IFERROR(IF(F163=\"\",\"\",IF(MATCH(F163,'كشف الملاحظة'!$I$18:$I$77,0)>=0,\"\")),\"ح\")","v":""},""]
[null,null,null,null,"",null,{"$f":"IFERROR(IF(F164=\"\",\"\",IF(MATCH(F164,'كشف الملاحظة'!$I$18:$I$77,0)>=0,\"\")),\"ح\")","v":""},""]
[null,null,null,null,"",null,{"$f":"IFERROR(IF(F165=\"\",\"\",IF(MATCH(F165,'كشف الملاحظة'!$I$18:$I$77,0)>=0,\"\")),\"ح\")","v":""},""]
[null,null,null,null,"",null,{"$f":"IFERROR(IF(F166=\"\",\"\",IF(MATCH(F166,'كشف الملاحظة'!$I$18:$I$77,0)>=0,\"\")),\"ح\")","v":""},""]
[null,null,null,null,"",null,{"$f":"IFERROR(IF(F167=\"\",\"\",IF(MATCH(F167,'كشف الملاحظة'!$I$18:$I$77,0)>=0,\"\")),\"ح\")","v":""},""]
[null,null,null,null,"",null,{"$f":"IFERROR(IF(F168=\"\",\"\",IF(MATCH(F168,'كشف الملاحظة'!$I$18:$I$77,0)>=0,\"\")),\"ح\")","v":""},""]
[null,null,null,null,"",null,{"$f":"IFERROR(IF(F169=\"\",\"\",IF(MATCH(F169,'كشف الملاحظة'!$I$18:$I$77,0)>=0,\"\")),\"ح\")","v":""},""]
[null,null,null,null,"",null,{"$f":"IFERROR(IF(F170=\"\",\"\",IF(MATCH(F170,'كشف الملاحظة'!$I$18:$I$77,0)>=0,\"\")),\"ح\")","v":""},""]
[null,null,null,null,"",null,{"$f":"IFERROR(IF(F171=\"\",\"\",IF(MATCH(F171,'كشف الملاحظة'!$I$18:$I$77,0)>=0,\"\")),\"ح\")","v":""},""]
[null,null,null,null,"",null,{"$f":"IFERROR(IF(F172=\"\",\"\",IF(MATCH(F172,'كشف الملاحظة'!$I$18:$I$77,0)>=0,\"\")),\"ح\")","v":""},""]
[null,null,null,null,"",null,{"$f":"IFERROR(IF(F173=\"\",\"\",IF(MATCH(F173,'كشف الملاحظة'!$I$18:$I$77,0)>=0,\"\")),\"ح\")","v":""},""]
[null,null,null,null,"",null,{"$f":"IFERROR(IF(F174=\"\",\"\",IF(MATCH(F174,'كشف الملاحظة'!$I$18:$I$77,0)>=0,\"\")),\"ح\")","v":""},""]
[null,null,null,null,"",null,{"$f":"IFERROR(IF(F175=\"\",\"\",IF(MATCH(F175,'كشف الملاحظة'!$I$18:$I$77,0)>=0,\"\")),\"ح\")","v":""},""]
[null,null,null,null,"",null,{"$f":"IFERROR(IF(F176=\"\",\"\",IF(MATCH(F176,'كشف الملاحظة'!$I$18:$I$77,0)>=0,\"\")),\"ح\")","v":""},""]
[null,null,null,null,"",null,{"$f":"IFERROR(IF(F177=\"\",\"\",IF(MATCH(F177,'كشف الملاحظة'!$I$18:$I$77,0)>=0,\"\")),\"ح\")","v":""},""]
[null,null,null,null,"",null,{"$f":"IFERROR(IF(F178=\"\",\"\",IF(MATCH(F178,'كشف الملاحظة'!$I$18:$I$77,0)>=0,\"\")),\"ح\")","v":""},""]
[null,null,null,null,"",null,{"$f":"IFERROR(IF(F179=\"\",\"\",IF(MATCH(F179,'كشف الملاحظة'!$I$18:$I$77,0)>=0,\"\")),\"ح\")","v":""},""]
[null,null,null,null,"",null,{"$f":"IFERROR(IF(F180=\"\",\"\",IF(MATCH(F180,'كشف الملاحظة'!$I$18:$I$77,0)>=0,\"\")),\"ح\")","v":""},""]
[null,null,null,null,"",null,{"$f":"IFERROR(IF(F181=\"\",\"\",IF(MATCH(F181,'كشف الملاحظة'!$I$18:$I$77,0)>=0,\"\")),\"ح\")","v":""},""]
[null,null,null,null,"",null,{"$f":"IFERROR(IF(F182=\"\",\"\",IF(MATCH(F182,'كشف الملاحظة'!$I$18:$I$77,0)>=0,\"\")),\"ح\")","v":""},""]
[null,null,null,null,"",null,{"$f":"IFERROR(IF(F183=\"\",\"\",IF(MATCH(F183,'كشف الملاحظة'!$I$18:$I$77,0)>=0,\"\")),\"ح\")","v":""},""]
[null,null,null,null,"",null,{"$f":"IFERROR(IF(F184=\"\",\"\",IF(MATCH(F184,'كشف الملاحظة'!$I$18:$I$77,0)>=0,\"\")),\"ح\")","v":""},""]
[null,null,null,null,"",null,{"$f":"IFERROR(IF(F185=\"\",\"\",IF(MATCH(F185,'كشف الملاحظة'!$I$18:$I$77,0)>=0,\"\")),\"ح\")","v":""},""]
[null,null,null,null,"",null,{"$f":"IFERROR(IF(F186=\"\",\"\",IF(MATCH(F186,'كشف الملاحظة'!$I$18:$I$77,0)>=0,\"\")),\"ح\")","v":""},""]
[null,null,null,null,"",null,{"$f":"IFERROR(IF(F187=\"\",\"\",IF(MATCH(F187,'كشف الملاحظة'!$I$18:$I$77,0)>=0,\"\")),\"ح\")","v":""},""]
[null,null,null,null,"",null,{"$f":"IFERROR(IF(F188=\"\",\"\",IF(MATCH(F188,'كشف الملاحظة'!$I$18:$I$77,0)>=0,\"\")),\"ح\")","v":""},""]
[null,null,null,null,"",null,{"$f":"IFERROR(IF(F189=\"\",\"\",IF(MATCH(F189,'كشف الملاحظة'!$I$18:$I$77,0)>=0,\"\")),\"ح\")","v":""},""]
[null,null,null,null,"",null,{"$f":"IFERROR(IF(F190=\"\",\"\",IF(MATCH(F190,'كشف الملاحظة'!$I$18:$I$77,0)>=0,\"\")),\"ح\")","v":""},""]
[null,null,null,null,"",null,{"$f":"IFERROR(IF(F191=\"\",\"\",IF(MATCH(F191,'كشف الملاحظة'!$I$18:$I$77,0)>=0,\"\")),\"ح\")","v":""},""]
[null,null,null,null,"",null,{"$f":"IFERROR(IF(F192=\"\",\"\",IF(MATCH(F192,'كشف الملاحظة'!$I$18:$I$77,0)>=0,\"\")),\"ح\")","v":""},""]
[null,null,null,null,"",null,{"$f":"IFERROR(IF(F193=\"\",\"\",IF(MATCH(F193,'كشف الملاحظة'!$I$18:$I$77,0)>=0,\"\")),\"ح\")","v":""},""]
[null,null,null,null,"",null,{"$f":"IFERROR(IF(F194=\"\",\"\",IF(MATCH(F194,'كشف الملاحظة'!$I$18:$I$77,0)>=0,\"\")),\"ح\")","v":""},""]
[null,null,null,null,"",null,{"$f":"IFERROR(IF(F195=\"\",\"\",IF(MATCH(F195,'كشف الملاحظة'!$I$18:$I$77,0)>=0,\"\")),\"ح\")","v":""},""]
[null,null,null,null,{"$f":"IF(ROW()-2<=$C$9,ROW()-2,\"\")","v":""},null,{"$f":"IFERROR(IF(F196=\"\",\"\",IF(MATCH(F196,'كشف الملاحظة'!$I$18:$I$77,0)>=0,\"\")),\"ح\")","v":""},{"$f":"IF(G196=$G$1,E196,\"\")","v":""}]
[null,null,null,null,"",null,{"$f":"IFERROR(IF(F197=\"\",\"\",IF(MATCH(F197,'كشف الملاحظة'!$I$18:$I$77,0)>=0,\"\")),\"ح\")","v":""},""]
[null,null,null,null,"",null,{"$f":"IFERROR(IF(F198=\"\",\"\",IF(MATCH(F198,'كشف الملاحظة'!$I$18:$I$77,0)>=0,\"\")),\"ح\")","v":""},""]
[null,null,null,null,"",null,{"$f":"IFERROR(IF(F199=\"\",\"\",IF(MATCH(F199,'كشف الملاحظة'!$I$18:$I$77,0)>=0,\"\")),\"ح\")","v":""},""]
[null,null,null,null,"",null,{"$f":"IFERROR(IF(F200=\"\",\"\",IF(MATCH(F200,'كشف الملاحظة'!$I$18:$I$77,0)>=0,\"\")),\"ح\")","v":""},""]
[null,null,null,null,"",null,{"$f":"IFERROR(IF(F201=\"\",\"\",IF(MATCH(F201,'كشف الملاحظة'!$I$18:$I$77,0)>=0,\"\")),\"ح\")","v":""},""]
[null,null,null,null,"",null,{"$f":"IFERROR(IF(F202=\"\",\"\",IF(MATCH(F202,'كشف الملاحظة'!$I$18:$I$77,0)>=0,\"\")),\"ح\")","v":""},""]
[null,null,null,null,"",null,{"$f":"IFERROR(IF(F203=\"\",\"\",IF(MATCH(F203,'كشف الملاحظة'!$I$18:$I$77,0)>=0,\"\")),\"ح\")","v":""},""]
[null,null,null,null,"",null,{"$f":"IFERROR(IF(F204=\"\",\"\",IF(MATCH(F204,'كشف الملاحظة'!$I$18:$I$77,0)>=0,\"\")),\"ح\")","v":""},""]
[null,null,null,null,"",null,{"$f":"IFERROR(IF(F205=\"\",\"\",IF(MATCH(F205,'كشف الملاحظة'!$I$18:$I$77,0)>=0,\"\")),\"ح\")","v":""},""]
[null,null,null,null,"",null,{"$f":"IFERROR(IF(F206=\"\",\"\",IF(MATCH(F206,'كشف الملاحظة'!$I$18:$I$77,0)>=0,\"\")),\"ح\")","v":""},""]
[null,null,null,null,"",null,{"$f":"IFERROR(IF(F207=\"\",\"\",IF(MATCH(F207,'كشف الملاحظة'!$I$18:$I$77,0)>=0,\"\")),\"ح\")","v":""},""]
[null,null,null,null,"",null,{"$f":"IFERROR(IF(F208=\"\",\"\",IF(MATCH(F208,'كشف الملاحظة'!$I$18:$I$77,0)>=0,\"\")),\"ح\")","v":""},""]
[null,null,null,null,"",null,{"$f":"IFERROR(IF(F209=\"\",\"\",IF(MATCH(F209,'كشف الملاحظة'!$I$18:$I$77,0)>=0,\"\")),\"ح\")","v":""},""]
[null,null,null,null,"",null,{"$f":"IFERROR(IF(F210=\"\",\"\",IF(MATCH(F210,'كشف الملاحظة'!$I$18:$I$77,0)>=0,\"\")),\"ح\")","v":""},""]
[null,null,null,null,"",null,{"$f":"IFERROR(IF(F211=\"\",\"\",IF(MATCH(F211,'كشف الملاحظة'!$I$18:$I$77,0)>=0,\"\")),\"ح\")","v":""},""]
[null,null,null,null,"",null,{"$f":"IFERROR(IF(F212=\"\",\"\",IF(MATCH(F212,'كشف الملاحظة'!$I$18:$I$77,0)>=0,\"\")),\"ح\")","v":""},""]
[null,null,null,null,"",null,{"$f":"IFERROR(IF(F213=\"\",\"\",IF(MATCH(F213,'كشف الملاحظة'!$I$18:$I$77,0)>=0,\"\")),\"ح\")","v":""},""]
[null,null,null,null,"",null,{"$f":"IFERROR(IF(F214=\"\",\"\",IF(MATCH(F214,'كشف الملاحظة'!$I$18:$I$77,0)>=0,\"\")),\"ح\")","v":""},""]
[null,null,null,null,"",null,{"$f":"IFERROR(IF(F215=\"\",\"\",IF(MATCH(F215,'كشف الملاحظة'!$I$18:$I$77,0)>=0,\"\")),\"ح\")","v":""},""]
[null,null,null,null,"",null,{"$f":"IFERROR(IF(F216=\"\",\"\",IF(MATCH(F216,'كشف الملاحظة'!$I$18:$I$77,0)>=0,\"\")),\"ح\")","v":""},""]
[null,null,null,null,"",null,{"$f":"IFERROR(IF(F217=\"\",\"\",IF(MATCH(F217,'كشف الملاحظة'!$I$18:$I$77,0)>=0,\"\")),\"ح\")","v":""},""]
[null,null,null,null,"",null,{"$f":"IFERROR(IF(F218=\"\",\"\",IF(MATCH(F218,'كشف الملاحظة'!$I$18:$I$77,0)>=0,\"\")),\"ح\")","v":""},""]
[null,null,null,null,"",null,{"$f":"IFERROR(IF(F219=\"\",\"\",IF(MATCH(F219,'كشف الملاحظة'!$I$18:$I$77,0)>=0,\"\")),\"ح\")","v":""},""]
[null,null,null,null,"",null,{"$f":"IFERROR(IF(F220=\"\",\"\",IF(MATCH(F220,'كشف الملاحظة'!$I$18:$I$77,0)>=0,\"\")),\"ح\")","v":""},""]
[null,null,null,null,"",null,{"$f":"IFERROR(IF(F221=\"\",\"\",IF(MATCH(F221,'كشف الملاحظة'!$I$18:$I$77,0)>=0,\"\")),\"ح\")","v":""},""]
[null,null,null,null,"",null,{"$f":"IFERROR(IF(F222=\"\",\"\",IF(MATCH(F222,'كشف الملاحظة'!$I$18:$I$77,0)>=0,\"\")),\"ح\")","v":""},""]
[null,null,null,null,"",null,{"$f":"IFERROR(IF(F223=\"\",\"\",IF(MATCH(F223,'كشف الملاحظة'!$I$18:$I$77,0)>=0,\"\")),\"ح\")","v":""},""]
[null,null,null,null,"",null,{"$f":"IFERROR(IF(F224=\"\",\"\",IF(MATCH(F224,'كشف الملاحظة'!$I$18:$I$77,0)>=0,\"\")),\"ح\")","v":""},""]
[null,null,null,null,"",null,{"$f":"IFERROR(IF(F225=\"\",\"\",IF(MATCH(F225,'كشف الملاحظة'!$I$18:$I$77,0)>=0,\"\")),\"ح\")","v":""},""]
[null,null,null,null,"",null,{"$f":"IFERROR(IF(F226=\"\",\"\",IF(MATCH(F226,'كشف الملاحظة'!$I$18:$I$77,0)>=0,\"\")),\"ح\")","v":""},""]
[null,null,null,null,"",null,{"$f":"IFERROR(IF(F227=\"\",\"\",IF(MATCH(F227,'كشف الملاحظة'!$I$18:$I$77,0)>=0,\"\")),\"ح\")","v":""},""]
[null,null,null,null,"",null,{"$f":"IFERROR(IF(F228=\"\",\"\",IF(MATCH(F228,'كشف الملاحظة'!$I$18:$I$77,0)>=0,\"\")),\"ح\")","v":""},""]
[null,null,null,null,"",null,{"$f":"IFERROR(IF(F229=\"\",\"\",IF(MATCH(F229,'كشف الملاحظة'!$I$18:$I$77,0)>=0,\"\")),\"ح\")","v":""},""]
[null,null,null,null,"",null,{"$f":"IFERROR(IF(F230=\"\",\"\",IF(MATCH(F230,'كشف الملاحظة'!$I$18:$I$77,0)>=0,\"\")),\"ح\")","v":""},""]
[null,null,null,null,"",null,{"$f":"IFERROR(IF(F231=\"\",\"\",IF(MATCH(F231,'كشف الملاحظة'!$I$18:$I$77,0)>=0,\"\")),\"ح\")","v":""},""]
[null,null,null,null,"",null,{"$f":"IFERROR(IF(F232=\"\",\"\",IF(MATCH(F232,'كشف الملاحظة'!$I$18:$I$77,0)>=0,\"\")),\"ح\")","v":""},""]
[null,null,null,null,"",null,{"$f":"IFERROR(IF(F233=\"\",\"\",IF(MATCH(F233,'كشف الملاحظة'!$I$18:$I$77,0)>=0,\"\")),\"ح\")","v":""},""]
[null,null,null,null,"",null,{"$f":"IFERROR(IF(F234=\"\",\"\",IF(MATCH(F234,'كشف الملاحظة'!$I$18:$I$77,0)>=0,\"\")),\"ح\")","v":""},""]
[null,null,null,null,"",null,{"$f":"IFERROR(IF(F235=\"\",\"\",IF(MATCH(F235,'كشف الملاحظة'!$I$18:$I$77,0)>=0,\"\")),\"ح\")","v":""},""]
[null,null,null,null,"",null,{"$f":"IFERROR(IF(F236=\"\",\"\",IF(MATCH(F236,'كشف الملاحظة'!$I$18:$I$77,0)>=0,\"\")),\"ح\")","v":""},""]
[null,null,null,null,"",null,{"$f":"IFERROR(IF(F237=\"\",\"\",IF(MATCH(F237,'كشف الملاحظة'!$I$18:$I$77,0)>=0,\"\")),\"ح\")","v":""},""]
[null,null,null,null,"",null,{"$f":"IFERROR(IF(F238=\"\",\"\",IF(MATCH(F238,'كشف الملاحظة'!$I$18:$I$77,0)>=0,\"\")),\"ح\")","v":""},""]
[null,null,null,null,"",null,{"$f":"IFERROR(IF(F239=\"\",\"\",IF(MATCH(F239,'كشف الملاحظة'!$I$18:$I$77,0)>=0,\"\")),\"ح\")","v":""},""]
[null,null,null,null,"",null,{"$f":"IFERROR(IF(F240=\"\",\"\",IF(MATCH(F240,'كشف الملاحظة'!$I$18:$I$77,0)>=0,\"\")),\"ح\")","v":""},""]
[null,null,null,null,"",null,{"$f":"IFERROR(IF(F241=\"\",\"\",IF(MATCH(F241,'كشف الملاحظة'!$I$18:$I$77,0)>=0,\"\")),\"ح\")","v":""},""]
[null,null,null,null,"",null,{"$f":"IFERROR(IF(F242=\"\",\"\",IF(MATCH(F242,'كشف الملاحظة'!$I$18:$I$77,0)>=0,\"\")),\"ح\")","v":""},""]
[null,null,null,null,"",null,{"$f":"IFERROR(IF(F243=\"\",\"\",IF(MATCH(F243,'كشف الملاحظة'!$I$18:$I$77,0)>=0,\"\")),\"ح\")","v":""},""]
[null,null,null,null,"",null,{"$f":"IFERROR(IF(F244=\"\",\"\",IF(MATCH(F244,'كشف الملاحظة'!$I$18:$I$77,0)>=0,\"\")),\"ح\")","v":""},""]
[null,null,null,null,"",null,{"$f":"IFERROR(IF(F245=\"\",\"\",IF(MATCH(F245,'كشف الملاحظة'!$I$18:$I$77,0)>=0,\"\")),\"ح\")","v":""},""]
[null,null,null,null,"",null,{"$f":"IFERROR(IF(F246=\"\",\"\",IF(MATCH(F246,'كشف الملاحظة'!$I$18:$I$77,0)>=0,\"\")),\"ح\")","v":""},""]
[null,null,null,null,"",null,{"$f":"IFERROR(IF(F247=\"\",\"\",IF(MATCH(F247,'كشف الملاحظة'!$I$18:$I$77,0)>=0,\"\")),\"ح\")","v":""},""]
[null,null,null,null,"",null,{"$f":"IFERROR(IF(F248=\"\",\"\",IF(MATCH(F248,'كشف الملاحظة'!$I$18:$I$77,0)>=0,\"\")),\"ح\")","v":""},""]
[null,null,null,null,"",null,{"$f":"IFERROR(IF(F249=\"\",\"\",IF(MATCH(F249,'كشف الملاحظة'!$I$18:$I$77,0)>=0,\"\")),\"ح\")","v":""},""]
[null,null,null,null,"",null,{"$f":"IFERROR(IF(F250=\"\",\"\",IF(MATCH(F250,'كشف الملاحظة'!$I$18:$I$77,0)>=0,\"\")),\"ح\")","v":""},""]
[null,null,null,null,"",null,{"$f":"IFERROR(IF(F251=\"\",\"\",IF(MATCH(F251,'كشف الملاحظة'!$I$18:$I$77,0)>=0,\"\")),\"ح\")","v":""},""]
[null,null,null,null,"",null,{"$f":"IFERROR(IF(F252=\"\",\"\",IF(MATCH(F252,'كشف الملاحظة'!$I$18:$I$77,0)>=0,\"\")),\"ح\")","v":""},""]
[null,null,null,null,"",null,{"$f":"IFERROR(IF(F253=\"\",\"\",IF(MATCH(F253,'كشف الملاحظة'!$I$18:$I$77,0)>=0,\"\")),\"ح\")","v":""},""]
[null,null,null,null,"",null,{"$f":"IFERROR(IF(F254=\"\",\"\",IF(MATCH(F254,'كشف الملاحظة'!$I$18:$I$77,0)>=0,\"\")),\"ح\")","v":""},""]
[null,null,null,null,"",null,{"$f":"IFERROR(IF(F255=\"\",\"\",IF(MATCH(F255,'كشف الملاحظة'!$I$18:$I$77,0)>=0,\"\")),\"ح\")","v":""},""]
[null,null,null,null,"",null,{"$f":"IFERROR(IF(F256=\"\",\"\",IF(MATCH(F256,'كشف الملاحظة'!$I$18:$I$77,0)>=0,\"\")),\"ح\")","v":""},""]
[null,null,null,null,"",null,{"$f":"IFERROR(IF(F257=\"\",\"\",IF(MATCH(F257,'كشف الملاحظة'!$I$18:$I$77,0)>=0,\"\")),\"ح\")","v":""},""]
[null,null,null,null,"",null,{"$f":"IFERROR(IF(F258=\"\",\"\",IF(MATCH(F258,'كشف الملاحظة'!$I$18:$I$77,0)>=0,\"\")),\"ح\")","v":""},""]
[null,null,null,null,"",null,{"$f":"IFERROR(IF(F259=\"\",\"\",IF(MATCH(F259,'كشف الملاحظة'!$I$18:$I$77,0)>=0,\"\")),\"ح\")","v":""},""]
[null,null,null,null,{"$f":"IF(ROW()-2<=$C$9,ROW()-2,\"\")","v":""},null,{"$f":"IFERROR(IF(F260=\"\",\"\",IF(MATCH(F260,'كشف الملاحظة'!$I$18:$I$77,0)>=0,\"\")),\"ح\")","v":""},{"$f":"IF(G260=$G$1,E260,\"\")","v":""}]
[null,null,null,null,"",null,{"$f":"IFERROR(IF(F261=\"\",\"\",IF(MATCH(F261,'كشف الملاحظة'!$I$18:$I$77,0)>=0,\"\")),\"ح\")","v":""},""]
[null,null,null,null,"",null,{"$f":"IFERROR(IF(F262=\"\",\"\",IF(MATCH(F262,'كشف الملاحظة'!$I$18:$I$77,0)>=0,\"\")),\"ح\")","v":""},""]
[null,null,null,null,"",null,{"$f":"IFERROR(IF(F263=\"\",\"\",IF(MATCH(F263,'كشف الملاحظة'!$I$18:$I$77,0)>=0,\"\")),\"ح\")","v":""},""]
[null,null,null,null,"",null,{"$f":"IFERROR(IF(F264=\"\",\"\",IF(MATCH(F264,'كشف الملاحظة'!$I$18:$I$77,0)>=0,\"\")),\"ح\")","v":""},""]
[null,null,null,null,"",null,{"$f":"IFERROR(IF(F265=\"\",\"\",IF(MATCH(F265,'كشف الملاحظة'!$I$18:$I$77,0)>=0,\"\")),\"ح\")","v":""},""]
[null,null,null,null,"",null,{"$f":"IFERROR(IF(F266=\"\",\"\",IF(MATCH(F266,'كشف الملاحظة'!$I$18:$I$77,0)>=0,\"\")),\"ح\")","v":""},""]
[null,null,null,null,"",null,{"$f":"IFERROR(IF(F267=\"\",\"\",IF(MATCH(F267,'كشف الملاحظة'!$I$18:$I$77,0)>=0,\"\")),\"ح\")","v":""},""]
[null,null,null,null,"",null,{"$f":"IFERROR(IF(F268=\"\",\"\",IF(MATCH(F268,'كشف الملاحظة'!$I$18:$I$77,0)>=0,\"\")),\"ح\")","v":""},""]
[null,null,null,null,"",null,{"$f":"IFERROR(IF(F269=\"\",\"\",IF(MATCH(F269,'كشف الملاحظة'!$I$18:$I$77,0)>=0,\"\")),\"ح\")","v":""},""]
[null,null,null,null,"",null,{"$f":"IFERROR(IF(F270=\"\",\"\",IF(MATCH(F270,'كشف الملاحظة'!$I$18:$I$77,0)>=0,\"\")),\"ح\")","v":""},""]
[null,null,null,null,"",null,{"$f":"IFERROR(IF(F271=\"\",\"\",IF(MATCH(F271,'كشف الملاحظة'!$I$18:$I$77,0)>=0,\"\")),\"ح\")","v":""},""]
[null,null,null,null,"",null,{"$f":"IFERROR(IF(F272=\"\",\"\",IF(MATCH(F272,'كشف الملاحظة'!$I$18:$I$77,0)>=0,\"\")),\"ح\")","v":""},""]
[null,null,null,null,"",null,{"$f":"IFERROR(IF(F273=\"\",\"\",IF(MATCH(F273,'كشف الملاحظة'!$I$18:$I$77,0)>=0,\"\")),\"ح\")","v":""},""]
[null,null,null,null,"",null,{"$f":"IFERROR(IF(F274=\"\",\"\",IF(MATCH(F274,'كشف الملاحظة'!$I$18:$I$77,0)>=0,\"\")),\"ح\")","v":""},""]
[null,null,null,null,"",null,{"$f":"IFERROR(IF(F275=\"\",\"\",IF(MATCH(F275,'كشف الملاحظة'!$I$18:$I$77,0)>=0,\"\")),\"ح\")","v":""},""]
[null,null,null,null,"",null,{"$f":"IFERROR(IF(F276=\"\",\"\",IF(MATCH(F276,'كشف الملاحظة'!$I$18:$I$77,0)>=0,\"\")),\"ح\")","v":""},""]
[null,null,null,null,"",null,{"$f":"IFERROR(IF(F277=\"\",\"\",IF(MATCH(F277,'كشف الملاحظة'!$I$18:$I$77,0)>=0,\"\")),\"ح\")","v":""},""]
[null,null,null,null,"",null,{"$f":"IFERROR(IF(F278=\"\",\"\",IF(MATCH(F278,'كشف الملاحظة'!$I$18:$I$77,0)>=0,\"\")),\"ح\")","v":""},""]
[null,null,null,null,"",null,{"$f":"IFERROR(IF(F279=\"\",\"\",IF(MATCH(F279,'كشف الملاحظة'!$I$18:$I$77,0)>=0,\"\")),\"ح\")","v":""},""]
[null,null,null,null,"",null,{"$f":"IFERROR(IF(F280=\"\",\"\",IF(MATCH(F280,'كشف الملاحظة'!$I$18:$I$77,0)>=0,\"\")),\"ح\")","v":""},""]
[null,null,null,null,"",null,{"$f":"IFERROR(IF(F281=\"\",\"\",IF(MATCH(F281,'كشف الملاحظة'!$I$18:$I$77,0)>=0,\"\")),\"ح\")","v":""},""]
[null,null,null,null,"",null,{"$f":"IFERROR(IF(F282=\"\",\"\",IF(MATCH(F282,'كشف الملاحظة'!$I$18:$I$77,0)>=0,\"\")),\"ح\")","v":""},""]
[null,null,null,null,"",null,{"$f":"IFERROR(IF(F283=\"\",\"\",IF(MATCH(F283,'كشف الملاحظة'!$I$18:$I$77,0)>=0,\"\")),\"ح\")","v":""},""]
[null,null,null,null,"",null,{"$f":"IFERROR(IF(F284=\"\",\"\",IF(MATCH(F284,'كشف الملاحظة'!$I$18:$I$77,0)>=0,\"\")),\"ح\")","v":""},""]
[null,null,null,null,"",null,{"$f":"IFERROR(IF(F285=\"\",\"\",IF(MATCH(F285,'كشف الملاحظة'!$I$18:$I$77,0)>=0,\"\")),\"ح\")","v":""},""]
[null,null,null,null,"",null,{"$f":"IFERROR(IF(F286=\"\",\"\",IF(MATCH(F286,'كشف الملاحظة'!$I$18:$I$77,0)>=0,\"\")),\"ح\")","v":""},""]
[null,null,null,null,"",null,{"$f":"IFERROR(IF(F287=\"\",\"\",IF(MATCH(F287,'كشف الملاحظة'!$I$18:$I$77,0)>=0,\"\")),\"ح\")","v":""},""]
[null,null,null,null,"",null,{"$f":"IFERROR(IF(F288=\"\",\"\",IF(MATCH(F288,'كشف الملاحظة'!$I$18:$I$77,0)>=0,\"\")),\"ح\")","v":""},""]
[null,null,null,null,"",null,{"$f":"IFERROR(IF(F289=\"\",\"\",IF(MATCH(F289,'كشف الملاحظة'!$I$18:$I$77,0)>=0,\"\")),\"ح\")","v":""},""]
[null,null,null,null,"",null,{"$f":"IFERROR(IF(F290=\"\",\"\",IF(MATCH(F290,'كشف الملاحظة'!$I$18:$I$77,0)>=0,\"\")),\"ح\")","v":""},""]
[null,null,null,null,"",null,{"$f":"IFERROR(IF(F291=\"\",\"\",IF(MATCH(F291,'كشف الملاحظة'!$I$18:$I$77,0)>=0,\"\")),\"ح\")","v":""},""]
[null,null,null,null,"",null,{"$f":"IFERROR(IF(F292=\"\",\"\",IF(MATCH(F292,'كشف الملاحظة'!$I$18:$I$77,0)>=0,\"\")),\"ح\")","v":""},""]
[null,null,null,null,"",null,{"$f":"IFERROR(IF(F293=\"\",\"\",IF(MATCH(F293,'كشف الملاحظة'!$I$18:$I$77,0)>=0,\"\")),\"ح\")","v":""},""]
[null,null,null,null,"",null,{"$f":"IFERROR(IF(F294=\"\",\"\",IF(MATCH(F294,'كشف الملاحظة'!$I$18:$I$77,0)>=0,\"\")),\"ح\")","v":""},""]
[null,null,null,null,"",null,{"$f":"IFERROR(IF(F295=\"\",\"\",IF(MATCH(F295,'كشف الملاحظة'!$I$18:$I$77,0)>=0,\"\")),\"ح\")","v":""},""]
[null,null,null,null,"",null,{"$f":"IFERROR(IF(F296=\"\",\"\",IF(MATCH(F296,'كشف الملاحظة'!$I$18:$I$77,0)>=0,\"\")),\"ح\")","v":""},""]
[null,null,null,null,"",null,{"$f":"IFERROR(IF(F297=\"\",\"\",IF(MATCH(F297,'كشف الملاحظة'!$I$18:$I$77,0)>=0,\"\")),\"ح\")","v":""},""]
[null,null,null,null,"",null,{"$f":"IFERROR(IF(F298=\"\",\"\",IF(MATCH(F298,'كشف الملاحظة'!$I$18:$I$77,0)>=0,\"\")),\"ح\")","v":""},""]
[null,null,null,null,"",null,{"$f":"IFERROR(IF(F299=\"\",\"\",IF(MATCH(F299,'كشف الملاحظة'!$I$18:$I$77,0)>=0,\"\")),\"ح\")","v":""},""]
[null,null,null,null,"",null,{"$f":"IFERROR(IF(F300=\"\",\"\",IF(MATCH(F300,'كشف الملاحظة'!$I$18:$I$77,0)>=0,\"\")),\"ح\")","v":""},""]
[null,null,null,null,"",null,{"$f":"IFERROR(IF(F301=\"\",\"\",IF(MATCH(F301,'كشف الملاحظة'!$I$18:$I$77,0)>=0,\"\")),\"ح\")","v":""},""]
[null,null,null,null,"",null,{"$f":"IFERROR(IF(F302=\"\",\"\",IF(MATCH(F302,'كشف الملاحظة'!$I$18:$I$77,0)>=0,\"\")),\"ح\")","v":""},""]
[null,null,null,null,"",null,{"$f":"IFERROR(IF(F303=\"\",\"\",IF(MATCH(F303,'كشف الملاحظة'!$I$18:$I$77,0)>=0,\"\")),\"ح\")","v":""},""]
[null,null,null,null,"",null,{"$f":"IFERROR(IF(F304=\"\",\"\",IF(MATCH(F304,'كشف الملاحظة'!$I$18:$I$77,0)>=0,\"\")),\"ح\")","v":""},""]
[null,null,null,null,"",null,{"$f":"IFERROR(IF(F305=\"\",\"\",IF(MATCH(F305,'كشف الملاحظة'!$I$18:$I$77,0)>=0,\"\")),\"ح\")","v":""},""]
[null,null,null,null,"",null,{"$f":"IFERROR(IF(F306=\"\",\"\",IF(MATCH(F306,'كشف الملاحظة'!$I$18:$I$77,0)>=0,\"\")),\"ح\")","v":""},""]
[null,null,null,null,"",null,{"$f":"IFERROR(IF(F307=\"\",\"\",IF(MATCH(F307,'كشف الملاحظة'!$I$18:$I$77,0)>=0,\"\")),\"ح\")","v":""},""]
[null,null,null,null,"",null,{"$f":"IFERROR(IF(F308=\"\",\"\",IF(MATCH(F308,'كشف الملاحظة'!$I$18:$I$77,0)>=0,\"\")),\"ح\")","v":""},""]
[null,null,null,null,"",null,{"$f":"IFERROR(IF(F309=\"\",\"\",IF(MATCH(F309,'كشف الملاحظة'!$I$18:$I$77,0)>=0,\"\")),\"ح\")","v":""},""]
[null,null,null,null,"",null,{"$f":"IFERROR(IF(F310=\"\",\"\",IF(MATCH(F310,'كشف الملاحظة'!$I$18:$I$77,0)>=0,\"\")),\"ح\")","v":""},""]
[null,null,null,null,"",null,{"$f":"IFERROR(IF(F311=\"\",\"\",IF(MATCH(F311,'كشف الملاحظة'!$I$18:$I$77,0)>=0,\"\")),\"ح\")","v":""},""]
[null,null,null,null,"",null,{"$f":"IFERROR(IF(F312=\"\",\"\",IF(MATCH(F312,'كشف الملاحظة'!$I$18:$I$77,0)>=0,\"\")),\"ح\")","v":""},""]
[null,null,null,null,"",null,{"$f":"IFERROR(IF(F313=\"\",\"\",IF(MATCH(F313,'كشف الملاحظة'!$I$18:$I$77,0)>=0,\"\")),\"ح\")","v":""},""]
[null,null,null,null,"",null,{"$f":"IFERROR(IF(F314=\"\",\"\",IF(MATCH(F314,'كشف الملاحظة'!$I$18:$I$77,0)>=0,\"\")),\"ح\")","v":""},""]
[null,null,null,null,"",null,{"$f":"IFERROR(IF(F315=\"\",\"\",IF(MATCH(F315,'كشف الملاحظة'!$I$18:$I$77,0)>=0,\"\")),\"ح\")","v":""},""]
[null,null,null,null,"",null,{"$f":"IFERROR(IF(F316=\"\",\"\",IF(MATCH(F316,'كشف الملاحظة'!$I$18:$I$77,0)>=0,\"\")),\"ح\")","v":""},""]

{"sheet":"جدول الامتحانات","index":2,"n_rows":26,"n_cols":10,"rows_kept":26,"cut":false,"hidden":false,"merged":[[6,7,7,7],[6,8,7,8],[8,1,9,1],[8,2,9,2],[8,3,9,3],[8,4,9,4],[8,5,9,5],[8,6,9,6],[8,7,9,7],[8,8,9,8],[6,1,7,1],[6,2,7,2],[6,3,7,3],[6,4,7,4],[6,5,7,5],[6,6,7,6],[12,7,13,7],[12,8,13,8],[14,1,15,1],[14,2,15,2],[14,3,15,3],[14,4,15,4],[14,5,15,5],[14,6,15,6],[14,7,15,7],[14,8,15,8],[12,1,13,1],[12,2,13,2],[12,3,13,3],[12,4,13,4],[12,5,13,5],[12,6,13,6],[21,6,22,6],[21,7,22,7],[21,8,22,8],[24,0,25,0],[19,0,20,0],[21,1,22,1],[21,2,22,2],[21,3,22,3],[21,4,22,4],[21,5,22,5]]}
[]
["اليوم والتاريخ","الوقت",null,"زمن الإجابة","المادة","الشعبة","الوقت",null,"زمن الإجابة","الأيام والفترات"]
[{"$f":"IF(A4=\"\",\"\",TEXT(A4,\"ddd\"))","v":"الثلاثاء"},9,10.3,"ساعة ونصف","التربية الدينية","العامة",{"$f":"B3","v":9},10.3,"ساعة ونصف","اليوم الأول -الفترة الأولى"]
["2022-06-21",9,12.3,"ساعة ونصف","التربية الوطنية","العامة",9,12.3,"ساعة ونصف","اليوم الأول -الفترة الثانية"]
[{"$f":"IF(A6=\"\",\"\",TEXT(A6,\"ddd\"))","v":"الأربعاء"},9,10.3,"ساعة ونصف","الاقتصاد","العامة",9,10.3,"ساعة ونصف","اليوم الثاني -الفترة الأولى"]
["2022-06-22",9,12.3,"ساعة ونصف","الإحصاء","العامة",9,12.3,"ساعة ونصف","اليوم الثاني -الفترة الثانية"]
[{"$f":"IF(A8=\"\",\"\",TEXT(A8,\"ddd\"))","v":"الأحد"},9,12,"ثلاث ساعات","اللغة العربية","العامة",9,12,"ثلاث ساعات","اليوم الثالث"]
["2022-06-26"]
[{"$f":"IF(A10=\"\",\"\",TEXT(A10,\"ddd\"))","v":"الثلاثاء"},9,11,"ساعتان","اللغة الأجنبية الثانية","العامة",{"$f":"B9","v":9},{"$f":"C9","v":11},{"$f":"D9","v":"ساعتان"},"اليوم الرابع"]
["2022-06-28"]
[{"$f":"IF(A12=\"\",\"\",TEXT(A12,\"ddd\"))","v":"الأحد"},9,12,"ثلاث ساعات","الكيمياء","العلو م والرياضبات",{"$f":"B11","v":9},12,"ثلاث ساعات","اليوم الخامس"]
["2022-07-03",9,12,"ثلاث ساعات","الجغرافيا","الأدبية",9,12,"ثلاث ساعات"]
[{"$f":"IF(A14=\"\",\"\",TEXT(A14,\"ddd\"))","v":"الثلاثاء"},9,11,"ساعتان","الرياضيات التطبيقية (الديناميكا)","الرياضيات",9,11,"ساعتان","اليوم السادس"]
["2022-07-05"]
[{"$f":"IF(A16=\"\",\"\",TEXT(A16,\"ddd\"))","v":"الخميس"},9,12,"ثلاث ساعات","اللغة الأجنبية الاولي","العامة",{"$f":"B15","v":9},{"$f":"C15","v":12},{"$f":"D15","v":"ثلاث ساعات"},"اليوم السابع"]
["2022-07-07"]
[{"$f":"IF(A18=\"\",\"\",TEXT(A18,\"ddd\"))","v":"الخميس"},9,12,"ثلاث ساعات","الفيزياء","العلوم والرياضيات",{"$f":"B17","v":9},12,"ثلاث ساعات","اليوم الثامن"]
["2022-07-14",9,12,"ثلاث ساعات","التاريخ","الأدبية",9,12,"ثلاث ساعات"]
[{"$f":"IF(A20=\"\",\"\",TEXT(A20,\"ddd\"))","v":"الأحد"},9,12,"ثلاث ساعات","الجيولوجيا والعلوم البيئية","العلوم",9,12,"ثلاث ساعات","اليوم التاسع"]
["2022-07-17",9,11,"ساعتان","الرياضيات البحتة (تفاضل وتكامل)","الرياضيات",9,11,"ساعتان"]
[null,9,12,"ثلاث ساعات","علم النفس والاجتماع","الأدبية",9,12,"ثلاث ساعات"]
[{"$f":"IF(A23=\"\",\"\",TEXT(A23,\"ddd\"))","v":"الثلاثاء"},9,11,"ساعتان","الرياضيات البحتة جبر وهندسة فراغية )","الرياضيات",9,11,"ساعتان","اليوم العاشر"]
["2022-07-19"]
[{"$f":"IF(A25=\"\",\"\",TEXT(A25,\"ddd\"))","v":"الخميس"},9,12,"ثلاث ساعات","الاحياء","العلوم",{"$f":"B24","v":9},12,"ثلاث ساعات","اليوم الحادي عشر"]
["2022-07-21",9,11,"ساعتان","الرياضيات التطبيقية (الاستاتيكا)","الرياضيات",9,11,"ساعتان"]
[null,9,12,"ثلاث ساعات","الفلسقة والمنطق","الأدبية",9,12,"ثلاث ساعات"]

{"sheet":"الثانوية العامة","index":3,"n_rows":256,"n_cols":38,"rows_kept":256,"cut":false,"hidden":false,"merged":[]}
[1,null,null,null,1,null,null,null,null,null,null,null,null,null,null,null,null,null,null,null,null,null,null,null,null,"                           كود التوزيع للملاحظين بطئ جدا",null,null,null,null,null,null,null,null,null,null,null,{"$f":"IF(C12>=$C$2,\"\",C12+1)","v":""}]
["عدد مرات الدخول لكل ملاحظ",null,null,"الفترة 1","الفترة 2","الفترة 3","الفترة 4","الفترة 5","الفترة 6","الفترة 7","الفترة 8","الفترة 9","الفترة 10","الفترة 11","الفترة 12","الفترة 13","الفترة 1","الفترة 2","الفترة 3","الفترة 4","الفترة 5","الفترة 6","الفترة 7","الفترة 8","الفترة 9","الفترة 10","الفترة 11","الفترة 12","الفترة 13",null,null,"عدد مرات الدخول لكل ملاحظ"]
[null,1,1,null,null,null,null,null,null,null,null,null,null,null,null,null,null,null,null,null,null,null,null,null,null,null,null,null,null,null,null,{"$f":"COUNTIF($D$3:$AC$230,B3)","v":0}]
[null,2,2,null,null,null,null,null,null,null,null,null,null,null,null,null,null,null,null,null,null,null,null,null,null,null,null,null,null,null,null,{"$f":"COUNTIF($D$3:$AC$230,B4)","v":0}]
[null,3,3,null,null,null,null,null,null,null,null,null,null,null,null,null,null,null,null,null,null,null,null,null,null,null,null,null,null,null,null,{"$f":"COUNTIF($D$3:$AC$230,B5)","v":0}]
[null,4,4,null,null,null,null,null,null,null,null,null,null,null,null,null,null,null,null,null,null,null,null,null,null,null,null,null,null,null,null,0]
[null,5,5,null,null,null,null,null,null,null,null,null,null,null,null,null,null,null,null,null,null,null,null,null,null,null,null,null,null,null,null,{"$f":"COUNTIF($D$3:$AC$230,B7)","v":0}]
[null,6,null,null,null,null,null,null,null,null,null,null,null,null,null,null,null,null,null,null,null,null,null,null,null,null,null,null,null,null,null,{"$f":"COUNTIF($D$3:$AC$230,B8)","v":0}]
[null,7,null,null,null,null,null,null,null,null,null,null,null,null,null,null,null,null,null,null,null,null,null,null,null,null,null,null,null,null,null,0]
[null,8,null,null,null,null,null,null,null,null,null,null,null,null,null,null,null,null,null,null,null,null,null,null,null,null,null,null,null,null,null,0]
[null,9,null,null,null,null,null,null,null,null,null,null,null,null,null,null,null,null,null,null,null,null,null,null,null,null,null,null,null,null,null,0]
[null,10,null,null,null,null,null,null,null,null,null,null,null,null,null,null,null,null,null,null,null,null,null,null,null,null,null,null,null,null,null,0]
[null,null,null,null,null,null,null,null,null,null,null,null,null,null,null,null,null,null,null,null,null,null,null,null,null,null,null,null,null,null,null,0]
[null,null,null,null,null,null,null,null,null,null,null,null,null,null,null,null,null,null,null,null,null,null,null,null,null,null,null,null,null,null,null,0]
[null,null,null,null,null,null,null,null,null,null,null,null,null,null,null,null,null,null,null,null,null,null,null,null,null,null,null,null,null,null,null,0]
[null,null,null,null,null,null,null,null,null,null,null,null,null,null,null,null,null,null,null,null,null,null,null,null,null,null,null,null,null,null,null,0]
[null,null,null,null,null,null,null,null,null,null,null,null,null,null,null,null,null,null,null,null,null,null,null,null,null,null,null,null,null,null,null,0]
[null,null,null,null,null,null,null,null,null,null,null,null,null,null,null,null,null,null,null,null,null,null,null,null,null,null,null,null,null,null,null,0]
[null,null,null,null,null,null,null,null,null,null,null,null,null,null,null,null,null,null,null,null,null,null,null,null,null,null,null,null,null,null,null,0]
[null,null,null,null,null,null,null,null,null,null,null,null,null,null,null,null,null,null,null,null,null,null,null,null,null,null,null,null,null,null,null,0]
[null,null,null,null,null,null,null,null,null,null,null,null,null,null,null,null,null,null,null,null,null,null,null,null,null,null,null,null,null,null,null,0]
[null,null,null,null,null,null,null,null,null,null,null,null,null,null,null,null,null,null,null,null,null,null,null,null,null,null,null,null,null,null,null,0]
[null,null,null,null,null,null,null,null,null,null,null,null,null,null,null,null,null,null,null,null,null,null,null,null,null,null,null,null,null,null,null,0]
[null,null,null,null,null,null,null,null,null,null,null,null,null,null,null,null,null,null,null,null,null,null,null,null,null,null,null,null,null,null,null,0]
[null,null,null,null,null,null,null,null,null,null,null,null,null,null,null,null,null,null,null,null,null,null,null,null,null,null,null,null,null,null,null,0]
[null,null,null,null,null,null,null,null,null,null,null,null,null,null,null,null,null,null,null,null,null,null,null,null,null,null,null,null,null,null,null,0]
[null,null,null,null,null,null,null,null,null,null,null,null,null,null,null,null,null,null,null,null,null,null,null,null,null,null,null,null,null,null,null,0]
[null,null,null,null,null,null,null,null,null,null,null,null,null,null,null,null,null,null,null,null,null,null,null,null,null,null,null,null,null,null,null,0]
[null,null,null,null,null,null,null,null,null,null,null,null,null,null,null,null,null,null,null,null,null,null,null,null,null,null,null,null,null,null,null,0]
[null,null,null,null,null,null,null,null,null,null,null,null,null,null,null,null,null,null,null,null,null,null,null,null,null,null,null,null,null,null,null,0]
[null,null,null,null,null,null,null,null,null,null,null,null,null,null,null,null,null,null,null,null,null,null,null,null,null,null,null,null,null,null,null,0]
[null,null,null,null,null,null,null,null,null,null,null,null,null,null,null,null,null,null,null,null,null,null,null,null,null,null,null,null,null,null,null,0]
[null,null,null,null,null,null,null,null,null,null,null,null,null,null,null,null,null,null,null,null,null,null,null,null,null,null,null,null,null,null,null,0]
[null,null,null,null,null,null,null,null,null,null,null,null,null,null,null,null,null,null,null,null,null,null,null,null,null,null,null,null,null,null,null,0]
[null,null,null,null,null,null,null,null,null,null,null,null,null,null,null,null,null,null,null,null,null,null,null,null,null,null,null,null,null,null,null,0]
[null,null,null,null,null,null,null,null,null,null,null,null,null,null,null,null,null,null,null,null,null,null,null,null,null,null,null,null,null,null,null,0]
[null,null,null,null,null,null,null,null,null,null,null,null,null,null,null,null,null,null,null,null,null,null,null,null,null,null,null,null,null,null,null,0]
[null,null,null,null,null,null,null,null,null,null,null,null,null,null,null,null,null,null,null,null,null,null,null,null,null,null,null,null,null,null,null,0]
[null,null,null,null,null,null,null,null,null,null,null,null,null,null,null,null,null,null,null,null,null,null,null,null,null,null,null,null,null,null,null,0]
[null,null,null,null,null,null,null,null,null,null,null,null,null,null,null,null,null,null,null,null,null,null,null,null,null,null,null,null,null,null,null,0]
[null,null,null,null,null,null,null,null,null,null,null,null,null,null,null,null,null,null,null,null,null,null,null,null,null,null,null,null,null,null,null,0]
[null,null,null,null,null,null,null,null,null,null,null,null,null,null,null,null,null,null,null,null,null,null,null,null,null,null,null,null,null,null,null,0]
[null,null,null,null,null,null,null,null,null,null,null,null,null,null,null,null,null,null,null,null,null,null,null,null,null,null,null,null,null,null,null,0]
[null,null,null,null,null,null,null,null,null,null,null,null,null,null,null,null,null,null,null,null,null,null,null,null,null,null,null,null,null,null,null,0]
[null,null,null,null,null,null,null,null,null,null,null,null,null,null,null,null,null,null,null,null,null,null,null,null,null,null,null,null,null,null,null,0]
[null,null,null,null,null,null,null,null,null,null,null,null,null,null,null,null,null,null,null,null,null,null,null,null,null,null,null,null,null,null,null,0]
[null,null,null,null,null,null,null,null,null,null,null,null,null,null,null,null,null,null,null,null,null,null,null,null,null,null,null,null,null,null,null,0]
[null,null,null,null,null,null,null,null,null,null,null,null,null,null,null,null,null,null,null,null,null,null,null,null,null,null,null,null,null,null,null,0]
[null,null,null,null,null,null,null,null,null,null,null,null,null,null,null,null,null,null,null,null,null,null,null,null,null,null,null,null,null,null,null,0]
[null,null,null,null,null,null,null,null,null,null,null,null,null,null,null,null,null,null,null,null,null,null,null,null,null,null,null,null,null,null,null,0]
[null,null,null,null,null,null,null,null,null,null,null,null,null,null,null,null,null,null,null,null,null,null,null,null,null,null,null,null,null,null,null,0]
[null,null,null,null,null,null,null,null,null,null,null,null,null,null,null,null,null,null,null,null,null,null,null,null,null,null,null,null,null,null,null,0]
[null,null,null,null,null,null,null,null,null,null,null,null,null,null,null,null,null,null,null,null,null,null,null,null,null,null,null,null,null,null,null,0]
[null,null,null,null,null,null,null,null,null,null,null,null,null,null,null,null,null,null,null,null,null,null,null,null,null,null,null,null,null,null,null,0]
[null,null,null,null,null,null,null,null,null,null,null,null,null,null,null,null,null,null,null,null,null,null,null,null,null,null,null,null,null,null,null,0]
[null,null,null,null,null,null,null,null,null,null,null,null,null,null,null,null,null,null,null,null,null,null,null,null,null,null,null,null,null,null,null,0]
[null,null,null,null,null,null,null,null,null,null,null,null,null,null,null,null,null,null,null,null,null,null,null,null,null,null,null,null,null,null,null,0]
[null,null,null,null,null,null,null,null,null,null,null,null,null,null,null,null,null,null,null,null,null,null,null,null,null,null,null,null,null,null,null,0]
[null,null,null,null,null,null,null,null,null,null,null,null,null,null,null,null,null,null,null,null,null,null,null,null,null,null,null,null,null,null,null,0]
[null,null,null,null,null,null,null,null,null,null,null,null,null,null,null,null,null,null,null,null,null,null,null,null,null,null,null,null,null,null,null,0]
[null,null,null,null,null,null,null,null,null,null,null,null,null,null,null,null,null,null,null,null,null,null,null,null,null,null,null,null,null,null,null,0]
[null,null,null,null,null,null,null,null,null,null,null,null,null,null,null,null,null,null,null,null,null,null,null,null,null,null,null,null,null,null,null,0]
[null,null,null,null,null,null,null,null,null,null,null,null,null,null,null,null,null,null,null,null,null,null,null,null,null,null,null,null,null,null,null,0]
[null,null,null,null,null,null,null,null,null,null,null,null,null,null,null,null,null,null,null,null,null,null,null,null,null,null,null,null,null,null,null,0]
[null,null,null,null,null,null,null,null,null,null,null,null,null,null,null,null,null,null,null,null,null,null,null,null,null,null,null,null,null,null,null,0]
[null,null,null,null,null,null,null,null,null,null,null,null,null,null,null,null,null,null,null,null,null,null,null,null,null,null,null,null,null,null,null,0]
[null,null,null,null,null,null,null,null,null,null,null,null,null,null,null,null,null,null,null,null,null,null,null,null,null,null,null,null,null,null,null,0]
[null,null,null,null,null,null,null,null,null,null,null,null,null,null,null,null,null,null,null,null,null,null,null,null,null,null,null,null,null,null,null,0]
[null,null,null,null,null,null,null,null,null,null,null,null,null,null,null,null,null,null,null,null,null,null,null,null,null,null,null,null,null,null,null,{"$f":"COUNTIF($D$3:$AC$230,B69)","v":0}]
[null,null,null,null,null,null,null,null,null,null,null,null,null,null,null,null,null,null,null,null,null,null,null,null,null,null,null,null,null,null,null,0]
[null,null,null,null,null,null,null,null,null,null,null,null,null,null,null,null,null,null,null,null,null,null,null,null,null,null,null,null,null,null,null,0]
[null,null,null,null,null,null,null,null,null,null,null,null,null,null,null,null,null,null,null,null,null,null,null,null,null,null,null,null,null,null,null,0]
[null,null,null,null,null,null,null,null,null,null,null,null,null,null,null,null,null,null,null,null,null,null,null,null,null,null,null,null,null,null,null,0]
[null,null,null,null,null,null,null,null,null,null,null,null,null,null,null,null,null,null,null,null,null,null,null,null,null,null,null,null,null,null,null,0]
[null,null,null,null,null,null,null,null,null,null,null,null,null,null,null,null,null,null,null,null,null,null,null,null,null,null,null,null,null,null,null,0]
[null,null,null,null,null,null,null,null,null,null,null,null,null,null,null,null,null,null,null,null,null,null,null,null,null,null,null,null,null,null,null,0]
[null,null,null,null,null,null,null,null,null,null,null,null,null,null,null,null,null,null,null,null,null,null,null,null,null,null,null,null,null,null,null,0]
[null,null,null,null,null,null,null,null,null,null,null,null,null,null,null,null,null,null,null,null,null,null,null,null,null,null,null,null,null,null,null,0]
[null,null,null,null,null,null,null,null,null,null,null,null,null,null,null,null,null,null,null,null,null,null,null,null,null,null,null,null,null,null,null,0]
[null,null,null,null,null,null,null,null,null,null,null,null,null,null,null,null,null,null,null,null,null,null,null,null,null,null,null,null,null,null,null,0]
[null,null,null,null,null,null,null,null,null,null,null,null,null,null,null,null,null,null,null,null,null,null,null,null,null,null,null,null,null,null,null,0]
[null,null,null,null,null,null,null,null,null,null,null,null,null,null,null,null,null,null,null,null,null,null,null,null,null,null,null,null,null,null,null,0]
[null,null,null,null,null,null,null,null,null,null,null,null,null,null,null,null,null,null,null,null,null,null,null,null,null,null,null,null,null,null,null,0]
[null,null,null,null,null,null,null,null,null,null,null,null,null,null,null,null,null,null,null,null,null,null,null,null,null,null,null,null,null,null,null,0]
[null,null,null,null,null,null,null,null,null,null,null,null,null,null,null,null,null,null,null,null,null,null,null,null,null,null,null,null,null,null,null,0]
[null,null,null,null,null,null,null,null,null,null,null,null,null,null,null,null,null,null,null,null,null,null,null,null,null,null,null,null,null,null,null,0]
[null,null,null,null,null,null,null,null,null,null,null,null,null,null,null,null,null,null,null,null,null,null,null,null,null,null,null,null,null,null,null,0]
[null,null,null,null,null,null,null,null,null,null,null,null,null,null,null,null,null,null,null,null,null,null,null,null,null,null,null,null,null,null,null,0]
[null,null,null,null,null,null,null,null,null,null,null,null,null,null,null,null,null,null,null,null,null,null,null,null,null,null,null,null,null,null,null,0]
[null,null,null,null,null,null,null,null,null,null,null,null,null,null,null,null,null,null,null,null,null,null,null,null,null,null,null,null,null,null,null,0]
[null,null,null,null,null,null,null,null,null,null,null,null,null,null,null,null,null,null,null,null,null,null,null,null,null,null,null,null,null,null,null,0]
[null,null,null,null,null,null,null,null,null,null,null,null,null,null,null,null,null,null,null,null,null,null,null,null,null,null,null,null,null,null,null,0]
[null,null,null,null,null,null,null,null,null,null,null,null,null,null,null,null,null,null,null,null,null,null,null,null,null,null,null,null,null,null,null,0]
[null,null,null,null,null,null,null,null,null,null,null,null,null,null,null,null,null,null,null,null,null,null,null,null,null,null,null,null,null,null,null,0]
[null,null,null,null,null,null,null,null,null,null,null,null,null,null,null,null,null,null,null,null,null,null,null,null,null,null,null,null,null,null,null,0]
[null,null,null,null,null,null,null,null,null,null,null,null,null,null,null,null,null,null,null,null,null,null,null,null,null,null,null,null,null,null,null,0]
[null,null,null,null,null,null,null,null,null,null,null,null,null,null,null,null,null,null,null,null,null,null,null,null,null,null,null,null,null,null,null,0]
[null,null,null,null,null,null,null,null,null,null,null,null,null,null,null,null,null,null,null,null,null,null,null,null,null,null,null,null,null,null,null,0]
[null,null,null,null,null,null,null,null,null,null,null,null,null,null,null,null,null,null,null,null,null,null,null,null,null,null,null,null,null,null,null,0]
[null,null,null,null,null,null,null,null,null,null,null,null,null,null,null,null,null,null,null,null,null,null,null,null,null,null,null,null,null,null,null,0]
[null,null,null,null,null,null,null,null,null,null,null,null,null,null,null,null,null,null,null,null,null,null,null,null,null,null,null,null,null,null,null,0]
[null,null,null,null,null,null,null,null,null,null,null,null,null,null,null,null,null,null,null,null,null,null,null,null,null,null,null,null,null,null,null,0]
[null,null,null,null,null,null,null,null,null,null,null,null,null,null,null,null,null,null,null,null,null,null,null,null,null,null,null,null,null,null,null,0]
[null,null,null,null,null,null,null,null,null,null,null,null,null,null,null,null,null,null,null,null,null,null,null,null,null,null,null,null,null,null,null,0]
[null,null,null,null,null,null,null,null,null,null,null,null,null,null,null,null,null,null,null,null,null,null,null,null,null,null,null,null,null,null,null,0]
[null,null,null,null,null,null,null,null,null,null,null,null,null,null,null,null,null,null,null,null,null,null,null,null,null,null,null,null,null,null,null,0]
[null,null,null,null,null,null,null,null,null,null,null,null,null,null,null,null,null,null,null,null,null,null,null,null,null,null,null,null,null,null,null,0]
[null,null,null,null,null,null,null,null,null,null,null,null,null,null,null,null,null,null,null,null,null,null,null,null,null,null,null,null,null,null,null,0]
[null,null,null,null,null,null,null,null,null,null,null,null,null,null,null,null,null,null,null,null,null,null,null,null,null,null,null,null,null,null,null,0]
[null,null,null,null,null,null,null,null,null,null,null,null,null,null,null,null,null,null,null,null,null,null,null,null,null,null,null,null,null,null,null,0]
[null,null,null,null,null,null,null,null,null,null,null,null,null,null,null,null,null,null,null,null,null,null,null,null,null,null,null,null,null,null,null,0]
[null,null,null,null,null,null,null,null,null,null,null,null,null,null,null,null,null,null,null,null,null,null,null,null,null,null,null,null,null,null,null,0]
[null,null,null,null,null,null,null,null,null,null,null,null,null,null,null,null,null,null,null,null,null,null,null,null,null,null,null,null,null,null,null,0]
[null,null,null,null,null,null,null,null,null,null,null,null,null,null,null,null,null,null,null,null,null,null,null,null,null,null,null,null,null,null,null,0]
[null,null,null,null,null,null,null,null,null,null,null,null,null,null,null,null,null,null,null,null,null,null,null,null,null,null,null,null,null,null,null,0]
[null,null,null,null,null,null,null,null,null,null,null,null,null,null,null,null,null,null,null,null,null,null,null,null,null,null,null,null,null,null,null,0]
[null,null,null,null,null,null,null,null,null,null,null,null,null,null,null,null,null,null,null,null,null,null,null,null,null,null,null,null,null,null,null,0]
[null,null,null,null,null,null,null,null,null,null,null,null,null,null,null,null,null,null,null,null,null,null,null,null,null,null,null,null,null,null,null,0]
[null,null,null,null,null,null,null,null,null,null,null,null,null,null,null,null,null,null,null,null,null,null,null,null,null,null,null,null,null,null,null,0]
[null,null,null,null,null,null,null,null,null,null,null,null,null,null,null,null,null,null,null,null,null,null,null,null,null,null,null,null,null,null,null,0]
[null,null,null,null,null,null,null,null,null,null,null,null,null,null,null,null,null,null,null,null,null,null,null,null,null,null,null,null,null,null,null,0]
[null,null,null,null,null,null,null,null,null,null,null,null,null,null,null,null,null,null,null,null,null,null,null,null,null,null,null,null,null,null,null,0]
[null,null,null,null,null,null,null,null,null,null,null,null,null,null,null,null,null,null,null,null,null,null,null,null,null,null,null,null,null,null,null,0]
[null,null,null,null,null,null,null,null,null,null,null,null,null,null,null,null,null,null,null,null,null,null,null,null,null,null,null,null,null,null,null,0]
[null,null,null,null,null,null,null,null,null,null,null,null,null,null,null,null,null,null,null,null,null,null,null,null,null,null,null,null,null,null,null,0]
[null,null,null,null,null,null,null,null,null,null,null,null,null,null,null,null,null,null,null,null,null,null,null,null,null,null,null,null,null,null,null,0]
[null,null,null,null,null,null,null,null,null,null,null,null,null,null,null,null,null,null,null,null,null,null,null,null,null,null,null,null,null,null,null,0]
[null,null,null,null,null,null,null,null,null,null,null,null,null,null,null,null,null,null,null,null,null,null,null,null,null,null,null,null,null,null,null,0]
[null,null,null,null,null,null,null,null,null,null,null,null,null,null,null,null,null,null,null,null,null,null,null,null,null,null,null,null,null,null,null,0]
[null,null,null,null,null,null,null,null,null,null,null,null,null,null,null,null,null,null,null,null,null,null,null,null,null,null,null,null,null,null,null,0]
[null,null,null,null,null,null,null,null,null,null,null,null,null,null,null,null,null,null,null,null,null,null,null,null,null,null,null,null,null,null,null,0]
[null,null,null,null,null,null,null,null,null,null,null,null,null,null,null,null,null,null,null,null,null,null,null,null,null,null,null,null,null,null,null,0]
[null,null,null,null,null,null,null,null,null,null,null,null,null,null,null,null,null,null,null,null,null,null,null,null,null,null,null,null,null,null,null,{"$f":"COUNTIF($D$3:$AC$230,B133)","v":0}]
[null,null,null,null,null,null,null,null,null,null,null,null,null,null,null,null,null,null,null,null,null,null,null,null,null,null,null,null,null,null,null,0]
[null,null,null,null,null,null,null,null,null,null,null,null,null,null,null,null,null,null,null,null,null,null,null,null,null,null,null,null,null,null,null,0]
[null,null,null,null,null,null,null,null,null,null,null,null,null,null,null,null,null,null,null,null,null,null,null,null,null,null,null,null,null,null,null,0]
[null,null,null,null,null,null,null,null,null,null,null,null,null,null,null,null,null,null,null,null,null,null,null,null,null,null,null,null,null,null,null,0]
[null,null,null,null,null,null,null,null,null,null,null,null,null,null,null,null,null,null,null,null,null,null,null,null,null,null,null,null,null,null,null,0]
[null,null,null,null,null,null,null,null,null,null,null,null,null,null,null,null,null,null,null,null,null,null,null,null,null,null,null,null,null,null,null,0]
[null,null,null,null,null,null,null,null,null,null,null,null,null,null,null,null,null,null,null,null,null,null,null,null,null,null,null,null,null,null,null,0]
[null,null,null,null,null,null,null,null,null,null,null,null,null,null,null,null,null,null,null,null,null,null,null,null,null,null,null,null,null,null,null,0]
[null,null,null,null,null,null,null,null,null,null,null,null,null,null,null,null,null,null,null,null,null,null,null,null,null,null,null,null,null,null,null,0]
[null,null,null,null,null,null,null,null,null,null,null,null,null,null,null,null,null,null,null,null,null,null,null,null,null,null,null,null,null,null,null,0]
[null,null,null,null,null,null,null,null,null,null,null,null,null,null,null,null,null,null,null,null,null,null,null,null,null,null,null,null,null,null,null,0]
[null,null,null,null,null,null,null,null,null,null,null,null,null,null,null,null,null,null,null,null,null,null,null,null,null,null,null,null,null,null,null,0]
[null,null,null,null,null,null,null,null,null,null,null,null,null,null,null,null,null,null,null,null,null,null,null,null,null,null,null,null,null,null,null,0]
[null,null,null,null,null,null,null,null,null,null,null,null,null,null,null,null,null,null,null,null,null,null,null,null,null,null,null,null,null,null,null,0]
[null,null,null,null,null,null,null,null,null,null,null,null,null,null,null,null,null,null,null,null,null,null,null,null,null,null,null,null,null,null,null,0]
[null,null,null,null,null,null,null,null,null,null,null,null,null,null,null,null,null,null,null,null,null,null,null,null,null,null,null,null,null,null,null,0]
[null,null,null,null,null,null,null,null,null,null,null,null,null,null,null,null,null,null,null,null,null,null,null,null,null,null,null,null,null,null,null,0]
[null,null,null,null,null,null,null,null,null,null,null,null,null,null,null,null,null,null,null,null,null,null,null,null,null,null,null,null,null,null,null,0]
[null,null,null,null,null,null,null,null,null,null,null,null,null,null,null,null,null,null,null,null,null,null,null,null,null,null,null,null,null,null,null,{"$f":"COUNTIF($D$3:$AC$230,B152)","v":0}]
[null,null,null,null,null,null,null,null,null,null,null,null,null,null,null,null,null,null,null,null,null,null,null,null,null,null,null,null,null,null,null,{"$f":"COUNTIF($D$3:$AC$230,B153)","v":0}]
[null,null,null,null,null,null,null,null,null,null,null,null,null,null,null,null,null,null,null,null,null,null,null,null,null,null,null,null,null,null,null,{"$f":"COUNTIF($D$3:$AC$230,B154)","v":0}]
[null,null,null,null,null,null,null,null,null,null,null,null,null,null,null,null,null,null,null,null,null,null,null,null,null,null,null,null,null,null,null,0]
[null,null,null,null,null,null,null,null,null,null,null,null,null,null,null,null,null,null,null,null,null,null,null,null,null,null,null,null,null,null,null,0]
[null,null,null,null,null,null,null,null,null,null,null,null,null,null,null,null,null,null,null,null,null,null,null,null,null,null,null,null,null,null,null,0]
[null,null,null,null,null,null,null,null,null,null,null,null,null,null,null,null,null,null,null,null,null,null,null,null,null,null,null,null,null,null,null,0]
[null,null,null,null,null,null,null,null,null,null,null,null,null,null,null,null,null,null,null,null,null,null,null,null,null,null,null,null,null,null,null,0]
[null,null,null,null,null,null,null,null,null,null,null,null,null,null,null,null,null,null,null,null,null,null,null,null,null,null,null,null,null,null,null,0]
[null,null,null,null,null,null,null,null,null,null,null,null,null,null,null,null,null,null,null,null,null,null,null,null,null,null,null,null,null,null,null,0]
[null,null,null,null,null,null,null,null,null,null,null,null,null,null,null,null,null,null,null,null,null,null,null,null,null,null,null,null,null,null,null,0]
[null,null,null,null,null,null,null,null,null,null,null,null,null,null,null,null,null,null,null,null,null,null,null,null,null,null,null,null,null,null,null,0]
[null,null,null,null,null,null,null,null,null,null,null,null,null,null,null,null,null,null,null,null,null,null,null,null,null,null,null,null,null,null,null,0]
[null,null,null,null,null,null,null,null,null,null,null,null,null,null,null,null,null,null,null,null,null,null,null,null,null,null,null,null,null,null,null,0]
[null,null,null,null,null,null,null,null,null,null,null,null,null,null,null,null,null,null,null,null,null,null,null,null,null,null,null,null,null,null,null,0]
[null,null,null,null,null,null,null,null,null,null,null,null,null,null,null,null,null,null,null,null,null,null,null,null,null,null,null,null,null,null,null,0]
[null,null,null,null,null,null,null,null,null,null,null,null,null,null,null,null,null,null,null,null,null,null,null,null,null,null,null,null,null,null,null,0]
[null,null,null,null,null,null,null,null,null,null,null,null,null,null,null,null,null,null,null,null,null,null,null,null,null,null,null,null,null,null,null,0]
[null,null,null,null,null,null,null,null,null,null,null,null,null,null,null,null,null,null,null,null,null,null,null,null,null,null,null,null,null,null,null,0]
[null,null,null,null,null,null,null,null,null,null,null,null,null,null,null,null,null,null,null,null,null,null,null,null,null,null,null,null,null,null,null,0]
[null,null,null,null,null,null,null,null,null,null,null,null,null,null,null,null,null,null,null,null,null,null,null,null,null,null,null,null,null,null,null,0]
[null,null,null,null,null,null,null,null,null,null,null,null,null,null,null,null,null,null,null,null,null,null,null,null,null,null,null,null,null,null,null,0]
[null,null,null,null,null,null,null,null,null,null,null,null,null,null,null,null,null,null,null,null,null,null,null,null,null,null,null,null,null,null,null,0]
[null,null,null,null,null,null,null,null,null,null,null,null,null,null,null,null,null,null,null,null,null,null,null,null,null,null,null,null,null,null,null,0]
[null,null,null,null,null,null,null,null,null,null,null,null,null,null,null,null,null,null,null,null,null,null,null,null,null,null,null,null,null,null,null,0]
[null,null,null,null,null,null,null,null,null,null,null,null,null,null,null,null,null,null,null,null,null,null,null,null,null,null,null,null,null,null,null,0]
[null,null,null,null,null,null,null,null,null,null,null,null,null,null,null,null,null,null,null,null,null,null,null,null,null,null,null,null,null,null,null,0]
[null,null,null,null,null,null,null,null,null,null,null,null,null,null,null,null,null,null,null,null,null,null,null,null,null,null,null,null,null,null,null,0]
[null,null,null,null,null,null,null,null,null,null,null,null,null,null,null,null,null,null,null,null,null,null,null,null,null,null,null,null,null,null,null,0]
[null,null,null,null,null,null,null,null,null,null,null,null,null,null,null,null,null,null,null,null,null,null,null,null,null,null,null,null,null,null,null,0]
[null,null,null,null,null,null,null,null,null,null,null,null,null,null,null,null,null,null,null,null,null,null,null,null,null,null,null,null,null,null,null,0]
[null,null,null,null,null,null,null,null,null,null,null,null,null,null,null,null,null,null,null,null,null,null,null,null,null,null,null,null,null,null,null,0]
[null,null,null,null,null,null,null,null,null,null,null,null,null,null,null,null,null,null,null,null,null,null,null,null,null,null,null,null,null,null,null,0]
[null,null,null,null,null,null,null,null,null,null,null,null,null,null,null,null,null,null,null,null,null,null,null,null,null,null,null,null,null,null,null,0]
[null,null,null,null,null,null,null,null,null,null,null,null,null,null,null,null,null,null,null,null,null,null,null,null,null,null,null,null,null,null,null,0]
[null,null,null,null,null,null,null,null,null,null,null,null,null,null,null,null,null,null,null,null,null,null,null,null,null,null,null,null,null,null,null,0]
[null,null,null,null,null,null,null,null,null,null,null,null,null,null,null,null,null,null,null,null,null,null,null,null,null,null,null,null,null,null,null,0]
[null,null,null,null,null,null,null,null,null,null,null,null,null,null,null,null,null,null,null,null,null,null,null,null,null,null,null,null,null,null,null,0]
[null,null,null,null,null,null,null,null,null,null,null,null,null,null,null,null,null,null,null,null,null,null,null,null,null,null,null,null,null,null,null,0]
[null,null,null,null,null,null,null,null,null,null,null,null,null,null,null,null,null,null,null,null,null,null,null,null,null,null,null,null,null,null,null,0]
[null,null,null,null,null,null,null,null,null,null,null,null,null,null,null,null,null,null,null,null,null,null,null,null,null,null,null,null,null,null,null,0]
[null,null,null,null,null,null,null,null,null,null,null,null,null,null,null,null,null,null,null,null,null,null,null,null,null,null,null,null,null,null,null,0]
[null,null,null,null,null,null,null,null,null,null,null,null,null,null,null,null,null,null,null,null,null,null,null,null,null,null,null,null,null,null,null,0]
[null,null,null,null,null,null,null,null,null,null,null,null,null,null,null,null,null,null,null,null,null,null,null,null,null,null,null,null,null,null,null,0]
[null,null,null,null,null,null,null,null,null,null,null,null,null,null,null,null,null,null,null,null,null,null,null,null,null,null,null,null,null,null,null,0]
[null,null,null,null,null,null,null,null,null,null,null,null,null,null,null,null,null,null,null,null,null,null,null,null,null,null,null,null,null,null,null,0]
[null,null,null,null,null,null,null,null,null,null,null,null,null,null,null,null,null,null,null,null,null,null,null,null,null,null,null,null,null,null,null,0]
[null,null,null,null,null,null,null,null,null,null,null,null,null,null,null,null,null,null,null,null,null,null,null,null,null,null,null,null,null,null,null,0]
[null,null,null,null,null,null,null,null,null,null,null,null,null,null,null,null,null,null,null,null,null,null,null,null,null,null,null,null,null,null,null,0]
[null,null,null,null,null,null,null,null,null,null,null,null,null,null,null,null,null,null,null,null,null,null,null,null,null,null,null,null,null,null,null,0]
[null,null,null,null,null,null,null,null,null,null,null,null,null,null,null,null,null,null,null,null,null,null,null,null,null,null,null,null,null,null,null,0]
[null,null,null,null,null,null,null,null,null,null,null,null,null,null,null,null,null,null,null,null,null,null,null,null,null,null,null,null,null,null,null,0]
[null,null,null,null,null,null,null,null,null,null,null,null,null,null,null,null,null,null,null,null,null,null,null,null,null,null,null,null,null,null,null,0]
[null,null,null,null,null,null,null,null,null,null,null,null,null,null,null,null,null,null,null,null,null,null,null,null,null,null,null,null,null,null,null,0]
[null,null,null,null,null,null,null,null,null,null,null,null,null,null,null,null,null,null,null,null,null,null,null,null,null,null,null,null,null,null,null,0]
[null,null,null,null,null,null,null,null,null,null,null,null,null,null,null,null,null,null,null,null,null,null,null,null,null,null,null,null,null,null,null,0]
[null,null,null,null,null,null,null,null,null,null,null,null,null,null,null,null,null,null,null,null,null,null,null,null,null,null,null,null,null,null,null,0]
[null,null,null,null,null,null,null,null,null,null,null,null,null,null,null,null,null,null,null,null,null,null,null,null,null,null,null,null,null,null,null,0]
[null,null,null,null,null,null,null,null,null,null,null,null,null,null,null,null,null,null,null,null,null,null,null,null,null,null,null,null,null,null,null,0]
[null,null,null,null,null,null,null,null,null,null,null,null,null,null,null,null,null,null,null,null,null,null,null,null,null,null,null,null,null,null,null,0]
[null,null,null,null,null,null,null,null,null,null,null,null,null,null,null,null,null,null,null,null,null,null,null,null,null,null,null,null,null,null,null,0]
[null,null,null,null,null,null,null,null,null,null,null,null,null,null,null,null,null,null,null,null,null,null,null,null,null,null,null,null,null,null,null,0]
[null,null,null,null,null,null,null,null,null,null,null,null,null,null,null,null,null,null,null,null,null,null,null,null,null,null,null,null,null,null,null,0]
[null,null,null,null,null,null,null,null,null,null,null,null,null,null,null,null,null,null,null,null,null,null,null,null,null,null,null,null,null,null,null,0]
[null,null,null,null,null,null,null,null,null,null,null,null,null,null,null,null,null,null,null,null,null,null,null,null,null,null,null,null,null,null,null,0]
[null,null,null,null,null,null,null,null,null,null,null,null,null,null,null,null,null,null,null,null,null,null,null,null,null,null,null,null,null,null,null,0]
[null,null,null,null,null,null,null,null,null,null,null,null,null,null,null,null,null,null,null,null,null,null,null,null,null,null,null,null,null,null,null,{"$f":"COUNTIF($D$3:$AC$230,B218)","v":0}]
[null,null,null,null,null,null,null,null,null,null,null,null,null,null,null,null,null,null,null,null,null,null,null,null,null,null,null,null,null,null,null,0]
[null,null,null,null,null,null,null,null,null,null,null,null,null,null,null,null,null,null,null,null,null,null,null,null,null,null,null,null,null,null,null,0]
[null,null,null,null,null,null,null,null,null,null,null,null,null,null,null,null,null,null,null,null,null,null,null,null,null,null,null,null,null,null,null,0]
[null,null,null,null,null,null,null,null,null,null,null,null,null,null,null,null,null,null,null,null,null,null,null,null,null,null,null,null,null,null,null,0]
[null,null,null,null,null,null,null,null,null,null,null,null,null,null,null,null,null,null,null,null,null,null,null,null,null,null,null,null,null,null,null,0]
[null,null,null,null,null,null,null,null,null,null,null,null,null,null,null,null,null,null,null,null,null,null,null,null,null,null,null,null,null,null,null,0]
[null,null,null,null,null,null,null,null,null,null,null,null,null,null,null,null,null,null,null,null,null,null,null,null,null,null,null,null,null,null,null,0]
[null,null,null,null,null,null,null,null,null,null,null,null,null,null,null,null,null,null,null,null,null,null,null,null,null,null,null,null,null,null,null,0]
[null,null,null,null,null,null,null,null,null,null,null,null,null,null,null,null,null,null,null,null,null,null,null,null,null,null,null,null,null,null,null,0]
[null,null,null,null,null,null,null,null,null,null,null,null,null,null,null,null,null,null,null,null,null,null,null,null,null,null,null,null,null,null,null,0]
[null,null,null,null,null,null,null,null,null,null,null,null,null,null,null,null,null,null,null,null,null,null,null,null,null,null,null,null,null,null,null,0]
[null,null,null,null,null,null,null,null,null,null,null,null,null,null,null,null,null,null,null,null,null,null,null,null,null,null,null,null,null,null,null,0]
[null,null,null,null,null,null,null,null,null,null,null,null,null,null,null,null,null,null,null,null,null,null,null,null,null,null,null,null,null,null,null,0]
[null,null,null,null,null,null,null,null,null,null,null,null,null,null,null,null,null,null,null,null,null,null,null,null,null,null,null,null,null,null,null,0]
[null,null,null,null,null,null,null,null,null,null,null,null,null,null,null,null,null,null,null,null,null,null,null,null,null,null,null,null,null,null,null,0]
[null,null,null,null,null,null,null,null,null,null,null,null,null,null,null,null,null,null,null,null,null,null,null,null,null,null,null,null,null,null,null,0]
[null,null,null,null,null,null,null,null,null,null,null,null,null,null,null,null,null,null,null,null,null,null,null,null,null,null,null,null,null,null,null,0]
[null,null,null,null,null,null,null,null,null,null,null,null,null,null,null,null,null,null,null,null,null,null,null,null,null,null,null,null,null,null,null,0]
[null,null,null,null,null,null,null,null,null,null,null,null,null,null,null,null,null,null,null,null,null,null,null,null,null,null,null,null,null,null,null,0]
[null,null,null,null,null,null,null,null,null,null,null,null,null,null,null,null,null,null,null,null,null,null,null,null,null,null,null,null,null,null,null,0]
[null,null,null,null,null,null,null,null,null,null,null,null,null,null,null,null,null,null,null,null,null,null,null,null,null,null,null,null,null,null,null,0]
[null,null,null,null,null,null,null,null,null,null,null,null,null,null,null,null,null,null,null,null,null,null,null,null,null,null,null,null,null,null,null,0]
[null,null,null,null,null,null,null,null,null,null,null,null,null,null,null,null,null,null,null,null,null,null,null,null,null,null,null,null,null,null,null,0]
[null,null,null,null,null,null,null,null,null,null,null,null,null,null,null,null,null,null,null,null,null,null,null,null,null,null,null,null,null,null,null,0]
[null,null,null,null,null,null,null,null,null,null,null,null,null,null,null,null,null,null,null,null,null,null,null,null,null,null,null,null,null,null,null,0]
[null,null,null,null,null,null,null,null,null,null,null,null,null,null,null,null,null,null,null,null,null,null,null,null,null,null,null,null,null,null,null,0]
[null,null,null,null,null,null,null,null,null,null,null,null,null,null,null,null,null,null,null,null,null,null,null,null,null,null,null,null,null,null,null,0]
[null,null,null,null,null,null,null,null,null,null,null,null,null,null,null,null,null,null,null,null,null,null,null,null,null,null,null,null,null,null,null,0]
[null,null,null,null,null,null,null,null,null,null,null,null,null,null,null,null,null,null,null,null,null,null,null,null,null,null,null,null,null,null,null,0]
[null,null,null,null,null,null,null,null,null,null,null,null,null,null,null,null,null,null,null,null,null,null,null,null,null,null,null,null,null,null,null,0]
[null,null,null,null,null,null,null,null,null,null,null,null,null,null,null,null,null,null,null,null,null,null,null,null,null,null,null,null,null,null,null,0]
[null,null,null,null,null,null,null,null,null,null,null,null,null,null,null,null,null,null,null,null,null,null,null,null,null,null,null,null,null,null,null,0]
[null,null,null,null,null,null,null,null,null,null,null,null,null,null,null,null,null,null,null,null,null,null,null,null,null,null,null,null,null,null,null,0]
[null,null,null,null,null,null,null,null,null,null,null,null,null,null,null,null,null,null,null,null,null,null,null,null,null,null,null,null,null,null,null,0]
[null,null,null,null,null,null,null,null,null,null,null,null,null,null,null,null,null,null,null,null,null,null,null,null,null,null,null,null,null,null,null,0]
[null,null,null,null,null,null,null,null,null,null,null,null,null,null,null,null,null,null,null,null,null,null,null,null,null,null,null,null,null,null,null,0]
[null,null,null,null,null,null,null,null,null,null,null,null,null,null,null,null,null,null,null,null,null,null,null,null,null,null,null,null,null,null,null,0]
[null,null,null,null,null,null,null,null,null,null,null,null,null,null,null,null,null,null,null,null,null,null,null,null,null,null,null,null,null,null,null,0]

{"sheet":"كشف الملاحظة","index":4,"n_rows":105,"n_cols":33,"rows_kept":105,"cut":false,"hidden":false,"merged":[[56,16,56,20],[57,16,57,20],[58,16,58,20],[59,16,59,20],[60,16,60,20],[61,16,61,20],[31,16,31,20],[32,16,32,20],[33,16,33,20],[34,16,34,20],[35,16,35,20],[36,16,36,20],[37,16,37,20],[38,16,38,20],[46,16,46,20],[41,16,41,20],[42,16,42,20],[43,16,43,20],[44,16,44,20],[45,16,45,20],[49,16,49,20],[50,16,50,20],[51,16,51,20],[52,16,52,20],[53,16,53,20],[54,16,54,20],[55,16,55,20],[20,25,20,27],[19,25,19,27],[23,25,23,27],[103,10,103,11],[104,10,104,11],[93,14,93,19],[96,14,96,19],[97,14,97,19],[98,14,98,19],[101,14,101,19],[102,14,102,19],[103,14,103,19],[104,14,104,19],[93,12,93,13],[96,12,96,13],[97,12,97,13],[98,12,98,13],[101,12,101,13],[102,12,102,13],[103,12,103,13],[104,12,104,13],[96,10,96,11],[97,10,97,11],[98,10,98,11],[99,10,99,11],[100,10,100,11],[101,10,101,11],[102,10,102,11],[17,16,17,20],[23,8,23,15],[18,16,18,20],[79,14,79,19],[83,15,83,19],[84,15,84,19],[85,15,85,19],[86,15,86,19],[87,15,87,19],[88,15,88,19],[82,12,82,13],[83,12,83,13],[84,12,84,13],[85,12,85,13],[86,12,86,13],[87,12,87,13],[88,12,88,13],[89,12,89,13],[62,16,62,20],[63,16,63,20],[93,10,93,11],[90,12,90,13],[91,12,91,13],[92,12,92,13],[19,16,19,20],[20,16,20,20],[21,16,21,20],[22,16,22,20],[23,16,23,20],[24,16,24,20],[25,16,25,20],[26,16,26,20],[27,16,27,20],[28,16,28,20],[29,16,29,20],[30,16,30,20],[80,15,80,19],[81,15,81,19],[82,15,82,19],[91,10,91,11],[92,10,92,11],[64,16,64,20],[47,16,47,20],[48,16,48,20],[79,12,79,13],[78,10,78,13],[80,12,80,13],[81,12,81,13],[102,5,102,7],[103,5,103,7],[79,10,79,11],[95,10,95,11],[77,18,77,21],[73,5,74,5],[73,6,74,6],[75,5,76,5],[75,6,76,6],[59,5,60,5],[59,6,60,6],[61,5,62,5],[61,6,62,6],[89,10,89,11],[90,10,90,11],[78,0,78,8],[78,14,78,21],[104,5,104,7],[80,5,80,7],[81,5,81,7],[82,5,82,7],[83,5,83,7],[84,5,84,7],[85,5,85,7],[86,5,86,7],[87,5,87,7],[88,5,88,7],[89,5,89,7],[90,5,90,7],[91,5,91,7],[96,5,96,7],[97,5,97,7],[98,5,98,7],[6,26,7,26],[1,0,1,5],[1,16,1,20],[12,22,13,22],[6,4,7,8],[9,4,10,8],[12,4,13,8],[6,21,7,21],[9,21,10,21],[12,21,13,21],[2,0,2,5],[3,0,3,5],[4,0,4,5],[6,9,6,12],[7,9,7,12],[8,9,8,12],[9,9,9,12],[1,11,1,15],[6,20,7,20],[9,20,10,20],[12,20,13,20],[2,6,5,20],[11,15,11,19],[6,15,7,19],[43,0,44,0],[41,5,42,5],[99,5,99,7],[100,5,100,7],[101,5,101,7],[92,5,92,7],[93,5,93,7],[94,5,94,7],[95,5,95,7],[45,4,46,4],[47,4,48,4],[61,0,62,0],[41,6,42,6],[43,5,44,5],[43,6,44,6],[45,5,46,5],[45,6,46,6],[41,4,42,4],[43,4,44,4],[53,6,54,6],[55,5,56,5],[55,6,56,6],[57,5,58,5],[57,6,58,6],[39,16,39,20],[40,16,40,20],[15,5,15,6],[15,2,16,2],[57,0,58,0],[59,0,60,0],[53,0,54,0],[55,0,56,0],[51,0,52,0],[49,0,50,0],[47,5,48,5],[47,6,48,6],[49,5,50,5],[49,6,50,6],[51,5,52,5],[51,6,52,6],[53,5,54,5],[45,0,46,0],[49,4,50,4],[51,4,52,4],[53,4,54,4],[47,0,48,0],[41,0,42,0],[35,4,36,4],[25,8,25,15],[26,8,26,15],[28,8,28,15],[25,0,26,0],[27,0,28,0],[29,5,30,5],[29,6,30,6],[31,5,32,5],[31,6,32,6],[29,4,30,4],[31,4,32,4],[29,8,29,15],[30,8,30,15],[31,8,31,15],[31,0,32,0],[27,8,27,15],[32,8,32,15],[24,8,24,15],[23,4,24,4],[21,0,22,0],[21,4,22,4],[20,8,20,15],[21,8,21,15],[19,8,19,15],[18,8,18,15],[17,8,17,15],[19,0,20,0],[19,4,20,4],[17,0,18,0],[17,4,18,4],[23,0,24,0],[17,5,18,5],[17,6,18,6],[19,5,20,5],[19,6,20,6],[21,5,22,5],[21,6,22,6],[23,5,24,5],[23,6,24,6],[22,8,22,15],[15,0,16,0],[15,4,16,4],[6,22,7,22],[9,22,10,22],[10,9,10,12],[11,9,11,12],[12,9,12,12],[13,9,13,12],[6,13,6,14],[7,13,7,14],[9,13,9,14],[10,13,10,14],[12,13,12,14],[13,13,13,14],[8,15,8,19],[15,16,16,20],[9,15,10,19],[12,15,13,19],[15,7,16,15],[55,4,56,4],[57,4,58,4],[27,5,28,5],[27,6,28,6],[25,4,26,4],[27,4,28,4],[29,0,30,0],[33,0,34,0],[35,0,36,0],[33,5,34,5],[33,6,34,6],[35,5,36,5],[35,6,36,6],[33,4,34,4],[25,5,26,5],[25,6,26,6],[39,0,40,0],[37,5,38,5],[37,6,38,6],[39,5,40,5],[39,6,40,6],[37,4,38,4],[39,4,40,4],[37,0,38,0],[73,4,74,4],[75,4,76,4],[73,0,74,0],[63,0,64,0],[65,16,65,20],[66,16,66,20],[67,16,67,20],[68,16,68,20],[69,16,69,20],[70,16,70,20],[71,16,71,20],[72,16,72,20],[73,16,73,20],[74,16,74,20],[75,16,75,20],[76,16,76,20],[71,0,72,0],[69,5,70,5],[69,6,70,6],[71,5,72,5],[71,6,72,6],[71,4,72,4],[75,0,76,0],[65,0,66,0],[67,0,68,0],[65,5,66,5],[65,6,66,6],[67,5,68,5],[67,6,68,6],[69,0,70,0],[67,4,68,4],[69,4,70,4],[63,5,64,5],[63,6,64,6],[61,4,62,4],[63,4,64,4],[65,4,66,4],[59,4,60,4],[79,1,79,7],[95,12,95,19],[94,12,94,19],[99,12,99,19],[100,12,100,19],[74,8,74,15],[73,8,73,15],[89,15,89,19],[90,15,90,19],[91,15,91,19],[92,15,92,19],[80,10,80,11],[81,10,81,11],[82,10,82,11],[83,10,83,11],[84,10,84,11],[85,10,85,11],[86,10,86,11],[87,10,87,11],[88,10,88,11],[33,8,33,15],[34,8,34,15],[35,8,35,15],[36,8,36,15],[37,8,37,15],[38,8,38,15],[39,8,39,15],[40,8,40,15],[41,8,41,15],[42,8,42,15],[43,8,43,15],[44,8,44,15],[45,8,45,15],[46,8,46,15],[47,8,47,15],[51,8,51,15],[48,8,48,15],[49,8,49,15],[50,8,50,15],[52,8,52,15],[53,8,53,15],[54,8,54,15],[55,8,55,15],[56,8,56,15],[57,8,57,15],[58,8,58,15],[59,8,59,15],[60,8,60,15],[61,8,61,15],[62,8,62,15],[63,8,63,15],[64,8,64,15],[65,8,65,15],[66,8,66,15],[67,8,67,15],[68,8,68,15],[69,8,69,15],[70,8,70,15],[71,8,71,15],[72,8,72,15],[75,8,75,15],[76,8,76,15],[17,30,18,30],[19,30,20,30],[21,30,22,30],[23,30,24,30],[25,30,26,30],[27,30,28,30],[29,30,30,30],[31,30,32,30],[33,30,34,30],[35,30,36,30],[37,30,38,30],[39,30,40,30],[41,30,42,30],[43,30,44,30],[45,30,46,30],[47,30,48,30],[49,30,50,30],[51,30,52,30],[53,30,54,30],[35,31,36,31],[37,31,38,31],[39,31,40,31],[41,31,42,31],[43,31,44,31],[45,31,46,31],[47,31,48,31],[73,30,74,30],[75,30,76,30],[55,30,56,30],[57,30,58,30],[59,30,60,30],[61,30,62,30],[63,30,64,30],[65,30,66,30],[67,30,68,30],[69,30,70,30],[71,30,72,30],[49,31,50,31],[51,31,52,31],[53,31,54,31],[55,31,56,31],[57,31,58,31],[59,31,60,31],[17,31,18,31],[19,31,20,31],[21,31,22,31],[23,31,24,31],[25,31,26,31],[27,31,28,31],[29,31,30,31],[31,31,32,31],[33,31,34,31],[61,31,62,31],[63,31,64,31],[65,31,66,31],[67,31,68,31],[69,31,70,31],[71,31,72,31],[73,31,74,31],[75,31,76,31],[17,32,18,32],[19,32,20,32],[21,32,22,32],[23,32,24,32],[25,32,26,32],[27,32,28,32],[29,32,30,32],[31,32,32,32],[33,32,34,32],[35,32,36,32],[37,32,38,32],[39,32,40,32],[41,32,42,32],[43,32,44,32],[45,32,46,32],[47,32,48,32],[49,32,50,32],[51,32,52,32],[53,32,54,32],[73,32,74,32],[75,32,76,32],[55,32,56,32],[57,32,58,32],[59,32,60,32],[61,32,62,32],[63,32,64,32],[65,32,66,32],[67,32,68,32],[69,32,70,32],[71,32,72,32]]}
[null,null,null,null,null,null,null,null,null,null,null,null,null,null,null,null,null,null,null,null,"تصميم محمود عيد 01066905051",null,null,null,null,null,null,null,13]
[{"$f":"'البيانات الاساسية'!C3","v":" محافطة الدقهلية"},null,null,null,null,null,null,null,{"$f":"IF(VLOOKUP(Y8,'البيانات الاساسية'!$O$3:$U$15,5,0)=\"\",\"\",VLOOKUP(Y8,'البيانات الاساسية'!$O$3:$U$15,5,0))","v":"اليوم التاسع"},null,null,{"$f":"IF(Q2=\"\",\"\",TEXT(Q2,\"ddd\"))","v":"Sun"},null,null,null,null,{"$f":"IF(VLOOKUP($Y$8,'البيانات الاساسية'!$O$3:$T$15,6,0)=\"\",\"\",VLOOKUP($Y$8,'البيانات الاساسية'!$O$3:$T$15,6,0))","v":"2022-07-17"}]
[{"$f":"'البيانات الاساسية'!C2","v":"امتحانات إتمام الشهادة الثانوية العامة"},null,null,null,null,null,{"$f":"\"كشف الملاحظة\"&\" \"&A3&\" \"&'البيانات الاساسية'!C11","v":"كشف الملاحظة امتحانات إتمام الشهادة الثانوية العامة 2022/2021"}]
[{"$f":"'البيانات الاساسية'!C4","v":"ادارة شربين التعليمية"}]
[{"$f":"'البيانات الاساسية'!C5","v":"لجنة رقم 500"}]
[]
[" ",null,null,null,{"$f":"IF(VLOOKUP(Y8,'البيانات الاساسية'!$O$3:$R$15,2,0)=\"\",\"\",VLOOKUP(Y8,'البيانات الاساسية'!$O$3:$R$15,2,0))","v":"الجيولوجيا والعلوم البيئية"},null,null,null,null,"من  الساعة",null,null,null,{"$f":"IFERROR(IF(VLOOKUP(E7,'البيانات الاساسية'!$Z$3:$AD$27,3,0)=\"\",\"\",VLOOKUP(E7,'البيانات الاساسية'!$Z$3:$AD$27,3,0)),\"\")","v":9},null,{"$f":"IFERROR(IF(VLOOKUP(E7,'البيانات الاساسية'!$Z$3:$AD$27,5,0)=\"\",\"\",\"زمن الإجابة\"&\" \"&VLOOKUP(E7,'البيانات الاساسية'!$Z$3:$AD$27,5,0)),\"\")","v":"زمن الإجابة ثلاث ساعات"},null,null,null,null,"علمي علوم",null,null,null,null,null,{"$f":"Y8","v":11}]
[null,null,null,null,null,null,null,null,null,"من  الساعة",null,null,null,{"$f":"IFERROR(IF(VLOOKUP(E7,'البيانات الاساسية'!$Z$3:$AD$27,4,0)=\"\",\"\",VLOOKUP(E7,'البيانات الاساسية'!$Z$3:$AD$27,4,0)),\"\")","v":12},null,null,null,null,null,null,null,null,null,null,11]
[]
[null,null,null,null,{"$f":"IF(VLOOKUP(Y8,'البيانات الاساسية'!$O$3:$R$15,3,0)=\"\",\"\",VLOOKUP(Y8,'البيانات الاساسية'!$O$3:$R$15,3,0))","v":"الرياضيات البحتة (تفاضل وتكامل)"},null,null,null,null,"من  الساعة",null,null,null,{"$f":"IFERROR(IF(VLOOKUP(E10,'البيانات الاساسية'!$Z$3:$AD$27,3,0)=\"\",\"\",VLOOKUP(E10,'البيانات الاساسية'!$Z$3:$AD$27,3,0)),\"\")","v":9},null,{"$f":"IFERROR(IF(VLOOKUP(E10,'البيانات الاساسية'!$Z$3:$AD$27,5,0)=\"\",\"\",\"زمن الإجابة\"&\" \"&VLOOKUP(E10,'البيانات الاساسية'!$Z$3:$AD$27,5,0)),\"\")","v":"زمن الإجابة ساعتان"},null,null,null,null,"علمي رياضيات"]
[null,null,null,null,null,null,null,null,null,"من  الساعة",null,null,null,{"$f":"IFERROR(IF(VLOOKUP(E10,'البيانات الاساسية'!$Z$3:$AD$27,4,0)=\"\",\"\",VLOOKUP(E10,'البيانات الاساسية'!$Z$3:$AD$27,4,0)),\"\")","v":11}]
[]
[null,null,null,null,{"$f":"IF(VLOOKUP(Y8,'البيانات الاساسية'!$O$3:$R$15,4,0)=\"\",\"\",VLOOKUP(Y8,'البيانات الاساسية'!$O$3:$R$15,4,0))","v":"علم النفس والاجتماع"},null,null,null,null,"من  الساعة",null,null,null,{"$f":"IFERROR(IF(VLOOKUP(E13,'البيانات الاساسية'!$Z$3:$AD$27,3,0)=\"\",\"\",VLOOKUP(E13,'البيانات الاساسية'!$Z$3:$AD$27,3,0)),\"\")","v":9},null,{"$f":"IFERROR(IF(VLOOKUP(E13,'البيانات الاساسية'!$Z$3:$AD$27,5,0)=\"\",\"\",\"زمن الإجابة\"&\" \"&VLOOKUP(E13,'البيانات الاساسية'!$Z$3:$AD$27,5,0)),\"\")","v":"زمن الإجابة ثلاث ساعات"},null,null,null,null,"الأدبية"]
[null,null,null,null,null,null,null,null,null,"من  الساعة",null,null,null,{"$f":"IFERROR(IF(VLOOKUP(E13,'البيانات الاساسية'!$Z$3:$AD$27,4,0)=\"\",\"\",VLOOKUP(E13,'البيانات الاساسية'!$Z$3:$AD$27,4,0)),\"\")","v":12}]
[]
["اللجنة",null,null,null,"العدد","ارقام الجلوس",null,"الملاحظ",null,null,null,null,null,null,null,null,"التوقيع"]
[null,null,null,null,null,"من","الي"]
[{"$f":"IF($E$7=\"\",AG18,AF18)","v":1},{"$f":"A18","v":1},null,{"$f":"IF($Y$8=1,VLOOKUP(B18,'الثانوية العامة'!$B$3:$AC$151,3,0),IF($Y$8=2,VLOOKUP(B18,'الثانوية العامة'!$B$3:$AC$151,4,0),IF($Y$8=3,VLOOKUP(B18,'الثانوية العامة'!$B$3:$AC$151,5,0),IF($Y$8=4,VLOOKUP(B18,'الثانوية العامة'!$B$3:$AC$151,6,0),IF($Y$8=5,VLOOKUP(B18,'الثانوية العامة'!$B$3:$AC$151,7,0),IF($Y$8=6,VLOOKUP(B18,'الثانوية العامة'!$B$3:$AC$151,8,0),IF($Y$8=7,VLOOKUP(B18,'الثانوية العامة'!$B$3:$AC$151,9,0),IF($Y$8=9,VLOOKUP(B18,'الثانوية العامة'!$B$3:$AC$151,11,0),IF($Y$8=10,VLOOKUP(B18,'الثانوية العامة'!$B$3:$AC$151,12,0),IF($Y$8=11,VLOOKUP(B18,'الثانوية العامة'!$B$3:$AC$151,13,0),IF($Y$8=12,VLOOKUP(B18,'الثانوية العامة'!$B$3:$AC$151,14,0),IF($Y$8=13,VLOOKUP(B18,'الثانوية العامة'!$B$3:$AC$151,15,0),IF($Y$8=8,VLOOKUP(B18,'الثانوية العامة'!$B$3:$AC$151,10,0))))))))))))))","v":0},{"$f":"IFERROR(VLOOKUP(A18,'البيانات الاساسية'!$AF$3:$AJ$69,2,0),\"\")","v":20},{"$f":"IFERROR(VLOOKUP(A18,'البيانات الاساسية'!$AF$3:$AJ$69,3,0),\"\")","v":100},{"$f":"IFERROR(VLOOKUP(A18,'البيانات الاساسية'!$AF$3:$AJ$69,4,0),\"\")","v":120},1,{"$f":"IFERROR(IF(A18=\"\",\"\",VLOOKUP(D18,'البيانات الاساسية'!$E$3:$F$316,2,0)),\"\")","v":""},null,null,null,null,null,null,null,null,null,null,null,null,null,null,{"$f":"IF(ROW()-17<='البيانات الاساسية'!$C$8,ROW()-17,\"\")","v":1},null,null,null,null,null,null,{"$f":"VLOOKUP(X18,'البيانات الاساسية'!$AF$3:$AK$32,5,0)","v":"علمي علوم"},1,{"$f":"IF(AE18=$U$10,AF18,\"\")","v":""}]
[null,{"$f":"A18","v":1},{"$f":"IF($Y$8=1,VLOOKUP(B19,'الثانوية العامة'!$B$3:$AC$151,16,0),IF($Y$8=2,VLOOKUP(B19,'الثانوية العامة'!$B$3:$AC$151,17,0),IF($Y$8=3,VLOOKUP(B19,'الثانوية العامة'!$B$3:$AC$151,18,0),IF($Y$8=4,VLOOKUP(B19,'الثانوية العامة'!$B$3:$AC$151,19,0),IF($Y$8=5,VLOOKUP(B19,'الثانوية العامة'!$B$3:$AC$151,20,0),IF($Y$8=6,VLOOKUP(B19,'الثانوية العامة'!$B$3:$AC$151,21,0),IF($Y$8=7,VLOOKUP(B19,'الثانوية العامة'!$B$3:$AC$151,22,0),IF($Y$8=8,VLOOKUP(B19,'الثانوية العامة'!$B$3:$AC$151,23,0),IF($Y$8=9,VLOOKUP(B19,'الثانوية العامة'!$B$3:$AC$151,24,0),IF($Y$8=10,VLOOKUP(B19,'الثانوية العامة'!$B$3:$AC$151,25,0),IF($Y$8=11,VLOOKUP(B19,'الثانوية العامة'!$B$3:$AC$151,26,0),IF($Y$8=12,VLOOKUP(B19,'الثانوية العامة'!$B$3:$AC$151,27,0),IF($Y$8=13,VLOOKUP(B19,'الثانوية العامة'!$B$3:$AC$151,28,0))))))))))))))","v":0},null,null,null,null,2,{"$f":"IFERROR(IF(A18=\"\",\"\",VLOOKUP(C19,'البيانات الاساسية'!$E$3:$F$316,2,0)),\"\")","v":""},null,null,null,null,null,null,null,null,null,null,null,null,null,null,{"$f":"IF(ROW()-17<='البيانات الاساسية'!$C$8,ROW()-17,\"\")","v":2}]
[{"$f":"IF($E$7=\"\",AG20,AF20)","v":2},{"$f":"A20","v":2},null,{"$f":"IF($Y$8=1,VLOOKUP(B20,'الثانوية العامة'!$B$3:$AC$151,3,0),IF($Y$8=2,VLOOKUP(B20,'الثانوية العامة'!$B$3:$AC$151,4,0),IF($Y$8=3,VLOOKUP(B20,'الثانوية العامة'!$B$3:$AC$151,5,0),IF($Y$8=4,VLOOKUP(B20,'الثانوية العامة'!$B$3:$AC$151,6,0),IF($Y$8=5,VLOOKUP(B20,'الثانوية العامة'!$B$3:$AC$151,7,0),IF($Y$8=6,VLOOKUP(B20,'الثانوية العامة'!$B$3:$AC$151,8,0),IF($Y$8=7,VLOOKUP(B20,'الثانوية العامة'!$B$3:$AC$151,9,0),IF($Y$8=9,VLOOKUP(B20,'الثانوية العامة'!$B$3:$AC$151,11,0),IF($Y$8=10,VLOOKUP(B20,'الثانوية العامة'!$B$3:$AC$151,12,0),IF($Y$8=11,VLOOKUP(B20,'الثانوية العامة'!$B$3:$AC$151,13,0),IF($Y$8=12,VLOOKUP(B20,'الثانوية العامة'!$B$3:$AC$151,14,0),IF($Y$8=13,VLOOKUP(B20,'الثانوية العامة'!$B$3:$AC$151,15,0),IF($Y$8=8,VLOOKUP(B20,'الثانوية العامة'!$B$3:$AC$151,10,0))))))))))))))","v":0},{"$f":"IFERROR(VLOOKUP(A20,'البيانات الاساسية'!$AF$3:$AJ$69,2,0),\"\")","v":20},{"$f":"IFERROR(VLOOKUP(A20,'البيانات الاساسية'!$AF$3:$AJ$69,3,0),\"\")","v":121},{"$f":"IFERROR(VLOOKUP(A20,'البيانات الاساسية'!$AF$3:$AJ$69,4,0),\"\")","v":140},1,{"$f":"IFERROR(IF(A20=\"\",\"\",VLOOKUP(D20,'البيانات الاساسية'!$E$3:$F$316,2,0)),\"\")","v":""},null,null,null,null,null,null,null,null,null,null,null,null,null,null,{"$f":"IF(ROW()-17<='البيانات الاساسية'!$C$8,ROW()-17,\"\")","v":3},null,"طباعة ورقة",null,null,null,null,{"$f":"VLOOKUP(X19,'البيانات الاساسية'!$AF$3:$AK$32,5,0)","v":"علمي علوم"},2,{"$f":"IF(AE20=$U$10,AF20,\"\")","v":""}]
[null,2,{"$f":"IF($Y$8=1,VLOOKUP(B21,'الثانوية العامة'!$B$3:$AC$151,16,0),IF($Y$8=2,VLOOKUP(B21,'الثانوية العامة'!$B$3:$AC$151,17,0),IF($Y$8=3,VLOOKUP(B21,'الثانوية العامة'!$B$3:$AC$151,18,0),IF($Y$8=4,VLOOKUP(B21,'الثانوية العامة'!$B$3:$AC$151,19,0),IF($Y$8=5,VLOOKUP(B21,'الثانوية العامة'!$B$3:$AC$151,20,0),IF($Y$8=6,VLOOKUP(B21,'الثانوية العامة'!$B$3:$AC$151,21,0),IF($Y$8=7,VLOOKUP(B21,'الثانوية العامة'!$B$3:$AC$151,22,0),IF($Y$8=8,VLOOKUP(B21,'الثانوية العامة'!$B$3:$AC$151,23,0),IF($Y$8=9,VLOOKUP(B21,'الثانوية العامة'!$B$3:$AC$151,24,0),IF($Y$8=10,VLOOKUP(B21,'الثانوية العامة'!$B$3:$AC$151,25,0),IF($Y$8=11,VLOOKUP(B21,'الثانوية العامة'!$B$3:$AC$151,26,0),IF($Y$8=12,VLOOKUP(B21,'الثانوية العامة'!$B$3:$AC$151,27,0),IF($Y$8=13,VLOOKUP(B21,'الثانوية العامة'!$B$3:$AC$151,28,0))))))))))))))","v":0},null,null,null,null,2,{"$f":"IFERROR(IF(A20=\"\",\"\",VLOOKUP(C21,'البيانات الاساسية'!$E$3:$F$316,2,0)),\"\")","v":""},null,null,null,null,null,null,null,null,null,null,null,null,null,null,{"$f":"IF(ROW()-17<='البيانات الاساسية'!$C$8,ROW()-17,\"\")","v":4}]
[{"$f":"IF($E$7=\"\",AG22,AF22)","v":3},{"$f":"A22","v":3},null,{"$f":"IF($Y$8=1,VLOOKUP(B22,'الثانوية العامة'!$B$3:$AC$151,3,0),IF($Y$8=2,VLOOKUP(B22,'الثانوية العامة'!$B$3:$AC$151,4,0),IF($Y$8=3,VLOOKUP(B22,'الثانوية العامة'!$B$3:$AC$151,5,0),IF($Y$8=4,VLOOKUP(B22,'الثانوية العامة'!$B$3:$AC$151,6,0),IF($Y$8=5,VLOOKUP(B22,'الثانوية العامة'!$B$3:$AC$151,7,0),IF($Y$8=6,VLOOKUP(B22,'الثانوية العامة'!$B$3:$AC$151,8,0),IF($Y$8=7,VLOOKUP(B22,'الثانوية العامة'!$B$3:$AC$151,9,0),IF($Y$8=9,VLOOKUP(B22,'الثانوية العامة'!$B$3:$AC$151,11,0),IF($Y$8=10,VLOOKUP(B22,'الثانوية العامة'!$B$3:$AC$151,12,0),IF($Y$8=11,VLOOKUP(B22,'الثانوية العامة'!$B$3:$AC$151,13,0),IF($Y$8=12,VLOOKUP(B22,'الثانوية العامة'!$B$3:$AC$151,14,0),IF($Y$8=13,VLOOKUP(B22,'الثانوية العامة'!$B$3:$AC$151,15,0),IF($Y$8=8,VLOOKUP(B22,'الثانوية العامة'!$B$3:$AC$151,10,0))))))))))))))","v":0},{"$f":"IFERROR(VLOOKUP(A22,'البيانات الاساسية'!$AF$3:$AJ$69,2,0),\"\")","v":20},{"$f":"IFERROR(VLOOKUP(A22,'البيانات الاساسية'!$AF$3:$AJ$69,3,0),\"\")","v":141},{"$f":"IFERROR(VLOOKUP(A22,'البيانات الاساسية'!$AF$3:$AJ$69,4,0),\"\")","v":160},1,{"$f":"IFERROR(IF(A22=\"\",\"\",VLOOKUP(D22,'البيانات الاساسية'!$E$3:$F$316,2,0)),\"\")","v":""},null,null,null,null,null,null,null,null,null,null,null,null,null,null,{"$f":"IF(ROW()-17<='البيانات الاساسية'!$C$8,ROW()-17,\"\")","v":5},null,null,null,null,null,null,{"$f":"VLOOKUP(X20,'البيانات الاساسية'!$AF$3:$AK$32,5,0)","v":"علمي رياضيات"},3,{"$f":"IF(AE22=$U$10,AF22,\"\")","v":3}]
[null,3,{"$f":"IF($Y$8=1,VLOOKUP(B23,'الثانوية العامة'!$B$3:$AC$151,16,0),IF($Y$8=2,VLOOKUP(B23,'الثانوية العامة'!$B$3:$AC$151,17,0),IF($Y$8=3,VLOOKUP(B23,'الثانوية العامة'!$B$3:$AC$151,18,0),IF($Y$8=4,VLOOKUP(B23,'الثانوية العامة'!$B$3:$AC$151,19,0),IF($Y$8=5,VLOOKUP(B23,'الثانوية العامة'!$B$3:$AC$151,20,0),IF($Y$8=6,VLOOKUP(B23,'الثانوية العامة'!$B$3:$AC$151,21,0),IF($Y$8=7,VLOOKUP(B23,'الثانوية العامة'!$B$3:$AC$151,22,0),IF($Y$8=8,VLOOKUP(B23,'الثانوية العامة'!$B$3:$AC$151,23,0),IF($Y$8=9,VLOOKUP(B23,'الثانوية العامة'!$B$3:$AC$151,24,0),IF($Y$8=10,VLOOKUP(B23,'الثانوية العامة'!$B$3:$AC$151,25,0),IF($Y$8=11,VLOOKUP(B23,'الثانوية العامة'!$B$3:$AC$151,26,0),IF($Y$8=12,VLOOKUP(B23,'الثانوية العامة'!$B$3:$AC$151,27,0),IF($Y$8=13,VLOOKUP(B23,'الثانوية العامة'!$B$3:$AC$151,28,0))))))))))))))","v":0},null,null,null,null,2,{"$f":"IFERROR(IF(A22=\"\",\"\",VLOOKUP(C23,'البيانات الاساسية'!$E$3:$F$316,2,0)),\"\")","v":""},null,null,null,null,null,null,null,null,null,null,null,null,null,null,{"$f":"IF(ROW()-17<='البيانات الاساسية'!$C$8,ROW()-17,\"\")","v":""}]
[{"$f":"IF($E$7=\"\",AG24,AF24)","v":4},{"$f":"A24","v":4},null,{"$f":"IF($Y$8=1,VLOOKUP(B24,'الثانوية العامة'!$B$3:$AC$151,3,0),IF($Y$8=2,VLOOKUP(B24,'الثانوية العامة'!$B$3:$AC$151,4,0),IF($Y$8=3,VLOOKUP(B24,'الثانوية العامة'!$B$3:$AC$151,5,0),IF($Y$8=4,VLOOKUP(B24,'الثانوية العامة'!$B$3:$AC$151,6,0),IF($Y$8=5,VLOOKUP(B24,'الثانوية العامة'!$B$3:$AC$151,7,0),IF($Y$8=6,VLOOKUP(B24,'الثانوية العامة'!$B$3:$AC$151,8,0),IF($Y$8=7,VLOOKUP(B24,'الثانوية العامة'!$B$3:$AC$151,9,0),IF($Y$8=9,VLOOKUP(B24,'الثانوية العامة'!$B$3:$AC$151,11,0),IF($Y$8=10,VLOOKUP(B24,'الثانوية العامة'!$B$3:$AC$151,12,0),IF($Y$8=11,VLOOKUP(B24,'الثانوية العامة'!$B$3:$AC$151,13,0),IF($Y$8=12,VLOOKUP(B24,'الثانوية العامة'!$B$3:$AC$151,14,0),IF($Y$8=13,VLOOKUP(B24,'الثانوية العامة'!$B$3:$AC$151,15,0),IF($Y$8=8,VLOOKUP(B24,'الثانوية العامة'!$B$3:$AC$151,10,0))))))))))))))","v":0},{"$f":"IFERROR(VLOOKUP(A24,'البيانات الاساسية'!$AF$3:$AJ$69,2,0),\"\")","v":20},{"$f":"IFERROR(VLOOKUP(A24,'البيانات الاساسية'!$AF$3:$AJ$69,3,0),\"\")","v":161},{"$f":"IFERROR(VLOOKUP(A24,'البيانات الاساسية'!$AF$3:$AJ$69,4,0),\"\")","v":180},1,{"$f":"IFERROR(IF(A24=\"\",\"\",VLOOKUP(D24,'البيانات الاساسية'!$E$3:$F$316,2,0)),\"\")","v":""},null,null,null,null,null,null,null,null,null,null,null,null,null,null,{"$f":"IF(ROW()-17<='البيانات الاساسية'!$C$8,ROW()-17,\"\")","v":""},null,"طباعة جميع الأيام",null,null,null,null,{"$f":"VLOOKUP(X21,'البيانات الاساسية'!$AF$3:$AK$32,5,0)","v":"علمي علوم"},4,{"$f":"IF(AE24=$U$10,AF24,\"\")","v":""}]
[null,4,{"$f":"IF($Y$8=1,VLOOKUP(B25,'الثانوية العامة'!$B$3:$AC$151,16,0),IF($Y$8=2,VLOOKUP(B25,'الثانوية العامة'!$B$3:$AC$151,17,0),IF($Y$8=3,VLOOKUP(B25,'الثانوية العامة'!$B$3:$AC$151,18,0),IF($Y$8=4,VLOOKUP(B25,'الثانوية العامة'!$B$3:$AC$151,19,0),IF($Y$8=5,VLOOKUP(B25,'الثانوية العامة'!$B$3:$AC$151,20,0),IF($Y$8=6,VLOOKUP(B25,'الثانوية العامة'!$B$3:$AC$151,21,0),IF($Y$8=7,VLOOKUP(B25,'الثانوية العامة'!$B$3:$AC$151,22,0),IF($Y$8=8,VLOOKUP(B25,'الثانوية العامة'!$B$3:$AC$151,23,0),IF($Y$8=9,VLOOKUP(B25,'الثانوية العامة'!$B$3:$AC$151,24,0),IF($Y$8=10,VLOOKUP(B25,'الثانوية العامة'!$B$3:$AC$151,25,0),IF($Y$8=11,VLOOKUP(B25,'الثانوية العامة'!$B$3:$AC$151,26,0),IF($Y$8=12,VLOOKUP(B25,'الثانوية العامة'!$B$3:$AC$151,27,0),IF($Y$8=13,VLOOKUP(B25,'الثانوية العامة'!$B$3:$AC$151,28,0))))))))))))))","v":0},null,null,null,null,2,{"$f":"IFERROR(IF(A24=\"\",\"\",VLOOKUP(C25,'البيانات الاساسية'!$E$3:$F$316,2,0)),\"\")","v":""},null,null,null,null,null,null,null,null,null,null,null,null,null,null,{"$f":"IF(ROW()-17<='البيانات الاساسية'!$C$8,ROW()-17,\"\")","v":""}]
[{"$f":"IF($E$7=\"\",AG26,AF26)","v":5},{"$f":"A26","v":5},null,{"$f":"IF($Y$8=1,VLOOKUP(B26,'الثانوية العامة'!$B$3:$AC$151,3,0),IF($Y$8=2,VLOOKUP(B26,'الثانوية العامة'!$B$3:$AC$151,4,0),IF($Y$8=3,VLOOKUP(B26,'الثانوية العامة'!$B$3:$AC$151,5,0),IF($Y$8=4,VLOOKUP(B26,'الثانوية العامة'!$B$3:$AC$151,6,0),IF($Y$8=5,VLOOKUP(B26,'الثانوية العامة'!$B$3:$AC$151,7,0),IF($Y$8=6,VLOOKUP(B26,'الثانوية العامة'!$B$3:$AC$151,8,0),IF($Y$8=7,VLOOKUP(B26,'الثانوية العامة'!$B$3:$AC$151,9,0),IF($Y$8=9,VLOOKUP(B26,'الثانوية العامة'!$B$3:$AC$151,11,0),IF($Y$8=10,VLOOKUP(B26,'الثانوية العامة'!$B$3:$AC$151,12,0),IF($Y$8=11,VLOOKUP(B26,'الثانوية العامة'!$B$3:$AC$151,13,0),IF($Y$8=12,VLOOKUP(B26,'الثانوية العامة'!$B$3:$AC$151,14,0),IF($Y$8=13,VLOOKUP(B26,'الثانوية العامة'!$B$3:$AC$151,15,0),IF($Y$8=8,VLOOKUP(B26,'الثانوية العامة'!$B$3:$AC$151,10,0))))))))))))))","v":0},{"$f":"IFERROR(VLOOKUP(A26,'البيانات الاساسية'!$AF$3:$AJ$69,2,0),\"\")","v":20},{"$f":"IFERROR(VLOOKUP(A26,'البيانات الاساسية'!$AF$3:$AJ$69,3,0),\"\")","v":181},{"$f":"IFERROR(VLOOKUP(A26,'البيانات الاساسية'!$AF$3:$AJ$69,4,0),\"\")","v":200},1,{"$f":"IFERROR(IF(A26=\"\",\"\",VLOOKUP(D26,'البيانات الاساسية'!$E$3:$F$316,2,0)),\"\")","v":""},null,null,null,null,null,null,null,null,null,null,null,null,null,null,{"$f":"IF(ROW()-17<='البيانات الاساسية'!$C$8,ROW()-17,\"\")","v":""},null,null,null,null,null,null,{"$f":"VLOOKUP(X22,'البيانات الاساسية'!$AF$3:$AK$32,5,0)","v":"الأدبية"},5,{"$f":"IF(AE26=$U$10,AF26,\"\")","v":""}]
[null,5,{"$f":"IF($Y$8=1,VLOOKUP(B27,'الثانوية العامة'!$B$3:$AC$151,16,0),IF($Y$8=2,VLOOKUP(B27,'الثانوية العامة'!$B$3:$AC$151,17,0),IF($Y$8=3,VLOOKUP(B27,'الثانوية العامة'!$B$3:$AC$151,18,0),IF($Y$8=4,VLOOKUP(B27,'الثانوية العامة'!$B$3:$AC$151,19,0),IF($Y$8=5,VLOOKUP(B27,'الثانوية العامة'!$B$3:$AC$151,20,0),IF($Y$8=6,VLOOKUP(B27,'الثانوية العامة'!$B$3:$AC$151,21,0),IF($Y$8=7,VLOOKUP(B27,'الثانوية العامة'!$B$3:$AC$151,22,0),IF($Y$8=8,VLOOKUP(B27,'الثانوية العامة'!$B$3:$AC$151,23,0),IF($Y$8=9,VLOOKUP(B27,'الثانوية العامة'!$B$3:$AC$151,24,0),IF($Y$8=10,VLOOKUP(B27,'الثانوية العامة'!$B$3:$AC$151,25,0),IF($Y$8=11,VLOOKUP(B27,'الثانوية العامة'!$B$3:$AC$151,26,0),IF($Y$8=12,VLOOKUP(B27,'الثانوية العامة'!$B$3:$AC$151,27,0),IF($Y$8=13,VLOOKUP(B27,'الثانوية العامة'!$B$3:$AC$151,28,0))))))))))))))","v":0},null,null,null,null,2,{"$f":"IFERROR(IF(A26=\"\",\"\",VLOOKUP(C27,'البيانات الاساسية'!$E$3:$F$316,2,0)),\"\")","v":""},null,null,null,null,null,null,null,null,null,null,null,null,null,null,{"$f":"IF(ROW()-17<='البيانات الاساسية'!$C$8,ROW()-17,\"\")","v":""}]
[{"$f":"IF($E$7=\"\",AG28,AF28)","v":6},{"$f":"A28","v":6},null,{"$f":"IF($Y$8=1,VLOOKUP(B28,'الثانوية العامة'!$B$3:$AC$151,3,0),IF($Y$8=2,VLOOKUP(B28,'الثانوية العامة'!$B$3:$AC$151,4,0),IF($Y$8=3,VLOOKUP(B28,'الثانوية العامة'!$B$3:$AC$151,5,0),IF($Y$8=4,VLOOKUP(B28,'الثانوية العامة'!$B$3:$AC$151,6,0),IF($Y$8=5,VLOOKUP(B28,'الثانوية العامة'!$B$3:$AC$151,7,0),IF($Y$8=6,VLOOKUP(B28,'الثانوية العامة'!$B$3:$AC$151,8,0),IF($Y$8=7,VLOOKUP(B28,'الثانوية العامة'!$B$3:$AC$151,9,0),IF($Y$8=9,VLOOKUP(B28,'الثانوية العامة'!$B$3:$AC$151,11,0),IF($Y$8=10,VLOOKUP(B28,'الثانوية العامة'!$B$3:$AC$151,12,0),IF($Y$8=11,VLOOKUP(B28,'الثانوية العامة'!$B$3:$AC$151,13,0),IF($Y$8=12,VLOOKUP(B28,'الثانوية العامة'!$B$3:$AC$151,14,0),IF($Y$8=13,VLOOKUP(B28,'الثانوية العامة'!$B$3:$AC$151,15,0),IF($Y$8=8,VLOOKUP(B28,'الثانوية العامة'!$B$3:$AC$151,10,0))))))))))))))","v":0},{"$f":"IFERROR(VLOOKUP(A28,'البيانات الاساسية'!$AF$3:$AJ$69,2,0),\"\")","v":""},{"$f":"IFERROR(VLOOKUP(A28,'البيانات الاساسية'!$AF$3:$AJ$69,3,0),\"\")","v":""},{"$f":"IFERROR(VLOOKUP(A28,'البيانات الاساسية'!$AF$3:$AJ$69,4,0),\"\")","v":""},1,{"$f":"IFERROR(IF(A28=\"\",\"\",VLOOKUP(D28,'البيانات الاساسية'!$E$3:$F$316,2,0)),\"\")","v":""},null,null,null,null,null,null,null,null,null,null,null,null,null,null,{"$f":"IF(ROW()-17<='البيانات الاساسية'!$C$8,ROW()-17,\"\")","v":""},null,null,null,null,null,null,{"$f":"VLOOKUP(X23,'البيانات الاساسية'!$AF$3:$AK$32,5,0)","v":0},6,{"$f":"IF(AE28=$U$10,AF28,\"\")","v":""}]
[null,6,{"$f":"IF($Y$8=1,VLOOKUP(B29,'الثانوية العامة'!$B$3:$AC$151,16,0),IF($Y$8=2,VLOOKUP(B29,'الثانوية العامة'!$B$3:$AC$151,17,0),IF($Y$8=3,VLOOKUP(B29,'الثانوية العامة'!$B$3:$AC$151,18,0),IF($Y$8=4,VLOOKUP(B29,'الثانوية العامة'!$B$3:$AC$151,19,0),IF($Y$8=5,VLOOKUP(B29,'الثانوية العامة'!$B$3:$AC$151,20,0),IF($Y$8=6,VLOOKUP(B29,'الثانوية العامة'!$B$3:$AC$151,21,0),IF($Y$8=7,VLOOKUP(B29,'الثانوية العامة'!$B$3:$AC$151,22,0),IF($Y$8=8,VLOOKUP(B29,'الثانوية العامة'!$B$3:$AC$151,23,0),IF($Y$8=9,VLOOKUP(B29,'الثانوية العامة'!$B$3:$AC$151,24,0),IF($Y$8=10,VLOOKUP(B29,'الثانوية العامة'!$B$3:$AC$151,25,0),IF($Y$8=11,VLOOKUP(B29,'الثانوية العامة'!$B$3:$AC$151,26,0),IF($Y$8=12,VLOOKUP(B29,'الثانوية العامة'!$B$3:$AC$151,27,0),IF($Y$8=13,VLOOKUP(B29,'الثانوية العامة'!$B$3:$AC$151,28,0))))))))))))))","v":0},null,null,null,null,2,{"$f":"IFERROR(IF(A28=\"\",\"\",VLOOKUP(C29,'البيانات الاساسية'!$E$3:$F$316,2,0)),\"\")","v":""},null,null,null,null,null,null,null,null,null,null,null,null,null,null,{"$f":"IF(ROW()-17<='البيانات الاساسية'!$C$8,ROW()-17,\"\")","v":""}]
[{"$f":"IF($E$7=\"\",AG30,AF30)","v":7},{"$f":"A30","v":7},null,{"$f":"IF($Y$8=1,VLOOKUP(B30,'الثانوية العامة'!$B$3:$AC$151,3,0),IF($Y$8=2,VLOOKUP(B30,'الثانوية العامة'!$B$3:$AC$151,4,0),IF($Y$8=3,VLOOKUP(B30,'الثانوية العامة'!$B$3:$AC$151,5,0),IF($Y$8=4,VLOOKUP(B30,'الثانوية العامة'!$B$3:$AC$151,6,0),IF($Y$8=5,VLOOKUP(B30,'الثانوية العامة'!$B$3:$AC$151,7,0),IF($Y$8=6,VLOOKUP(B30,'الثانوية العامة'!$B$3:$AC$151,8,0),IF($Y$8=7,VLOOKUP(B30,'الثانوية العامة'!$B$3:$AC$151,9,0),IF($Y$8=9,VLOOKUP(B30,'الثانوية العامة'!$B$3:$AC$151,11,0),IF($Y$8=10,VLOOKUP(B30,'الثانوية العامة'!$B$3:$AC$151,12,0),IF($Y$8=11,VLOOKUP(B30,'الثانوية العامة'!$B$3:$AC$151,13,0),IF($Y$8=12,VLOOKUP(B30,'الثانوية العامة'!$B$3:$AC$151,14,0),IF($Y$8=13,VLOOKUP(B30,'الثانوية العامة'!$B$3:$AC$151,15,0),IF($Y$8=8,VLOOKUP(B30,'الثانوية العامة'!$B$3:$AC$151,10,0))))))))))))))","v":0},{"$f":"IFERROR(VLOOKUP(A30,'البيانات الاساسية'!$AF$3:$AJ$69,2,0),\"\")","v":""},{"$f":"IFERROR(VLOOKUP(A30,'البيانات الاساسية'!$AF$3:$AJ$69,3,0),\"\")","v":""},{"$f":"IFERROR(VLOOKUP(A30,'البيانات الاساسية'!$AF$3:$AJ$69,4,0),\"\")","v":""},1,{"$f":"IFERROR(IF(A30=\"\",\"\",VLOOKUP(D30,'البيانات الاساسية'!$E$3:$F$316,2,0)),\"\")","v":""},null,null,null,null,null,null,null,null,null,null,null,null,null,null,{"$f":"IF(ROW()-17<='البيانات الاساسية'!$C$8,ROW()-17,\"\")","v":""},null,null,null,null,null,null,{"$f":"VLOOKUP(X24,'البيانات الاساسية'!$AF$3:$AK$32,5,0)","v":0},7,{"$f":"IF(AE30=$U$10,AF30,\"\")","v":""}]
[null,7,{"$f":"IF($Y$8=1,VLOOKUP(B31,'الثانوية العامة'!$B$3:$AC$151,16,0),IF($Y$8=2,VLOOKUP(B31,'الثانوية العامة'!$B$3:$AC$151,17,0),IF($Y$8=3,VLOOKUP(B31,'الثانوية العامة'!$B$3:$AC$151,18,0),IF($Y$8=4,VLOOKUP(B31,'الثانوية العامة'!$B$3:$AC$151,19,0),IF($Y$8=5,VLOOKUP(B31,'الثانوية العامة'!$B$3:$AC$151,20,0),IF($Y$8=6,VLOOKUP(B31,'الثانوية العامة'!$B$3:$AC$151,21,0),IF($Y$8=7,VLOOKUP(B31,'الثانوية العامة'!$B$3:$AC$151,22,0),IF($Y$8=8,VLOOKUP(B31,'الثانوية العامة'!$B$3:$AC$151,23,0),IF($Y$8=9,VLOOKUP(B31,'الثانوية العامة'!$B$3:$AC$151,24,0),IF($Y$8=10,VLOOKUP(B31,'الثانوية العامة'!$B$3:$AC$151,25,0),IF($Y$8=11,VLOOKUP(B31,'الثانوية العامة'!$B$3:$AC$151,26,0),IF($Y$8=12,VLOOKUP(B31,'الثانوية العامة'!$B$3:$AC$151,27,0),IF($Y$8=13,VLOOKUP(B31,'الثانوية العامة'!$B$3:$AC$151,28,0))))))))))))))","v":0},null,null,null,null,2,{"$f":"IFERROR(IF(A30=\"\",\"\",VLOOKUP(C31,'البيانات الاساسية'!$E$3:$F$316,2,0)),\"\")","v":""},null,null,null,null,null,null,null,null,null,null,null,null,null,null,{"$f":"IF(ROW()-17<='البيانات الاساسية'!$C$8,ROW()-17,\"\")","v":""}]
[{"$f":"IF($E$7=\"\",AG32,AF32)","v":8},{"$f":"A32","v":8},null,{"$f":"IF($Y$8=1,VLOOKUP(B32,'الثانوية العامة'!$B$3:$AC$151,3,0),IF($Y$8=2,VLOOKUP(B32,'الثانوية العامة'!$B$3:$AC$151,4,0),IF($Y$8=3,VLOOKUP(B32,'الثانوية العامة'!$B$3:$AC$151,5,0),IF($Y$8=4,VLOOKUP(B32,'الثانوية العامة'!$B$3:$AC$151,6,0),IF($Y$8=5,VLOOKUP(B32,'الثانوية العامة'!$B$3:$AC$151,7,0),IF($Y$8=6,VLOOKUP(B32,'الثانوية العامة'!$B$3:$AC$151,8,0),IF($Y$8=7,VLOOKUP(B32,'الثانوية العامة'!$B$3:$AC$151,9,0),IF($Y$8=9,VLOOKUP(B32,'الثانوية العامة'!$B$3:$AC$151,11,0),IF($Y$8=10,VLOOKUP(B32,'الثانوية العامة'!$B$3:$AC$151,12,0),IF($Y$8=11,VLOOKUP(B32,'الثانوية العامة'!$B$3:$AC$151,13,0),IF($Y$8=12,VLOOKUP(B32,'الثانوية العامة'!$B$3:$AC$151,14,0),IF($Y$8=13,VLOOKUP(B32,'الثانوية العامة'!$B$3:$AC$151,15,0),IF($Y$8=8,VLOOKUP(B32,'الثانوية العامة'!$B$3:$AC$151,10,0))))))))))))))","v":0},{"$f":"IFERROR(VLOOKUP(A32,'البيانات الاساسية'!$AF$3:$AJ$69,2,0),\"\")","v":""},{"$f":"IFERROR(VLOOKUP(A32,'البيانات الاساسية'!$AF$3:$AJ$69,3,0),\"\")","v":""},{"$f":"IFERROR(VLOOKUP(A32,'البيانات الاساسية'!$AF$3:$AJ$69,4,0),\"\")","v":""},1,{"$f":"IFERROR(IF(A32=\"\",\"\",VLOOKUP(D32,'البيانات الاساسية'!$E$3:$F$316,2,0)),\"\")","v":""},null,null,null,null,null,null,null,null,null,null,null,null,null,null,{"$f":"IF(ROW()-17<='البيانات الاساسية'!$C$8,ROW()-17,\"\")","v":""},null,null,null,null,null,null,{"$f":"VLOOKUP(X25,'البيانات الاساسية'!$AF$3:$AK$32,5,0)","v":0},8,{"$f":"IF(AE32=$U$10,AF32,\"\")","v":""}]
[null,8,{"$f":"IF($Y$8=1,VLOOKUP(B33,'الثانوية العامة'!$B$3:$AC$151,16,0),IF($Y$8=2,VLOOKUP(B33,'الثانوية العامة'!$B$3:$AC$151,17,0),IF($Y$8=3,VLOOKUP(B33,'الثانوية العامة'!$B$3:$AC$151,18,0),IF($Y$8=4,VLOOKUP(B33,'الثانوية العامة'!$B$3:$AC$151,19,0),IF($Y$8=5,VLOOKUP(B33,'الثانوية العامة'!$B$3:$AC$151,20,0),IF($Y$8=6,VLOOKUP(B33,'الثانوية العامة'!$B$3:$AC$151,21,0),IF($Y$8=7,VLOOKUP(B33,'الثانوية العامة'!$B$3:$AC$151,22,0),IF($Y$8=8,VLOOKUP(B33,'الثانوية العامة'!$B$3:$AC$151,23,0),IF($Y$8=9,VLOOKUP(B33,'الثانوية العامة'!$B$3:$AC$151,24,0),IF($Y$8=10,VLOOKUP(B33,'الثانوية العامة'!$B$3:$AC$151,25,0),IF($Y$8=11,VLOOKUP(B33,'الثانوية العامة'!$B$3:$AC$151,26,0),IF($Y$8=12,VLOOKUP(B33,'الثانوية العامة'!$B$3:$AC$151,27,0),IF($Y$8=13,VLOOKUP(B33,'الثانوية العامة'!$B$3:$AC$151,28,0))))))))))))))","v":0},null,null,null,null,2,{"$f":"IFERROR(IF(A32=\"\",\"\",VLOOKUP(C33,'البيانات الاساسية'!$E$3:$F$316,2,0)),\"\")","v":""},null,null,null,null,null,null,null,null,null,null,null,null,null,null,{"$f":"IF(ROW()-17<='البيانات الاساسية'!$C$8,ROW()-17,\"\")","v":""}]
[{"$f":"IF($E$7=\"\",AG34,AF34)","v":9},{"$f":"A34","v":9},null,{"$f":"IF($Y$8=1,VLOOKUP(B34,'الثانوية العامة'!$B$3:$AC$151,3,0),IF($Y$8=2,VLOOKUP(B34,'الثانوية العامة'!$B$3:$AC$151,4,0),IF($Y$8=3,VLOOKUP(B34,'الثانوية العامة'!$B$3:$AC$151,5,0),IF($Y$8=4,VLOOKUP(B34,'الثانوية العامة'!$B$3:$AC$151,6,0),IF($Y$8=5,VLOOKUP(B34,'الثانوية العامة'!$B$3:$AC$151,7,0),IF($Y$8=6,VLOOKUP(B34,'الثانوية العامة'!$B$3:$AC$151,8,0),IF($Y$8=7,VLOOKUP(B34,'الثانوية العامة'!$B$3:$AC$151,9,0),IF($Y$8=9,VLOOKUP(B34,'الثانوية العامة'!$B$3:$AC$151,11,0),IF($Y$8=10,VLOOKUP(B34,'الثانوية العامة'!$B$3:$AC$151,12,0),IF($Y$8=11,VLOOKUP(B34,'الثانوية العامة'!$B$3:$AC$151,13,0),IF($Y$8=12,VLOOKUP(B34,'الثانوية العامة'!$B$3:$AC$151,14,0),IF($Y$8=13,VLOOKUP(B34,'الثانوية العامة'!$B$3:$AC$151,15,0),IF($Y$8=8,VLOOKUP(B34,'الثانوية العامة'!$B$3:$AC$151,10,0))))))))))))))","v":0},{"$f":"IFERROR(VLOOKUP(A34,'البيانات الاساسية'!$AF$3:$AJ$69,2,0),\"\")","v":""},{"$f":"IFERROR(VLOOKUP(A34,'البيانات الاساسية'!$AF$3:$AJ$69,3,0),\"\")","v":""},{"$f":"IFERROR(VLOOKUP(A34,'البيانات الاساسية'!$AF$3:$AJ$69,4,0),\"\")","v":""},1,{"$f":"IFERROR(IF(A34=\"\",\"\",VLOOKUP(D34,'البيانات الاساسية'!$E$3:$F$316,2,0)),\"\")","v":""},null,null,null,null,null,null,null,null,null,null,null,null,null,null,{"$f":"IF(ROW()-17<='البيانات الاساسية'!$C$8,ROW()-17,\"\")","v":""},null,null,null,null,null,null,{"$f":"VLOOKUP(X26,'البيانات الاساسية'!$AF$3:$AK$32,5,0)","v":0},9,{"$f":"IF(AE34=$U$10,AF34,\"\")","v":""}]
[null,9,{"$f":"IF($Y$8=1,VLOOKUP(B35,'الثانوية العامة'!$B$3:$AC$151,16,0),IF($Y$8=2,VLOOKUP(B35,'الثانوية العامة'!$B$3:$AC$151,17,0),IF($Y$8=3,VLOOKUP(B35,'الثانوية العامة'!$B$3:$AC$151,18,0),IF($Y$8=4,VLOOKUP(B35,'الثانوية العامة'!$B$3:$AC$151,19,0),IF($Y$8=5,VLOOKUP(B35,'الثانوية العامة'!$B$3:$AC$151,20,0),IF($Y$8=6,VLOOKUP(B35,'الثانوية العامة'!$B$3:$AC$151,21,0),IF($Y$8=7,VLOOKUP(B35,'الثانوية العامة'!$B$3:$AC$151,22,0),IF($Y$8=8,VLOOKUP(B35,'الثانوية العامة'!$B$3:$AC$151,23,0),IF($Y$8=9,VLOOKUP(B35,'الثانوية العامة'!$B$3:$AC$151,24,0),IF($Y$8=10,VLOOKUP(B35,'الثانوية العامة'!$B$3:$AC$151,25,0),IF($Y$8=11,VLOOKUP(B35,'الثانوية العامة'!$B$3:$AC$151,26,0),IF($Y$8=12,VLOOKUP(B35,'الثانوية العامة'!$B$3:$AC$151,27,0),IF($Y$8=13,VLOOKUP(B35,'الثانوية العامة'!$B$3:$AC$151,28,0))))))))))))))","v":0},null,null,null,null,2,{"$f":"IFERROR(IF(A34=\"\",\"\",VLOOKUP(C35,'البيانات الاساسية'!$E$3:$F$316,2,0)),\"\")","v":""},null,null,null,null,null,null,null,null,null,null,null,null,null,null,{"$f":"IF(ROW()-17<='البيانات الاساسية'!$C$8,ROW()-17,\"\")","v":""}]
[{"$f":"IF($E$7=\"\",AG36,AF36)","v":10},{"$f":"A36","v":10},null,{"$f":"IF($Y$8=1,VLOOKUP(B36,'الثانوية العامة'!$B$3:$AC$151,3,0),IF($Y$8=2,VLOOKUP(B36,'الثانوية العامة'!$B$3:$AC$151,4,0),IF($Y$8=3,VLOOKUP(B36,'الثانوية العامة'!$B$3:$AC$151,5,0),IF($Y$8=4,VLOOKUP(B36,'الثانوية العامة'!$B$3:$AC$151,6,0),IF($Y$8=5,VLOOKUP(B36,'الثانوية العامة'!$B$3:$AC$151,7,0),IF($Y$8=6,VLOOKUP(B36,'الثانوية العامة'!$B$3:$AC$151,8,0),IF($Y$8=7,VLOOKUP(B36,'الثانوية العامة'!$B$3:$AC$151,9,0),IF($Y$8=9,VLOOKUP(B36,'الثانوية العامة'!$B$3:$AC$151,11,0),IF($Y$8=10,VLOOKUP(B36,'الثانوية العامة'!$B$3:$AC$151,12,0),IF($Y$8=11,VLOOKUP(B36,'الثانوية العامة'!$B$3:$AC$151,13,0),IF($Y$8=12,VLOOKUP(B36,'الثانوية العامة'!$B$3:$AC$151,14,0),IF($Y$8=13,VLOOKUP(B36,'الثانوية العامة'!$B$3:$AC$151,15,0),IF($Y$8=8,VLOOKUP(B36,'الثانوية العامة'!$B$3:$AC$151,10,0))))))))))))))","v":0},{"$f":"IFERROR(VLOOKUP(A36,'البيانات الاساسية'!$AF$3:$AJ$69,2,0),\"\")","v":""},{"$f":"IFERROR(VLOOKUP(A36,'البيانات الاساسية'!$AF$3:$AJ$69,3,0),\"\")","v":""},{"$f":"IFERROR(VLOOKUP(A36,'البيانات الاساسية'!$AF$3:$AJ$69,4,0),\"\")","v":""},1,{"$f":"IFERROR(IF(A36=\"\",\"\",VLOOKUP(D36,'البيانات الاساسية'!$E$3:$F$316,2,0)),\"\")","v":""},null,null,null,null,null,null,null,null,null,null,null,null,null,null,{"$f":"IF(ROW()-17<='البيانات الاساسية'!$C$8,ROW()-17,\"\")","v":""},null,null,null,null,null,null,{"$f":"VLOOKUP(X27,'البيانات الاساسية'!$AF$3:$AK$32,5,0)","v":0},10,{"$f":"IF(AE36=$U$10,AF36,\"\")","v":""}]
[null,10,{"$f":"IF($Y$8=1,VLOOKUP(B37,'الثانوية العامة'!$B$3:$AC$151,16,0),IF($Y$8=2,VLOOKUP(B37,'الثانوية العامة'!$B$3:$AC$151,17,0),IF($Y$8=3,VLOOKUP(B37,'الثانوية العامة'!$B$3:$AC$151,18,0),IF($Y$8=4,VLOOKUP(B37,'الثانوية العامة'!$B$3:$AC$151,19,0),IF($Y$8=5,VLOOKUP(B37,'الثانوية العامة'!$B$3:$AC$151,20,0),IF($Y$8=6,VLOOKUP(B37,'الثانوية العامة'!$B$3:$AC$151,21,0),IF($Y$8=7,VLOOKUP(B37,'الثانوية العامة'!$B$3:$AC$151,22,0),IF($Y$8=8,VLOOKUP(B37,'الثانوية العامة'!$B$3:$AC$151,23,0),IF($Y$8=9,VLOOKUP(B37,'الثانوية العامة'!$B$3:$AC$151,24,0),IF($Y$8=10,VLOOKUP(B37,'الثانوية العامة'!$B$3:$AC$151,25,0),IF($Y$8=11,VLOOKUP(B37,'الثانوية العامة'!$B$3:$AC$151,26,0),IF($Y$8=12,VLOOKUP(B37,'الثانوية العامة'!$B$3:$AC$151,27,0),IF($Y$8=13,VLOOKUP(B37,'الثانوية العامة'!$B$3:$AC$151,28,0))))))))))))))","v":0},null,null,null,null,2,{"$f":"IFERROR(IF(A36=\"\",\"\",VLOOKUP(C37,'البيانات الاساسية'!$E$3:$F$316,2,0)),\"\")","v":""},null,null,null,null,null,null,null,null,null,null,null,null,null,null,{"$f":"IF(ROW()-17<='البيانات الاساسية'!$C$8,ROW()-17,\"\")","v":""}]
[{"$f":"IF($E$7=\"\",AG38,AF38)","v":11},{"$f":"A38","v":11},null,{"$f":"IF($Y$8=1,VLOOKUP(B38,'الثانوية العامة'!$B$3:$AC$151,3,0),IF($Y$8=2,VLOOKUP(B38,'الثانوية العامة'!$B$3:$AC$151,4,0),IF($Y$8=3,VLOOKUP(B38,'الثانوية العامة'!$B$3:$AC$151,5,0),IF($Y$8=4,VLOOKUP(B38,'الثانوية العامة'!$B$3:$AC$151,6,0),IF($Y$8=5,VLOOKUP(B38,'الثانوية العامة'!$B$3:$AC$151,7,0),IF($Y$8=6,VLOOKUP(B38,'الثانوية العامة'!$B$3:$AC$151,8,0),IF($Y$8=7,VLOOKUP(B38,'الثانوية العامة'!$B$3:$AC$151,9,0),IF($Y$8=9,VLOOKUP(B38,'الثانوية العامة'!$B$3:$AC$151,11,0),IF($Y$8=10,VLOOKUP(B38,'الثانوية العامة'!$B$3:$AC$151,12,0),IF($Y$8=11,VLOOKUP(B38,'الثانوية العامة'!$B$3:$AC$151,13,0),IF($Y$8=12,VLOOKUP(B38,'الثانوية العامة'!$B$3:$AC$151,14,0),IF($Y$8=13,VLOOKUP(B38,'الثانوية العامة'!$B$3:$AC$151,15,0),IF($Y$8=8,VLOOKUP(B38,'الثانوية العامة'!$B$3:$AC$151,10,0))))))))))))))","v":{"$error":"#N/A"}},{"$f":"IFERROR(VLOOKUP(A38,'البيانات الاساسية'!$AF$3:$AJ$69,2,0),\"\")","v":""},{"$f":"IFERROR(VLOOKUP(A38,'البيانات الاساسية'!$AF$3:$AJ$69,3,0),\"\")","v":""},{"$f":"IFERROR(VLOOKUP(A38,'البيانات الاساسية'!$AF$3:$AJ$69,4,0),\"\")","v":""},1,{"$f":"IFERROR(IF(A38=\"\",\"\",VLOOKUP(D38,'البيانات الاساسية'!$E$3:$F$316,2,0)),\"\")","v":""},null,null,null,null,null,null,null,null,null,null,null,null,null,null,{"$f":"IF(ROW()-17<='البيانات الاساسية'!$C$8,ROW()-17,\"\")","v":""},null,null,null,null,null,null,{"$f":"VLOOKUP(X28,'البيانات الاساسية'!$AF$3:$AK$32,5,0)","v":0},11,{"$f":"IF(AE38=$U$10,AF38,\"\")","v":""}]
[null,11,{"$f":"IF($Y$8=1,VLOOKUP(B39,'الثانوية العامة'!$B$3:$AC$151,16,0),IF($Y$8=2,VLOOKUP(B39,'الثانوية العامة'!$B$3:$AC$151,17,0),IF($Y$8=3,VLOOKUP(B39,'الثانوية العامة'!$B$3:$AC$151,18,0),IF($Y$8=4,VLOOKUP(B39,'الثانوية العامة'!$B$3:$AC$151,19,0),IF($Y$8=5,VLOOKUP(B39,'الثانوية العامة'!$B$3:$AC$151,20,0),IF($Y$8=6,VLOOKUP(B39,'الثانوية العامة'!$B$3:$AC$151,21,0),IF($Y$8=7,VLOOKUP(B39,'الثانوية العامة'!$B$3:$AC$151,22,0),IF($Y$8=8,VLOOKUP(B39,'الثانوية العامة'!$B$3:$AC$151,23,0),IF($Y$8=9,VLOOKUP(B39,'الثانوية العامة'!$B$3:$AC$151,24,0),IF($Y$8=10,VLOOKUP(B39,'الثانوية العامة'!$B$3:$AC$151,25,0),IF($Y$8=11,VLOOKUP(B39,'الثانوية العامة'!$B$3:$AC$151,26,0),IF($Y$8=12,VLOOKUP(B39,'الثانوية العامة'!$B$3:$AC$151,27,0),IF($Y$8=13,VLOOKUP(B39,'الثانوية العامة'!$B$3:$AC$151,28,0))))))))))))))","v":{"$error":"#N/A"}},null,null,null,null,2,{"$f":"IFERROR(IF(A38=\"\",\"\",VLOOKUP(C39,'البيانات الاساسية'!$E$3:$F$316,2,0)),\"\")","v":""},null,null,null,null,null,null,null,null,null,null,null,null,null,null,{"$f":"IF(ROW()-17<='البيانات الاساسية'!$C$8,ROW()-17,\"\")","v":""}]
[{"$f":"IF($E$7=\"\",AG40,AF40)","v":12},{"$f":"A40","v":12},null,{"$f":"IF($Y$8=1,VLOOKUP(B40,'الثانوية العامة'!$B$3:$AC$151,3,0),IF($Y$8=2,VLOOKUP(B40,'الثانوية العامة'!$B$3:$AC$151,4,0),IF($Y$8=3,VLOOKUP(B40,'الثانوية العامة'!$B$3:$AC$151,5,0),IF($Y$8=4,VLOOKUP(B40,'الثانوية العامة'!$B$3:$AC$151,6,0),IF($Y$8=5,VLOOKUP(B40,'الثانوية العامة'!$B$3:$AC$151,7,0),IF($Y$8=6,VLOOKUP(B40,'الثانوية العامة'!$B$3:$AC$151,8,0),IF($Y$8=7,VLOOKUP(B40,'الثانوية العامة'!$B$3:$AC$151,9,0),IF($Y$8=9,VLOOKUP(B40,'الثانوية العامة'!$B$3:$AC$151,11,0),IF($Y$8=10,VLOOKUP(B40,'الثانوية العامة'!$B$3:$AC$151,12,0),IF($Y$8=11,VLOOKUP(B40,'الثانوية العامة'!$B$3:$AC$151,13,0),IF($Y$8=12,VLOOKUP(B40,'الثانوية العامة'!$B$3:$AC$151,14,0),IF($Y$8=13,VLOOKUP(B40,'الثانوية العامة'!$B$3:$AC$151,15,0),IF($Y$8=8,VLOOKUP(B40,'الثانوية العامة'!$B$3:$AC$151,10,0))))))))))))))","v":{"$error":"#N/A"}},{"$f":"IFERROR(VLOOKUP(A40,'البيانات الاساسية'!$AF$3:$AJ$69,2,0),\"\")","v":""},{"$f":"IFERROR(VLOOKUP(A40,'البيانات الاساسية'!$AF$3:$AJ$69,3,0),\"\")","v":""},{"$f":"IFERROR(VLOOKUP(A40,'البيانات الاساسية'!$AF$3:$AJ$69,4,0),\"\")","v":""},1,{"$f":"IFERROR(IF(A40=\"\",\"\",VLOOKUP(D40,'البيانات الاساسية'!$E$3:$F$316,2,0)),\"\")","v":""},null,null,null,null,null,null,null,null,null,null,null,null,null,null,{"$f":"IF(ROW()-17<='البيانات الاساسية'!$C$8,ROW()-17,\"\")","v":""},null,null,null,null,null,null,{"$f":"VLOOKUP(X29,'البيانات الاساسية'!$AF$3:$AK$32,5,0)","v":0},12,{"$f":"IF(AE40=$U$10,AF40,\"\")","v":""}]
[null,12,{"$f":"IF($Y$8=1,VLOOKUP(B41,'الثانوية العامة'!$B$3:$AC$151,16,0),IF($Y$8=2,VLOOKUP(B41,'الثانوية العامة'!$B$3:$AC$151,17,0),IF($Y$8=3,VLOOKUP(B41,'الثانوية العامة'!$B$3:$AC$151,18,0),IF($Y$8=4,VLOOKUP(B41,'الثانوية العامة'!$B$3:$AC$151,19,0),IF($Y$8=5,VLOOKUP(B41,'الثانوية العامة'!$B$3:$AC$151,20,0),IF($Y$8=6,VLOOKUP(B41,'الثانوية العامة'!$B$3:$AC$151,21,0),IF($Y$8=7,VLOOKUP(B41,'الثانوية العامة'!$B$3:$AC$151,22,0),IF($Y$8=8,VLOOKUP(B41,'الثانوية العامة'!$B$3:$AC$151,23,0),IF($Y$8=9,VLOOKUP(B41,'الثانوية العامة'!$B$3:$AC$151,24,0),IF($Y$8=10,VLOOKUP(B41,'الثانوية العامة'!$B$3:$AC$151,25,0),IF($Y$8=11,VLOOKUP(B41,'الثانوية العامة'!$B$3:$AC$151,26,0),IF($Y$8=12,VLOOKUP(B41,'الثانوية العامة'!$B$3:$AC$151,27,0),IF($Y$8=13,VLOOKUP(B41,'الثانوية العامة'!$B$3:$AC$151,28,0))))))))))))))","v":{"$error":"#N/A"}},null,null,null,null,2,{"$f":"IFERROR(IF(A40=\"\",\"\",VLOOKUP(C41,'البيانات الاساسية'!$E$3:$F$316,2,0)),\"\")","v":""},null,null,null,null,null,null,null,null,null,null,null,null,null,null,{"$f":"IF(ROW()-17<='البيانات الاساسية'!$C$8,ROW()-17,\"\")","v":""}]
[{"$f":"IF($E$7=\"\",AG42,AF42)","v":13},{"$f":"A42","v":13},null,{"$f":"IF($Y$8=1,VLOOKUP(B42,'الثانوية العامة'!$B$3:$AC$151,3,0),IF($Y$8=2,VLOOKUP(B42,'الثانوية العامة'!$B$3:$AC$151,4,0),IF($Y$8=3,VLOOKUP(B42,'الثانوية العامة'!$B$3:$AC$151,5,0),IF($Y$8=4,VLOOKUP(B42,'الثانوية العامة'!$B$3:$AC$151,6,0),IF($Y$8=5,VLOOKUP(B42,'الثانوية العامة'!$B$3:$AC$151,7,0),IF($Y$8=6,VLOOKUP(B42,'الثانوية العامة'!$B$3:$AC$151,8,0),IF($Y$8=7,VLOOKUP(B42,'الثانوية العامة'!$B$3:$AC$151,9,0),IF($Y$8=9,VLOOKUP(B42,'الثانوية العامة'!$B$3:$AC$151,11,0),IF($Y$8=10,VLOOKUP(B42,'الثانوية العامة'!$B$3:$AC$151,12,0),IF($Y$8=11,VLOOKUP(B42,'الثانوية العامة'!$B$3:$AC$151,13,0),IF($Y$8=12,VLOOKUP(B42,'الثانوية العامة'!$B$3:$AC$151,14,0),IF($Y$8=13,VLOOKUP(B42,'الثانوية العامة'!$B$3:$AC$151,15,0),IF($Y$8=8,VLOOKUP(B42,'الثانوية العامة'!$B$3:$AC$151,10,0))))))))))))))","v":{"$error":"#N/A"}},{"$f":"IFERROR(VLOOKUP(A42,'البيانات الاساسية'!$AF$3:$AJ$69,2,0),\"\")","v":""},{"$f":"IFERROR(VLOOKUP(A42,'البيانات الاساسية'!$AF$3:$AJ$69,3,0),\"\")","v":""},{"$f":"IFERROR(VLOOKUP(A42,'البيانات الاساسية'!$AF$3:$AJ$69,4,0),\"\")","v":""},1,{"$f":"IFERROR(IF(A42=\"\",\"\",VLOOKUP(D42,'البيانات الاساسية'!$E$3:$F$316,2,0)),\"\")","v":""},null,null,null,null,null,null,null,null,null,null,null,null,null,null,{"$f":"IF(ROW()-17<='البيانات الاساسية'!$C$8,ROW()-17,\"\")","v":""},null,null,null,null,null,null,{"$f":"VLOOKUP(X30,'البيانات الاساسية'!$AF$3:$AK$32,5,0)","v":0},13,{"$f":"IF(AE42=$U$10,AF42,\"\")","v":""}]
[null,13,{"$f":"IF($Y$8=1,VLOOKUP(B43,'الثانوية العامة'!$B$3:$AC$151,16,0),IF($Y$8=2,VLOOKUP(B43,'الثانوية العامة'!$B$3:$AC$151,17,0),IF($Y$8=3,VLOOKUP(B43,'الثانوية العامة'!$B$3:$AC$151,18,0),IF($Y$8=4,VLOOKUP(B43,'الثانوية العامة'!$B$3:$AC$151,19,0),IF($Y$8=5,VLOOKUP(B43,'الثانوية العامة'!$B$3:$AC$151,20,0),IF($Y$8=6,VLOOKUP(B43,'الثانوية العامة'!$B$3:$AC$151,21,0),IF($Y$8=7,VLOOKUP(B43,'الثانوية العامة'!$B$3:$AC$151,22,0),IF($Y$8=8,VLOOKUP(B43,'الثانوية العامة'!$B$3:$AC$151,23,0),IF($Y$8=9,VLOOKUP(B43,'الثانوية العامة'!$B$3:$AC$151,24,0),IF($Y$8=10,VLOOKUP(B43,'الثانوية العامة'!$B$3:$AC$151,25,0),IF($Y$8=11,VLOOKUP(B43,'الثانوية العامة'!$B$3:$AC$151,26,0),IF($Y$8=12,VLOOKUP(B43,'الثانوية العامة'!$B$3:$AC$151,27,0),IF($Y$8=13,VLOOKUP(B43,'الثانوية العامة'!$B$3:$AC$151,28,0))))))))))))))","v":{"$error":"#N/A"}},null,null,null,null,2,{"$f":"IFERROR(IF(A42=\"\",\"\",VLOOKUP(C43,'البيانات الاساسية'!$E$3:$F$316,2,0)),\"\")","v":""},null,null,null,null,null,null,null,null,null,null,null,null,null,null,{"$f":"IF(ROW()-17<='البيانات الاساسية'!$C$8,ROW()-17,\"\")","v":""}]
[{"$f":"IF($E$7=\"\",AG44,AF44)","v":14},{"$f":"A44","v":14},null,{"$f":"IF($Y$8=1,VLOOKUP(B44,'الثانوية العامة'!$B$3:$AC$151,3,0),IF($Y$8=2,VLOOKUP(B44,'الثانوية العامة'!$B$3:$AC$151,4,0),IF($Y$8=3,VLOOKUP(B44,'الثانوية العامة'!$B$3:$AC$151,5,0),IF($Y$8=4,VLOOKUP(B44,'الثانوية العامة'!$B$3:$AC$151,6,0),IF($Y$8=5,VLOOKUP(B44,'الثانوية العامة'!$B$3:$AC$151,7,0),IF($Y$8=6,VLOOKUP(B44,'الثانوية العامة'!$B$3:$AC$151,8,0),IF($Y$8=7,VLOOKUP(B44,'الثانوية العامة'!$B$3:$AC$151,9,0),IF($Y$8=9,VLOOKUP(B44,'الثانوية العامة'!$B$3:$AC$151,11,0),IF($Y$8=10,VLOOKUP(B44,'الثانوية العامة'!$B$3:$AC$151,12,0),IF($Y$8=11,VLOOKUP(B44,'الثانوية العامة'!$B$3:$AC$151,13,0),IF($Y$8=12,VLOOKUP(B44,'الثانوية العامة'!$B$3:$AC$151,14,0),IF($Y$8=13,VLOOKUP(B44,'الثانوية العامة'!$B$3:$AC$151,15,0),IF($Y$8=8,VLOOKUP(B44,'الثانوية العامة'!$B$3:$AC$151,10,0))))))))))))))","v":{"$error":"#N/A"}},{"$f":"IFERROR(VLOOKUP(A44,'البيانات الاساسية'!$AF$3:$AJ$69,2,0),\"\")","v":""},{"$f":"IFERROR(VLOOKUP(A44,'البيانات الاساسية'!$AF$3:$AJ$69,3,0),\"\")","v":""},{"$f":"IFERROR(VLOOKUP(A44,'البيانات الاساسية'!$AF$3:$AJ$69,4,0),\"\")","v":""},1,{"$f":"IFERROR(IF(A44=\"\",\"\",VLOOKUP(D44,'البيانات الاساسية'!$E$3:$F$316,2,0)),\"\")","v":""},null,null,null,null,null,null,null,null,null,null,null,null,null,null,{"$f":"IF(ROW()-17<='البيانات الاساسية'!$C$8,ROW()-17,\"\")","v":""},null,null,null,null,null,null,{"$f":"VLOOKUP(X31,'البيانات الاساسية'!$AF$3:$AK$32,5,0)","v":0},14,{"$f":"IF(AE44=$U$10,AF44,\"\")","v":""}]
[null,{"$f":"A44","v":14},{"$f":"IF($Y$8=1,VLOOKUP(B45,'الثانوية العامة'!$B$3:$AC$151,16,0),IF($Y$8=2,VLOOKUP(B45,'الثانوية العامة'!$B$3:$AC$151,17,0),IF($Y$8=3,VLOOKUP(B45,'الثانوية العامة'!$B$3:$AC$151,18,0),IF($Y$8=4,VLOOKUP(B45,'الثانوية العامة'!$B$3:$AC$151,19,0),IF($Y$8=5,VLOOKUP(B45,'الثانوية العامة'!$B$3:$AC$151,20,0),IF($Y$8=6,VLOOKUP(B45,'الثانوية العامة'!$B$3:$AC$151,21,0),IF($Y$8=7,VLOOKUP(B45,'الثانوية العامة'!$B$3:$AC$151,22,0),IF($Y$8=8,VLOOKUP(B45,'الثانوية العامة'!$B$3:$AC$151,23,0),IF($Y$8=9,VLOOKUP(B45,'الثانوية العامة'!$B$3:$AC$151,24,0),IF($Y$8=10,VLOOKUP(B45,'الثانوية العامة'!$B$3:$AC$151,25,0),IF($Y$8=11,VLOOKUP(B45,'الثانوية العامة'!$B$3:$AC$151,26,0),IF($Y$8=12,VLOOKUP(B45,'الثانوية العامة'!$B$3:$AC$151,27,0),IF($Y$8=13,VLOOKUP(B45,'الثانوية العامة'!$B$3:$AC$151,28,0))))))))))))))","v":{"$error":"#N/A"}},null,null,null,null,2,{"$f":"IFERROR(IF(A44=\"\",\"\",VLOOKUP(C45,'البيانات الاساسية'!$E$3:$F$316,2,0)),\"\")","v":""},null,null,null,null,null,null,null,null,null,null,null,null,null,null,{"$f":"IF(ROW()-17<='البيانات الاساسية'!$C$8,ROW()-17,\"\")","v":""}]
[{"$f":"IF($E$7=\"\",AG46,AF46)","v":15},{"$f":"A46","v":15},null,{"$f":"IF($Y$8=1,VLOOKUP(B46,'الثانوية العامة'!$B$3:$AC$151,3,0),IF($Y$8=2,VLOOKUP(B46,'الثانوية العامة'!$B$3:$AC$151,4,0),IF($Y$8=3,VLOOKUP(B46,'الثانوية العامة'!$B$3:$AC$151,5,0),IF($Y$8=4,VLOOKUP(B46,'الثانوية العامة'!$B$3:$AC$151,6,0),IF($Y$8=5,VLOOKUP(B46,'الثانوية العامة'!$B$3:$AC$151,7,0),IF($Y$8=6,VLOOKUP(B46,'الثانوية العامة'!$B$3:$AC$151,8,0),IF($Y$8=7,VLOOKUP(B46,'الثانوية العامة'!$B$3:$AC$151,9,0),IF($Y$8=9,VLOOKUP(B46,'الثانوية العامة'!$B$3:$AC$151,11,0),IF($Y$8=10,VLOOKUP(B46,'الثانوية العامة'!$B$3:$AC$151,12,0),IF($Y$8=11,VLOOKUP(B46,'الثانوية العامة'!$B$3:$AC$151,13,0),IF($Y$8=12,VLOOKUP(B46,'الثانوية العامة'!$B$3:$AC$151,14,0),IF($Y$8=13,VLOOKUP(B46,'الثانوية العامة'!$B$3:$AC$151,15,0),IF($Y$8=8,VLOOKUP(B46,'الثانوية العامة'!$B$3:$AC$151,10,0))))))))))))))","v":{"$error":"#N/A"}},{"$f":"IFERROR(VLOOKUP(A46,'البيانات الاساسية'!$AF$3:$AJ$69,2,0),\"\")","v":""},{"$f":"IFERROR(VLOOKUP(A46,'البيانات الاساسية'!$AF$3:$AJ$69,3,0),\"\")","v":""},{"$f":"IFERROR(VLOOKUP(A46,'البيانات الاساسية'!$AF$3:$AJ$69,4,0),\"\")","v":""},1,{"$f":"IFERROR(IF(A46=\"\",\"\",VLOOKUP(D46,'البيانات الاساسية'!$E$3:$F$316,2,0)),\"\")","v":""},null,null,null,null,null,null,null,null,null,null,null,null,null,null,{"$f":"IF(ROW()-17<='البيانات الاساسية'!$C$8,ROW()-17,\"\")","v":""},null,null,null,null,null,null,{"$f":"VLOOKUP(X32,'البيانات الاساسية'!$AF$3:$AK$32,5,0)","v":0},15,{"$f":"IF(AE46=$U$10,AF46,\"\")","v":""}]
[null,15,{"$f":"IF($Y$8=1,VLOOKUP(B47,'الثانوية العامة'!$B$3:$AC$151,16,0),IF($Y$8=2,VLOOKUP(B47,'الثانوية العامة'!$B$3:$AC$151,17,0),IF($Y$8=3,VLOOKUP(B47,'الثانوية العامة'!$B$3:$AC$151,18,0),IF($Y$8=4,VLOOKUP(B47,'الثانوية العامة'!$B$3:$AC$151,19,0),IF($Y$8=5,VLOOKUP(B47,'الثانوية العامة'!$B$3:$AC$151,20,0),IF($Y$8=6,VLOOKUP(B47,'الثانوية العامة'!$B$3:$AC$151,21,0),IF($Y$8=7,VLOOKUP(B47,'الثانوية العامة'!$B$3:$AC$151,22,0),IF($Y$8=8,VLOOKUP(B47,'الثانوية العامة'!$B$3:$AC$151,23,0),IF($Y$8=9,VLOOKUP(B47,'الثانوية العامة'!$B$3:$AC$151,24,0),IF($Y$8=10,VLOOKUP(B47,'الثانوية العامة'!$B$3:$AC$151,25,0),IF($Y$8=11,VLOOKUP(B47,'الثانوية العامة'!$B$3:$AC$151,26,0),IF($Y$8=12,VLOOKUP(B47,'الثانوية العامة'!$B$3:$AC$151,27,0),IF($Y$8=13,VLOOKUP(B47,'الثانوية العامة'!$B$3:$AC$151,28,0))))))))))))))","v":{"$error":"#N/A"}},null,null,null,null,2,{"$f":"IFERROR(IF(A46=\"\",\"\",VLOOKUP(C47,'البيانات الاساسية'!$E$3:$F$316,2,0)),\"\")","v":""},null,null,null,null,null,null,null,null,null,null,null,null,null,null,{"$f":"IF(ROW()-17<='البيانات الاساسية'!$C$8,ROW()-17,\"\")","v":""}]
[{"$f":"IF($E$7=\"\",AG48,AF48)","v":16},{"$f":"A48","v":16},null,{"$f":"IF($Y$8=1,VLOOKUP(B48,'الثانوية العامة'!$B$3:$AC$151,3,0),IF($Y$8=2,VLOOKUP(B48,'الثانوية العامة'!$B$3:$AC$151,4,0),IF($Y$8=3,VLOOKUP(B48,'الثانوية العامة'!$B$3:$AC$151,5,0),IF($Y$8=4,VLOOKUP(B48,'الثانوية العامة'!$B$3:$AC$151,6,0),IF($Y$8=5,VLOOKUP(B48,'الثانوية العامة'!$B$3:$AC$151,7,0),IF($Y$8=6,VLOOKUP(B48,'الثانوية العامة'!$B$3:$AC$151,8,0),IF($Y$8=7,VLOOKUP(B48,'الثانوية العامة'!$B$3:$AC$151,9,0),IF($Y$8=9,VLOOKUP(B48,'الثانوية العامة'!$B$3:$AC$151,11,0),IF($Y$8=10,VLOOKUP(B48,'الثانوية العامة'!$B$3:$AC$151,12,0),IF($Y$8=11,VLOOKUP(B48,'الثانوية العامة'!$B$3:$AC$151,13,0),IF($Y$8=12,VLOOKUP(B48,'الثانوية العامة'!$B$3:$AC$151,14,0),IF($Y$8=13,VLOOKUP(B48,'الثانوية العامة'!$B$3:$AC$151,15,0),IF($Y$8=8,VLOOKUP(B48,'الثانوية العامة'!$B$3:$AC$151,10,0))))))))))))))","v":{"$error":"#N/A"}},{"$f":"IFERROR(VLOOKUP(A48,'البيانات الاساسية'!$AF$3:$AJ$69,2,0),\"\")","v":""},{"$f":"IFERROR(VLOOKUP(A48,'البيانات الاساسية'!$AF$3:$AJ$69,3,0),\"\")","v":""},{"$f":"IFERROR(VLOOKUP(A48,'البيانات الاساسية'!$AF$3:$AJ$69,4,0),\"\")","v":""},1,{"$f":"IFERROR(IF(A48=\"\",\"\",VLOOKUP(D48,'البيانات الاساسية'!$E$3:$F$316,2,0)),\"\")","v":""},null,null,null,null,null,null,null,null,null,null,null,null,null,null,{"$f":"IF(ROW()-17<='البيانات الاساسية'!$C$8,ROW()-17,\"\")","v":""},null,null,null,null,null,null,{"$f":"VLOOKUP(X33,'البيانات الاساسية'!$AF$3:$AK$32,5,0)","v":0},16,{"$f":"IF(AE48=$U$10,AF48,\"\")","v":""}]
[null,16,{"$f":"IF($Y$8=1,VLOOKUP(B49,'الثانوية العامة'!$B$3:$AC$151,16,0),IF($Y$8=2,VLOOKUP(B49,'الثانوية العامة'!$B$3:$AC$151,17,0),IF($Y$8=3,VLOOKUP(B49,'الثانوية العامة'!$B$3:$AC$151,18,0),IF($Y$8=4,VLOOKUP(B49,'الثانوية العامة'!$B$3:$AC$151,19,0),IF($Y$8=5,VLOOKUP(B49,'الثانوية العامة'!$B$3:$AC$151,20,0),IF($Y$8=6,VLOOKUP(B49,'الثانوية العامة'!$B$3:$AC$151,21,0),IF($Y$8=7,VLOOKUP(B49,'الثانوية العامة'!$B$3:$AC$151,22,0),IF($Y$8=8,VLOOKUP(B49,'الثانوية العامة'!$B$3:$AC$151,23,0),IF($Y$8=9,VLOOKUP(B49,'الثانوية العامة'!$B$3:$AC$151,24,0),IF($Y$8=10,VLOOKUP(B49,'الثانوية العامة'!$B$3:$AC$151,25,0),IF($Y$8=11,VLOOKUP(B49,'الثانوية العامة'!$B$3:$AC$151,26,0),IF($Y$8=12,VLOOKUP(B49,'الثانوية العامة'!$B$3:$AC$151,27,0),IF($Y$8=13,VLOOKUP(B49,'الثانوية العامة'!$B$3:$AC$151,28,0))))))))))))))","v":{"$error":"#N/A"}},null,null,null,null,2,{"$f":"IFERROR(IF(A48=\"\",\"\",VLOOKUP(C49,'البيانات الاساسية'!$E$3:$F$316,2,0)),\"\")","v":""},null,null,null,null,null,null,null,null,null,null,null,null,null,null,{"$f":"IF(ROW()-17<='البيانات الاساسية'!$C$8,ROW()-17,\"\")","v":""}]
[{"$f":"IF($E$7=\"\",AG50,AF50)","v":17},{"$f":"A50","v":17},null,{"$f":"IF($Y$8=1,VLOOKUP(B50,'الثانوية العامة'!$B$3:$AC$151,3,0),IF($Y$8=2,VLOOKUP(B50,'الثانوية العامة'!$B$3:$AC$151,4,0),IF($Y$8=3,VLOOKUP(B50,'الثانوية العامة'!$B$3:$AC$151,5,0),IF($Y$8=4,VLOOKUP(B50,'الثانوية العامة'!$B$3:$AC$151,6,0),IF($Y$8=5,VLOOKUP(B50,'الثانوية العامة'!$B$3:$AC$151,7,0),IF($Y$8=6,VLOOKUP(B50,'الثانوية العامة'!$B$3:$AC$151,8,0),IF($Y$8=7,VLOOKUP(B50,'الثانوية العامة'!$B$3:$AC$151,9,0),IF($Y$8=9,VLOOKUP(B50,'الثانوية العامة'!$B$3:$AC$151,11,0),IF($Y$8=10,VLOOKUP(B50,'الثانوية العامة'!$B$3:$AC$151,12,0),IF($Y$8=11,VLOOKUP(B50,'الثانوية العامة'!$B$3:$AC$151,13,0),IF($Y$8=12,VLOOKUP(B50,'الثانوية العامة'!$B$3:$AC$151,14,0),IF($Y$8=13,VLOOKUP(B50,'الثانوية العامة'!$B$3:$AC$151,15,0),IF($Y$8=8,VLOOKUP(B50,'الثانوية العامة'!$B$3:$AC$151,10,0))))))))))))))","v":{"$error":"#N/A"}},{"$f":"IFERROR(VLOOKUP(A50,'البيانات الاساسية'!$AF$3:$AJ$69,2,0),\"\")","v":""},{"$f":"IFERROR(VLOOKUP(A50,'البيانات الاساسية'!$AF$3:$AJ$69,3,0),\"\")","v":""},{"$f":"IFERROR(VLOOKUP(A50,'البيانات الاساسية'!$AF$3:$AJ$69,4,0),\"\")","v":""},1,{"$f":"IFERROR(IF(A50=\"\",\"\",VLOOKUP(D50,'البيانات الاساسية'!$E$3:$F$316,2,0)),\"\")","v":""},null,null,null,null,null,null,null,null,null,null,null,null,null,null,{"$f":"IF(ROW()-17<='البيانات الاساسية'!$C$8,ROW()-17,\"\")","v":""},null,null,null,null,null,null,{"$f":"VLOOKUP(X34,'البيانات الاساسية'!$AF$3:$AK$32,5,0)","v":0},17,{"$f":"IF(AE50=$U$10,AF50,\"\")","v":""}]
[null,17,{"$f":"IF($Y$8=1,VLOOKUP(B51,'الثانوية العامة'!$B$3:$AC$151,16,0),IF($Y$8=2,VLOOKUP(B51,'الثانوية العامة'!$B$3:$AC$151,17,0),IF($Y$8=3,VLOOKUP(B51,'الثانوية العامة'!$B$3:$AC$151,18,0),IF($Y$8=4,VLOOKUP(B51,'الثانوية العامة'!$B$3:$AC$151,19,0),IF($Y$8=5,VLOOKUP(B51,'الثانوية العامة'!$B$3:$AC$151,20,0),IF($Y$8=6,VLOOKUP(B51,'الثانوية العامة'!$B$3:$AC$151,21,0),IF($Y$8=7,VLOOKUP(B51,'الثانوية العامة'!$B$3:$AC$151,22,0),IF($Y$8=8,VLOOKUP(B51,'الثانوية العامة'!$B$3:$AC$151,23,0),IF($Y$8=9,VLOOKUP(B51,'الثانوية العامة'!$B$3:$AC$151,24,0),IF($Y$8=10,VLOOKUP(B51,'الثانوية العامة'!$B$3:$AC$151,25,0),IF($Y$8=11,VLOOKUP(B51,'الثانوية العامة'!$B$3:$AC$151,26,0),IF($Y$8=12,VLOOKUP(B51,'الثانوية العامة'!$B$3:$AC$151,27,0),IF($Y$8=13,VLOOKUP(B51,'الثانوية العامة'!$B$3:$AC$151,28,0))))))))))))))","v":{"$error":"#N/A"}},null,null,null,null,2,{"$f":"IFERROR(IF(A50=\"\",\"\",VLOOKUP(C51,'البيانات الاساسية'!$E$3:$F$316,2,0)),\"\")","v":""},null,null,null,null,null,null,null,null,null,null,null,null,null,null,{"$f":"IF(ROW()-17<='البيانات الاساسية'!$C$8,ROW()-17,\"\")","v":""}]
[{"$f":"IF($E$7=\"\",AG52,AF52)","v":18},{"$f":"A52","v":18},null,{"$f":"IF($Y$8=1,VLOOKUP(B52,'الثانوية العامة'!$B$3:$AC$151,3,0),IF($Y$8=2,VLOOKUP(B52,'الثانوية العامة'!$B$3:$AC$151,4,0),IF($Y$8=3,VLOOKUP(B52,'الثانوية العامة'!$B$3:$AC$151,5,0),IF($Y$8=4,VLOOKUP(B52,'الثانوية العامة'!$B$3:$AC$151,6,0),IF($Y$8=5,VLOOKUP(B52,'الثانوية العامة'!$B$3:$AC$151,7,0),IF($Y$8=6,VLOOKUP(B52,'الثانوية العامة'!$B$3:$AC$151,8,0),IF($Y$8=7,VLOOKUP(B52,'الثانوية العامة'!$B$3:$AC$151,9,0),IF($Y$8=9,VLOOKUP(B52,'الثانوية العامة'!$B$3:$AC$151,11,0),IF($Y$8=10,VLOOKUP(B52,'الثانوية العامة'!$B$3:$AC$151,12,0),IF($Y$8=11,VLOOKUP(B52,'الثانوية العامة'!$B$3:$AC$151,13,0),IF($Y$8=12,VLOOKUP(B52,'الثانوية العامة'!$B$3:$AC$151,14,0),IF($Y$8=13,VLOOKUP(B52,'الثانوية العامة'!$B$3:$AC$151,15,0),IF($Y$8=8,VLOOKUP(B52,'الثانوية العامة'!$B$3:$AC$151,10,0))))))))))))))","v":{"$error":"#N/A"}},{"$f":"IFERROR(VLOOKUP(A52,'البيانات الاساسية'!$AF$3:$AJ$69,2,0),\"\")","v":""},{"$f":"IFERROR(VLOOKUP(A52,'البيانات الاساسية'!$AF$3:$AJ$69,3,0),\"\")","v":""},{"$f":"IFERROR(VLOOKUP(A52,'البيانات الاساسية'!$AF$3:$AJ$69,4,0),\"\")","v":""},1,{"$f":"IFERROR(IF(A52=\"\",\"\",VLOOKUP(D52,'البيانات الاساسية'!$E$3:$F$316,2,0)),\"\")","v":""},null,null,null,null,null,null,null,null,null,null,null,null,null,null,{"$f":"IF(ROW()-17<='البيانات الاساسية'!$C$8,ROW()-17,\"\")","v":""},null,null,null,null,null,null,{"$f":"VLOOKUP(X35,'البيانات الاساسية'!$AF$3:$AK$32,5,0)","v":0},18,{"$f":"IF(AE52=$U$10,AF52,\"\")","v":""}]
[null,18,{"$f":"IF($Y$8=1,VLOOKUP(B53,'الثانوية العامة'!$B$3:$AC$151,16,0),IF($Y$8=2,VLOOKUP(B53,'الثانوية العامة'!$B$3:$AC$151,17,0),IF($Y$8=3,VLOOKUP(B53,'الثانوية العامة'!$B$3:$AC$151,18,0),IF($Y$8=4,VLOOKUP(B53,'الثانوية العامة'!$B$3:$AC$151,19,0),IF($Y$8=5,VLOOKUP(B53,'الثانوية العامة'!$B$3:$AC$151,20,0),IF($Y$8=6,VLOOKUP(B53,'الثانوية العامة'!$B$3:$AC$151,21,0),IF($Y$8=7,VLOOKUP(B53,'الثانوية العامة'!$B$3:$AC$151,22,0),IF($Y$8=8,VLOOKUP(B53,'الثانوية العامة'!$B$3:$AC$151,23,0),IF($Y$8=9,VLOOKUP(B53,'الثانوية العامة'!$B$3:$AC$151,24,0),IF($Y$8=10,VLOOKUP(B53,'الثانوية العامة'!$B$3:$AC$151,25,0),IF($Y$8=11,VLOOKUP(B53,'الثانوية العامة'!$B$3:$AC$151,26,0),IF($Y$8=12,VLOOKUP(B53,'الثانوية العامة'!$B$3:$AC$151,27,0),IF($Y$8=13,VLOOKUP(B53,'الثانوية العامة'!$B$3:$AC$151,28,0))))))))))))))","v":{"$error":"#N/A"}},null,null,null,null,2,{"$f":"IFERROR(IF(A52=\"\",\"\",VLOOKUP(C53,'البيانات الاساسية'!$E$3:$F$316,2,0)),\"\")","v":""},null,null,null,null,null,null,null,null,null,null,null,null,null,null,{"$f":"IF(ROW()-2<='البيانات الاساسية'!$C$8,ROW()-17,\"\")","v":""}]
[{"$f":"IF($E$7=\"\",AG54,AF54)","v":19},{"$f":"A54","v":19},null,{"$f":"IF($Y$8=1,VLOOKUP(B54,'الثانوية العامة'!$B$3:$AC$151,3,0),IF($Y$8=2,VLOOKUP(B54,'الثانوية العامة'!$B$3:$AC$151,4,0),IF($Y$8=3,VLOOKUP(B54,'الثانوية العامة'!$B$3:$AC$151,5,0),IF($Y$8=4,VLOOKUP(B54,'الثانوية العامة'!$B$3:$AC$151,6,0),IF($Y$8=5,VLOOKUP(B54,'الثانوية العامة'!$B$3:$AC$151,7,0),IF($Y$8=6,VLOOKUP(B54,'الثانوية العامة'!$B$3:$AC$151,8,0),IF($Y$8=7,VLOOKUP(B54,'الثانوية العامة'!$B$3:$AC$151,9,0),IF($Y$8=9,VLOOKUP(B54,'الثانوية العامة'!$B$3:$AC$151,11,0),IF($Y$8=10,VLOOKUP(B54,'الثانوية العامة'!$B$3:$AC$151,12,0),IF($Y$8=11,VLOOKUP(B54,'الثانوية العامة'!$B$3:$AC$151,13,0),IF($Y$8=12,VLOOKUP(B54,'الثانوية العامة'!$B$3:$AC$151,14,0),IF($Y$8=13,VLOOKUP(B54,'الثانوية العامة'!$B$3:$AC$151,15,0),IF($Y$8=8,VLOOKUP(B54,'الثانوية العامة'!$B$3:$AC$151,10,0))))))))))))))","v":{"$error":"#N/A"}},{"$f":"IFERROR(VLOOKUP(A54,'البيانات الاساسية'!$AF$3:$AJ$69,2,0),\"\")","v":""},{"$f":"IFERROR(VLOOKUP(A54,'البيانات الاساسية'!$AF$3:$AJ$69,3,0),\"\")","v":""},{"$f":"IFERROR(VLOOKUP(A54,'البيانات الاساسية'!$AF$3:$AJ$69,4,0),\"\")","v":""},1,{"$f":"IFERROR(IF(A54=\"\",\"\",VLOOKUP(D54,'البيانات الاساسية'!$E$3:$F$316,2,0)),\"\")","v":""},null,null,null,null,null,null,null,null,null,null,null,null,null,null,{"$f":"IF(ROW()-2<='البيانات الاساسية'!$C$8,ROW()-17,\"\")","v":""},null,null,null,null,null,null,{"$f":"VLOOKUP(X36,'البيانات الاساسية'!$AF$3:$AK$32,5,0)","v":0},19,{"$f":"IF(AE54=$U$10,AF54,\"\")","v":""}]
[null,19,{"$f":"IF($Y$8=1,VLOOKUP(B55,'الثانوية العامة'!$B$3:$AC$151,16,0),IF($Y$8=2,VLOOKUP(B55,'الثانوية العامة'!$B$3:$AC$151,17,0),IF($Y$8=3,VLOOKUP(B55,'الثانوية العامة'!$B$3:$AC$151,18,0),IF($Y$8=4,VLOOKUP(B55,'الثانوية العامة'!$B$3:$AC$151,19,0),IF($Y$8=5,VLOOKUP(B55,'الثانوية العامة'!$B$3:$AC$151,20,0),IF($Y$8=6,VLOOKUP(B55,'الثانوية العامة'!$B$3:$AC$151,21,0),IF($Y$8=7,VLOOKUP(B55,'الثانوية العامة'!$B$3:$AC$151,22,0),IF($Y$8=8,VLOOKUP(B55,'الثانوية العامة'!$B$3:$AC$151,23,0),IF($Y$8=9,VLOOKUP(B55,'الثانوية العامة'!$B$3:$AC$151,24,0),IF($Y$8=10,VLOOKUP(B55,'الثانوية العامة'!$B$3:$AC$151,25,0),IF($Y$8=11,VLOOKUP(B55,'الثانوية العامة'!$B$3:$AC$151,26,0),IF($Y$8=12,VLOOKUP(B55,'الثانوية العامة'!$B$3:$AC$151,27,0),IF($Y$8=13,VLOOKUP(B55,'الثانوية العامة'!$B$3:$AC$151,28,0))))))))))))))","v":{"$error":"#N/A"}},null,null,null,null,2,{"$f":"IFERROR(IF(A54=\"\",\"\",VLOOKUP(C55,'البيانات الاساسية'!$E$3:$F$316,2,0)),\"\")","v":""},null,null,null,null,null,null,null,null,null,null,null,null,null,null,{"$f":"IF(ROW()-2<='البيانات الاساسية'!$C$8,ROW()-17,\"\")","v":""}]
[{"$f":"IF($E$7=\"\",AG56,AF56)","v":20},{"$f":"A56","v":20},null,{"$f":"IF($Y$8=1,VLOOKUP(B56,'الثانوية العامة'!$B$3:$AC$151,3,0),IF($Y$8=2,VLOOKUP(B56,'الثانوية العامة'!$B$3:$AC$151,4,0),IF($Y$8=3,VLOOKUP(B56,'الثانوية العامة'!$B$3:$AC$151,5,0),IF($Y$8=4,VLOOKUP(B56,'الثانوية العامة'!$B$3:$AC$151,6,0),IF($Y$8=5,VLOOKUP(B56,'الثانوية العامة'!$B$3:$AC$151,7,0),IF($Y$8=6,VLOOKUP(B56,'الثانوية العامة'!$B$3:$AC$151,8,0),IF($Y$8=7,VLOOKUP(B56,'الثانوية العامة'!$B$3:$AC$151,9,0),IF($Y$8=9,VLOOKUP(B56,'الثانوية العامة'!$B$3:$AC$151,11,0),IF($Y$8=10,VLOOKUP(B56,'الثانوية العامة'!$B$3:$AC$151,12,0),IF($Y$8=11,VLOOKUP(B56,'الثانوية العامة'!$B$3:$AC$151,13,0),IF($Y$8=12,VLOOKUP(B56,'الثانوية العامة'!$B$3:$AC$151,14,0),IF($Y$8=13,VLOOKUP(B56,'الثانوية العامة'!$B$3:$AC$151,15,0),IF($Y$8=8,VLOOKUP(B56,'الثانوية العامة'!$B$3:$AC$151,10,0))))))))))))))","v":{"$error":"#N/A"}},{"$f":"IFERROR(VLOOKUP(A56,'البيانات الاساسية'!$AF$3:$AJ$69,2,0),\"\")","v":""},{"$f":"IFERROR(VLOOKUP(A56,'البيانات الاساسية'!$AF$3:$AJ$69,3,0),\"\")","v":""},{"$f":"IFERROR(VLOOKUP(A56,'البيانات الاساسية'!$AF$3:$AJ$69,4,0),\"\")","v":""},1,{"$f":"IFERROR(IF(A56=\"\",\"\",VLOOKUP(D56,'البيانات الاساسية'!$E$3:$F$316,2,0)),\"\")","v":""},null,null,null,null,null,null,null,null,null,null,null,null,null,null,{"$f":"IF(ROW()-2<='البيانات الاساسية'!$C$8,ROW()-17,\"\")","v":""},null,null,null,null,null,null,{"$f":"VLOOKUP(X37,'البيانات الاساسية'!$AF$3:$AK$32,5,0)","v":0},20,{"$f":"IF(AE56=$U$10,AF56,\"\")","v":""}]
[null,20,{"$f":"IF($Y$8=1,VLOOKUP(B57,'الثانوية العامة'!$B$3:$AC$151,16,0),IF($Y$8=2,VLOOKUP(B57,'الثانوية العامة'!$B$3:$AC$151,17,0),IF($Y$8=3,VLOOKUP(B57,'الثانوية العامة'!$B$3:$AC$151,18,0),IF($Y$8=4,VLOOKUP(B57,'الثانوية العامة'!$B$3:$AC$151,19,0),IF($Y$8=5,VLOOKUP(B57,'الثانوية العامة'!$B$3:$AC$151,20,0),IF($Y$8=6,VLOOKUP(B57,'الثانوية العامة'!$B$3:$AC$151,21,0),IF($Y$8=7,VLOOKUP(B57,'الثانوية العامة'!$B$3:$AC$151,22,0),IF($Y$8=8,VLOOKUP(B57,'الثانوية العامة'!$B$3:$AC$151,23,0),IF($Y$8=9,VLOOKUP(B57,'الثانوية العامة'!$B$3:$AC$151,24,0),IF($Y$8=10,VLOOKUP(B57,'الثانوية العامة'!$B$3:$AC$151,25,0),IF($Y$8=11,VLOOKUP(B57,'الثانوية العامة'!$B$3:$AC$151,26,0),IF($Y$8=12,VLOOKUP(B57,'الثانوية العامة'!$B$3:$AC$151,27,0),IF($Y$8=13,VLOOKUP(B57,'الثانوية العامة'!$B$3:$AC$151,28,0))))))))))))))","v":{"$error":"#N/A"}},null,null,null,null,2,{"$f":"IFERROR(IF(A56=\"\",\"\",VLOOKUP(C57,'البيانات الاساسية'!$E$3:$F$316,2,0)),\"\")","v":""},null,null,null,null,null,null,null,null,null,null,null,null,null,null,{"$f":"IF(ROW()-2<='البيانات الاساسية'!$C$8,ROW()-17,\"\")","v":""}]
[{"$f":"IF($E$7=\"\",AG58,AF58)","v":21},{"$f":"A58","v":21},null,{"$f":"IF($Y$8=1,VLOOKUP(B58,'الثانوية العامة'!$B$3:$AC$151,3,0),IF($Y$8=2,VLOOKUP(B58,'الثانوية العامة'!$B$3:$AC$151,4,0),IF($Y$8=3,VLOOKUP(B58,'الثانوية العامة'!$B$3:$AC$151,5,0),IF($Y$8=4,VLOOKUP(B58,'الثانوية العامة'!$B$3:$AC$151,6,0),IF($Y$8=5,VLOOKUP(B58,'الثانوية العامة'!$B$3:$AC$151,7,0),IF($Y$8=6,VLOOKUP(B58,'الثانوية العامة'!$B$3:$AC$151,8,0),IF($Y$8=7,VLOOKUP(B58,'الثانوية العامة'!$B$3:$AC$151,9,0),IF($Y$8=9,VLOOKUP(B58,'الثانوية العامة'!$B$3:$AC$151,11,0),IF($Y$8=10,VLOOKUP(B58,'الثانوية العامة'!$B$3:$AC$151,12,0),IF($Y$8=11,VLOOKUP(B58,'الثانوية العامة'!$B$3:$AC$151,13,0),IF($Y$8=12,VLOOKUP(B58,'الثانوية العامة'!$B$3:$AC$151,14,0),IF($Y$8=13,VLOOKUP(B58,'الثانوية العامة'!$B$3:$AC$151,15,0),IF($Y$8=8,VLOOKUP(B58,'الثانوية العامة'!$B$3:$AC$151,10,0))))))))))))))","v":{"$error":"#N/A"}},{"$f":"IFERROR(VLOOKUP(A58,'البيانات الاساسية'!$AF$3:$AJ$69,2,0),\"\")","v":""},{"$f":"IFERROR(VLOOKUP(A58,'البيانات الاساسية'!$AF$3:$AJ$69,3,0),\"\")","v":""},{"$f":"IFERROR(VLOOKUP(A58,'البيانات الاساسية'!$AF$3:$AJ$69,4,0),\"\")","v":""},1,{"$f":"IFERROR(IF(A58=\"\",\"\",VLOOKUP(D58,'البيانات الاساسية'!$E$3:$F$316,2,0)),\"\")","v":""},null,null,null,null,null,null,null,null,null,null,null,null,null,null,{"$f":"IF(ROW()-2<='البيانات الاساسية'!$C$8,ROW()-17,\"\")","v":""},null,null,null,null,null,null,{"$f":"VLOOKUP(X38,'البيانات الاساسية'!$AF$3:$AK$32,5,0)","v":0},21,{"$f":"IF(AE58=$U$10,AF58,\"\")","v":""}]
[null,21,{"$f":"IF($Y$8=1,VLOOKUP(B59,'الثانوية العامة'!$B$3:$AC$151,16,0),IF($Y$8=2,VLOOKUP(B59,'الثانوية العامة'!$B$3:$AC$151,17,0),IF($Y$8=3,VLOOKUP(B59,'الثانوية العامة'!$B$3:$AC$151,18,0),IF($Y$8=4,VLOOKUP(B59,'الثانوية العامة'!$B$3:$AC$151,19,0),IF($Y$8=5,VLOOKUP(B59,'الثانوية العامة'!$B$3:$AC$151,20,0),IF($Y$8=6,VLOOKUP(B59,'الثانوية العامة'!$B$3:$AC$151,21,0),IF($Y$8=7,VLOOKUP(B59,'الثانوية العامة'!$B$3:$AC$151,22,0),IF($Y$8=8,VLOOKUP(B59,'الثانوية العامة'!$B$3:$AC$151,23,0),IF($Y$8=9,VLOOKUP(B59,'الثانوية العامة'!$B$3:$AC$151,24,0),IF($Y$8=10,VLOOKUP(B59,'الثانوية العامة'!$B$3:$AC$151,25,0),IF($Y$8=11,VLOOKUP(B59,'الثانوية العامة'!$B$3:$AC$151,26,0),IF($Y$8=12,VLOOKUP(B59,'الثانوية العامة'!$B$3:$AC$151,27,0),IF($Y$8=13,VLOOKUP(B59,'الثانوية العامة'!$B$3:$AC$151,28,0))))))))))))))","v":{"$error":"#N/A"}},null,null,null,null,2,{"$f":"IFERROR(IF(A58=\"\",\"\",VLOOKUP(C59,'البيانات الاساسية'!$E$3:$F$316,2,0)),\"\")","v":""},null,null,null,null,null,null,null,null,null,null,null,null,null,null,{"$f":"IF(ROW()-2<='البيانات الاساسية'!$C$8,ROW()-17,\"\")","v":""}]
[{"$f":"IF($E$7=\"\",AG60,AF60)","v":22},{"$f":"A60","v":22},null,{"$f":"IF($Y$8=1,VLOOKUP(B60,'الثانوية العامة'!$B$3:$AC$151,3,0),IF($Y$8=2,VLOOKUP(B60,'الثانوية العامة'!$B$3:$AC$151,4,0),IF($Y$8=3,VLOOKUP(B60,'الثانوية العامة'!$B$3:$AC$151,5,0),IF($Y$8=4,VLOOKUP(B60,'الثانوية العامة'!$B$3:$AC$151,6,0),IF($Y$8=5,VLOOKUP(B60,'الثانوية العامة'!$B$3:$AC$151,7,0),IF($Y$8=6,VLOOKUP(B60,'الثانوية العامة'!$B$3:$AC$151,8,0),IF($Y$8=7,VLOOKUP(B60,'الثانوية العامة'!$B$3:$AC$151,9,0),IF($Y$8=9,VLOOKUP(B60,'الثانوية العامة'!$B$3:$AC$151,11,0),IF($Y$8=10,VLOOKUP(B60,'الثانوية العامة'!$B$3:$AC$151,12,0),IF($Y$8=11,VLOOKUP(B60,'الثانوية العامة'!$B$3:$AC$151,13,0),IF($Y$8=12,VLOOKUP(B60,'الثانوية العامة'!$B$3:$AC$151,14,0),IF($Y$8=13,VLOOKUP(B60,'الثانوية العامة'!$B$3:$AC$151,15,0),IF($Y$8=8,VLOOKUP(B60,'الثانوية العامة'!$B$3:$AC$151,10,0))))))))))))))","v":{"$error":"#N/A"}},{"$f":"IFERROR(VLOOKUP(A60,'البيانات الاساسية'!$AF$3:$AJ$69,2,0),\"\")","v":""},{"$f":"IFERROR(VLOOKUP(A60,'البيانات الاساسية'!$AF$3:$AJ$69,3,0),\"\")","v":""},{"$f":"IFERROR(VLOOKUP(A60,'البيانات الاساسية'!$AF$3:$AJ$69,4,0),\"\")","v":""},1,{"$f":"IFERROR(IF(A60=\"\",\"\",VLOOKUP(D60,'البيانات الاساسية'!$E$3:$F$316,2,0)),\"\")","v":""},null,null,null,null,null,null,null,null,null,null,null,null,null,null,{"$f":"IF(ROW()-2<='البيانات الاساسية'!$C$8,ROW()-17,\"\")","v":""},null,null,null,null,null,null,{"$f":"VLOOKUP(X39,'البيانات الاساسية'!$AF$3:$AK$32,5,0)","v":0},22,{"$f":"IF(AE60=$U$10,AF60,\"\")","v":""}]
[null,22,{"$f":"IF($Y$8=1,VLOOKUP(B61,'الثانوية العامة'!$B$3:$AC$151,16,0),IF($Y$8=2,VLOOKUP(B61,'الثانوية العامة'!$B$3:$AC$151,17,0),IF($Y$8=3,VLOOKUP(B61,'الثانوية العامة'!$B$3:$AC$151,18,0),IF($Y$8=4,VLOOKUP(B61,'الثانوية العامة'!$B$3:$AC$151,19,0),IF($Y$8=5,VLOOKUP(B61,'الثانوية العامة'!$B$3:$AC$151,20,0),IF($Y$8=6,VLOOKUP(B61,'الثانوية العامة'!$B$3:$AC$151,21,0),IF($Y$8=7,VLOOKUP(B61,'الثانوية العامة'!$B$3:$AC$151,22,0),IF($Y$8=8,VLOOKUP(B61,'الثانوية العامة'!$B$3:$AC$151,23,0),IF($Y$8=9,VLOOKUP(B61,'الثانوية العامة'!$B$3:$AC$151,24,0),IF($Y$8=10,VLOOKUP(B61,'الثانوية العامة'!$B$3:$AC$151,25,0),IF($Y$8=11,VLOOKUP(B61,'الثانوية العامة'!$B$3:$AC$151,26,0),IF($Y$8=12,VLOOKUP(B61,'الثانوية العامة'!$B$3:$AC$151,27,0),IF($Y$8=13,VLOOKUP(B61,'الثانوية العامة'!$B$3:$AC$151,28,0))))))))))))))","v":{"$error":"#N/A"}},null,null,null,null,2,{"$f":"IFERROR(IF(A60=\"\",\"\",VLOOKUP(C61,'البيانات الاساسية'!$E$3:$F$316,2,0)),\"\")","v":""},null,null,null,null,null,null,null,null,null,null,null,null,null,null,{"$f":"IF(ROW()-2<='البيانات الاساسية'!$C$8,ROW()-17,\"\")","v":""}]
[{"$f":"IF($E$7=\"\",AG62,AF62)","v":23},{"$f":"A62","v":23},null,{"$f":"IF($Y$8=1,VLOOKUP(B62,'الثانوية العامة'!$B$3:$AC$151,3,0),IF($Y$8=2,VLOOKUP(B62,'الثانوية العامة'!$B$3:$AC$151,4,0),IF($Y$8=3,VLOOKUP(B62,'الثانوية العامة'!$B$3:$AC$151,5,0),IF($Y$8=4,VLOOKUP(B62,'الثانوية العامة'!$B$3:$AC$151,6,0),IF($Y$8=5,VLOOKUP(B62,'الثانوية العامة'!$B$3:$AC$151,7,0),IF($Y$8=6,VLOOKUP(B62,'الثانوية العامة'!$B$3:$AC$151,8,0),IF($Y$8=7,VLOOKUP(B62,'الثانوية العامة'!$B$3:$AC$151,9,0),IF($Y$8=9,VLOOKUP(B62,'الثانوية العامة'!$B$3:$AC$151,11,0),IF($Y$8=10,VLOOKUP(B62,'الثانوية العامة'!$B$3:$AC$151,12,0),IF($Y$8=11,VLOOKUP(B62,'الثانوية العامة'!$B$3:$AC$151,13,0),IF($Y$8=12,VLOOKUP(B62,'الثانوية العامة'!$B$3:$AC$151,14,0),IF($Y$8=13,VLOOKUP(B62,'الثانوية العامة'!$B$3:$AC$151,15,0),IF($Y$8=8,VLOOKUP(B62,'الثانوية العامة'!$B$3:$AC$151,10,0))))))))))))))","v":{"$error":"#N/A"}},{"$f":"IFERROR(VLOOKUP(A62,'البيانات الاساسية'!$AF$3:$AJ$69,2,0),\"\")","v":""},{"$f":"IFERROR(VLOOKUP(A62,'البيانات الاساسية'!$AF$3:$AJ$69,3,0),\"\")","v":""},{"$f":"IFERROR(VLOOKUP(A62,'البيانات الاساسية'!$AF$3:$AJ$69,4,0),\"\")","v":""},1,{"$f":"IFERROR(IF(A62=\"\",\"\",VLOOKUP(D62,'البيانات الاساسية'!$E$3:$F$316,2,0)),\"\")","v":""},null,null,null,null,null,null,null,null,null,null,null,null,null,null,{"$f":"IF(ROW()-2<='البيانات الاساسية'!$C$8,ROW()-17,\"\")","v":""},null,null,null,null,null,null,{"$f":"VLOOKUP(X40,'البيانات الاساسية'!$AF$3:$AK$32,5,0)","v":0},23,{"$f":"IF(AE62=$U$10,AF62,\"\")","v":""}]
[null,23,{"$f":"IF($Y$8=1,VLOOKUP(B63,'الثانوية العامة'!$B$3:$AC$151,16,0),IF($Y$8=2,VLOOKUP(B63,'الثانوية العامة'!$B$3:$AC$151,17,0),IF($Y$8=3,VLOOKUP(B63,'الثانوية العامة'!$B$3:$AC$151,18,0),IF($Y$8=4,VLOOKUP(B63,'الثانوية العامة'!$B$3:$AC$151,19,0),IF($Y$8=5,VLOOKUP(B63,'الثانوية العامة'!$B$3:$AC$151,20,0),IF($Y$8=6,VLOOKUP(B63,'الثانوية العامة'!$B$3:$AC$151,21,0),IF($Y$8=7,VLOOKUP(B63,'الثانوية العامة'!$B$3:$AC$151,22,0),IF($Y$8=8,VLOOKUP(B63,'الثانوية العامة'!$B$3:$AC$151,23,0),IF($Y$8=9,VLOOKUP(B63,'الثانوية العامة'!$B$3:$AC$151,24,0),IF($Y$8=10,VLOOKUP(B63,'الثانوية العامة'!$B$3:$AC$151,25,0),IF($Y$8=11,VLOOKUP(B63,'الثانوية العامة'!$B$3:$AC$151,26,0),IF($Y$8=12,VLOOKUP(B63,'الثانوية العامة'!$B$3:$AC$151,27,0),IF($Y$8=13,VLOOKUP(B63,'الثانوية العامة'!$B$3:$AC$151,28,0))))))))))))))","v":{"$error":"#N/A"}},null,null,null,null,2,{"$f":"IFERROR(IF(A62=\"\",\"\",VLOOKUP(C63,'البيانات الاساسية'!$E$3:$F$316,2,0)),\"\")","v":""},null,null,null,null,null,null,null,null,null,null,null,null,null,null,{"$f":"IF(ROW()-2<='البيانات الاساسية'!$C$8,ROW()-17,\"\")","v":""}]
[{"$f":"IF($E$7=\"\",AG64,AF64)","v":24},{"$f":"A64","v":24},null,{"$f":"IF($Y$8=1,VLOOKUP(B64,'الثانوية العامة'!$B$3:$AC$151,3,0),IF($Y$8=2,VLOOKUP(B64,'الثانوية العامة'!$B$3:$AC$151,4,0),IF($Y$8=3,VLOOKUP(B64,'الثانوية العامة'!$B$3:$AC$151,5,0),IF($Y$8=4,VLOOKUP(B64,'الثانوية العامة'!$B$3:$AC$151,6,0),IF($Y$8=5,VLOOKUP(B64,'الثانوية العامة'!$B$3:$AC$151,7,0),IF($Y$8=6,VLOOKUP(B64,'الثانوية العامة'!$B$3:$AC$151,8,0),IF($Y$8=7,VLOOKUP(B64,'الثانوية العامة'!$B$3:$AC$151,9,0),IF($Y$8=9,VLOOKUP(B64,'الثانوية العامة'!$B$3:$AC$151,11,0),IF($Y$8=10,VLOOKUP(B64,'الثانوية العامة'!$B$3:$AC$151,12,0),IF($Y$8=11,VLOOKUP(B64,'الثانوية العامة'!$B$3:$AC$151,13,0),IF($Y$8=12,VLOOKUP(B64,'الثانوية العامة'!$B$3:$AC$151,14,0),IF($Y$8=13,VLOOKUP(B64,'الثانوية العامة'!$B$3:$AC$151,15,0),IF($Y$8=8,VLOOKUP(B64,'الثانوية العامة'!$B$3:$AC$151,10,0))))))))))))))","v":{"$error":"#N/A"}},{"$f":"IFERROR(VLOOKUP(A64,'البيانات الاساسية'!$AF$3:$AJ$69,2,0),\"\")","v":""},{"$f":"IFERROR(VLOOKUP(A64,'البيانات الاساسية'!$AF$3:$AJ$69,3,0),\"\")","v":""},{"$f":"IFERROR(VLOOKUP(A64,'البيانات الاساسية'!$AF$3:$AJ$69,4,0),\"\")","v":""},1,{"$f":"IFERROR(IF(A64=\"\",\"\",VLOOKUP(D64,'البيانات الاساسية'!$E$3:$F$316,2,0)),\"\")","v":""},null,null,null,null,null,null,null,null,null,null,null,null,null,null,{"$f":"IF(ROW()-2<='البيانات الاساسية'!$C$8,ROW()-17,\"\")","v":""},null,null,null,null,null,null,{"$f":"VLOOKUP(X41,'البيانات الاساسية'!$AF$3:$AK$32,5,0)","v":0},24,{"$f":"IF(AE64=$U$10,AF64,\"\")","v":""}]
[null,24,{"$f":"IF($Y$8=1,VLOOKUP(B65,'الثانوية العامة'!$B$3:$AC$151,16,0),IF($Y$8=2,VLOOKUP(B65,'الثانوية العامة'!$B$3:$AC$151,17,0),IF($Y$8=3,VLOOKUP(B65,'الثانوية العامة'!$B$3:$AC$151,18,0),IF($Y$8=4,VLOOKUP(B65,'الثانوية العامة'!$B$3:$AC$151,19,0),IF($Y$8=5,VLOOKUP(B65,'الثانوية العامة'!$B$3:$AC$151,20,0),IF($Y$8=6,VLOOKUP(B65,'الثانوية العامة'!$B$3:$AC$151,21,0),IF($Y$8=7,VLOOKUP(B65,'الثانوية العامة'!$B$3:$AC$151,22,0),IF($Y$8=8,VLOOKUP(B65,'الثانوية العامة'!$B$3:$AC$151,23,0),IF($Y$8=9,VLOOKUP(B65,'الثانوية العامة'!$B$3:$AC$151,24,0),IF($Y$8=10,VLOOKUP(B65,'الثانوية العامة'!$B$3:$AC$151,25,0),IF($Y$8=11,VLOOKUP(B65,'الثانوية العامة'!$B$3:$AC$151,26,0),IF($Y$8=12,VLOOKUP(B65,'الثانوية العامة'!$B$3:$AC$151,27,0),IF($Y$8=13,VLOOKUP(B65,'الثانوية العامة'!$B$3:$AC$151,28,0))))))))))))))","v":{"$error":"#N/A"}},null,null,null,null,2,{"$f":"IFERROR(IF(A64=\"\",\"\",VLOOKUP(C65,'البيانات الاساسية'!$E$3:$F$316,2,0)),\"\")","v":""},null,null,null,null,null,null,null,null,null,null,null,null,null,null,{"$f":"IF(ROW()-2<='البيانات الاساسية'!$C$8,ROW()-17,\"\")","v":""}]
[{"$f":"IF($E$7=\"\",AG66,AF66)","v":25},{"$f":"A66","v":25},null,{"$f":"IF($Y$8=1,VLOOKUP(B66,'الثانوية العامة'!$B$3:$AC$151,3,0),IF($Y$8=2,VLOOKUP(B66,'الثانوية العامة'!$B$3:$AC$151,4,0),IF($Y$8=3,VLOOKUP(B66,'الثانوية العامة'!$B$3:$AC$151,5,0),IF($Y$8=4,VLOOKUP(B66,'الثانوية العامة'!$B$3:$AC$151,6,0),IF($Y$8=5,VLOOKUP(B66,'الثانوية العامة'!$B$3:$AC$151,7,0),IF($Y$8=6,VLOOKUP(B66,'الثانوية العامة'!$B$3:$AC$151,8,0),IF($Y$8=7,VLOOKUP(B66,'الثانوية العامة'!$B$3:$AC$151,9,0),IF($Y$8=9,VLOOKUP(B66,'الثانوية العامة'!$B$3:$AC$151,11,0),IF($Y$8=10,VLOOKUP(B66,'الثانوية العامة'!$B$3:$AC$151,12,0),IF($Y$8=11,VLOOKUP(B66,'الثانوية العامة'!$B$3:$AC$151,13,0),IF($Y$8=12,VLOOKUP(B66,'الثانوية العامة'!$B$3:$AC$151,14,0),IF($Y$8=13,VLOOKUP(B66,'الثانوية العامة'!$B$3:$AC$151,15,0),IF($Y$8=8,VLOOKUP(B66,'الثانوية العامة'!$B$3:$AC$151,10,0))))))))))))))","v":{"$error":"#N/A"}},{"$f":"IFERROR(VLOOKUP(A66,'البيانات الاساسية'!$AF$3:$AJ$69,2,0),\"\")","v":""},{"$f":"IFERROR(VLOOKUP(A66,'البيانات الاساسية'!$AF$3:$AJ$69,3,0),\"\")","v":""},{"$f":"IFERROR(VLOOKUP(A66,'البيانات الاساسية'!$AF$3:$AJ$69,4,0),\"\")","v":""},1,{"$f":"IFERROR(IF(A66=\"\",\"\",VLOOKUP(D66,'البيانات الاساسية'!$E$3:$F$316,2,0)),\"\")","v":""},null,null,null,null,null,null,null,null,null,null,null,null,null,null,{"$f":"IF(ROW()-2<='البيانات الاساسية'!$C$8,ROW()-17,\"\")","v":""},null,null,null,null,null,null,{"$f":"VLOOKUP(X42,'البيانات الاساسية'!$AF$3:$AK$32,5,0)","v":0},25,{"$f":"IF(AE66=$U$10,AF66,\"\")","v":""}]
[null,25,{"$f":"IF($Y$8=1,VLOOKUP(B67,'الثانوية العامة'!$B$3:$AC$151,16,0),IF($Y$8=2,VLOOKUP(B67,'الثانوية العامة'!$B$3:$AC$151,17,0),IF($Y$8=3,VLOOKUP(B67,'الثانوية العامة'!$B$3:$AC$151,18,0),IF($Y$8=4,VLOOKUP(B67,'الثانوية العامة'!$B$3:$AC$151,19,0),IF($Y$8=5,VLOOKUP(B67,'الثانوية العامة'!$B$3:$AC$151,20,0),IF($Y$8=6,VLOOKUP(B67,'الثانوية العامة'!$B$3:$AC$151,21,0),IF($Y$8=7,VLOOKUP(B67,'الثانوية العامة'!$B$3:$AC$151,22,0),IF($Y$8=8,VLOOKUP(B67,'الثانوية العامة'!$B$3:$AC$151,23,0),IF($Y$8=9,VLOOKUP(B67,'الثانوية العامة'!$B$3:$AC$151,24,0),IF($Y$8=10,VLOOKUP(B67,'الثانوية العامة'!$B$3:$AC$151,25,0),IF($Y$8=11,VLOOKUP(B67,'الثانوية العامة'!$B$3:$AC$151,26,0),IF($Y$8=12,VLOOKUP(B67,'الثانوية العامة'!$B$3:$AC$151,27,0),IF($Y$8=13,VLOOKUP(B67,'الثانوية العامة'!$B$3:$AC$151,28,0))))))))))))))","v":{"$error":"#N/A"}},null,null,null,null,2,{"$f":"IFERROR(IF(A66=\"\",\"\",VLOOKUP(C67,'البيانات الاساسية'!$E$3:$F$316,2,0)),\"\")","v":""},null,null,null,null,null,null,null,null,null,null,null,null,null,null,{"$f":"IF(ROW()-2<='البيانات الاساسية'!$C$8,ROW()-17,\"\")","v":""}]
[{"$f":"IF($E$7=\"\",AG68,AF68)","v":26},{"$f":"A68","v":26},null,{"$f":"IF($Y$8=1,VLOOKUP(B68,'الثانوية العامة'!$B$3:$AC$151,3,0),IF($Y$8=2,VLOOKUP(B68,'الثانوية العامة'!$B$3:$AC$151,4,0),IF($Y$8=3,VLOOKUP(B68,'الثانوية العامة'!$B$3:$AC$151,5,0),IF($Y$8=4,VLOOKUP(B68,'الثانوية العامة'!$B$3:$AC$151,6,0),IF($Y$8=5,VLOOKUP(B68,'الثانوية العامة'!$B$3:$AC$151,7,0),IF($Y$8=6,VLOOKUP(B68,'الثانوية العامة'!$B$3:$AC$151,8,0),IF($Y$8=7,VLOOKUP(B68,'الثانوية العامة'!$B$3:$AC$151,9,0),IF($Y$8=9,VLOOKUP(B68,'الثانوية العامة'!$B$3:$AC$151,11,0),IF($Y$8=10,VLOOKUP(B68,'الثانوية العامة'!$B$3:$AC$151,12,0),IF($Y$8=11,VLOOKUP(B68,'الثانوية العامة'!$B$3:$AC$151,13,0),IF($Y$8=12,VLOOKUP(B68,'الثانوية العامة'!$B$3:$AC$151,14,0),IF($Y$8=13,VLOOKUP(B68,'الثانوية العامة'!$B$3:$AC$151,15,0),IF($Y$8=8,VLOOKUP(B68,'الثانوية العامة'!$B$3:$AC$151,10,0))))))))))))))","v":{"$error":"#N/A"}},{"$f":"IFERROR(VLOOKUP(A68,'البيانات الاساسية'!$AF$3:$AJ$69,2,0),\"\")","v":""},{"$f":"IFERROR(VLOOKUP(A68,'البيانات الاساسية'!$AF$3:$AJ$69,3,0),\"\")","v":""},{"$f":"IFERROR(VLOOKUP(A68,'البيانات الاساسية'!$AF$3:$AJ$69,4,0),\"\")","v":""},1,{"$f":"IFERROR(IF(A68=\"\",\"\",VLOOKUP(D68,'البيانات الاساسية'!$E$3:$F$316,2,0)),\"\")","v":""},null,null,null,null,null,null,null,null,null,null,null,null,null,null,{"$f":"IF(ROW()-2<='البيانات الاساسية'!$C$8,ROW()-17,\"\")","v":""},null,null,null,null,null,null,{"$f":"VLOOKUP(X43,'البيانات الاساسية'!$AF$3:$AK$32,5,0)","v":0},26,{"$f":"IF(AE68=$U$10,AF68,\"\")","v":""}]
[null,26,{"$f":"IF($Y$8=1,VLOOKUP(B69,'الثانوية العامة'!$B$3:$AC$151,16,0),IF($Y$8=2,VLOOKUP(B69,'الثانوية العامة'!$B$3:$AC$151,17,0),IF($Y$8=3,VLOOKUP(B69,'الثانوية العامة'!$B$3:$AC$151,18,0),IF($Y$8=4,VLOOKUP(B69,'الثانوية العامة'!$B$3:$AC$151,19,0),IF($Y$8=5,VLOOKUP(B69,'الثانوية العامة'!$B$3:$AC$151,20,0),IF($Y$8=6,VLOOKUP(B69,'الثانوية العامة'!$B$3:$AC$151,21,0),IF($Y$8=7,VLOOKUP(B69,'الثانوية العامة'!$B$3:$AC$151,22,0),IF($Y$8=8,VLOOKUP(B69,'الثانوية العامة'!$B$3:$AC$151,23,0),IF($Y$8=9,VLOOKUP(B69,'الثانوية العامة'!$B$3:$AC$151,24,0),IF($Y$8=10,VLOOKUP(B69,'الثانوية العامة'!$B$3:$AC$151,25,0),IF($Y$8=11,VLOOKUP(B69,'الثانوية العامة'!$B$3:$AC$151,26,0),IF($Y$8=12,VLOOKUP(B69,'الثانوية العامة'!$B$3:$AC$151,27,0),IF($Y$8=13,VLOOKUP(B69,'الثانوية العامة'!$B$3:$AC$151,28,0))))))))))))))","v":{"$error":"#N/A"}},null,null,null,null,2,{"$f":"IFERROR(IF(A68=\"\",\"\",VLOOKUP(C69,'البيانات الاساسية'!$E$3:$F$316,2,0)),\"\")","v":""},null,null,null,null,null,null,null,null,null,null,null,null,null,null,{"$f":"IF(ROW()-2<='البيانات الاساسية'!$C$8,ROW()-17,\"\")","v":""}]
[{"$f":"IF($E$7=\"\",AG70,AF70)","v":27},{"$f":"A70","v":27},null,{"$f":"IF($Y$8=1,VLOOKUP(B70,'الثانوية العامة'!$B$3:$AC$151,3,0),IF($Y$8=2,VLOOKUP(B70,'الثانوية العامة'!$B$3:$AC$151,4,0),IF($Y$8=3,VLOOKUP(B70,'الثانوية العامة'!$B$3:$AC$151,5,0),IF($Y$8=4,VLOOKUP(B70,'الثانوية العامة'!$B$3:$AC$151,6,0),IF($Y$8=5,VLOOKUP(B70,'الثانوية العامة'!$B$3:$AC$151,7,0),IF($Y$8=6,VLOOKUP(B70,'الثانوية العامة'!$B$3:$AC$151,8,0),IF($Y$8=7,VLOOKUP(B70,'الثانوية العامة'!$B$3:$AC$151,9,0),IF($Y$8=9,VLOOKUP(B70,'الثانوية العامة'!$B$3:$AC$151,11,0),IF($Y$8=10,VLOOKUP(B70,'الثانوية العامة'!$B$3:$AC$151,12,0),IF($Y$8=11,VLOOKUP(B70,'الثانوية العامة'!$B$3:$AC$151,13,0),IF($Y$8=12,VLOOKUP(B70,'الثانوية العامة'!$B$3:$AC$151,14,0),IF($Y$8=13,VLOOKUP(B70,'الثانوية العامة'!$B$3:$AC$151,15,0),IF($Y$8=8,VLOOKUP(B70,'الثانوية العامة'!$B$3:$AC$151,10,0))))))))))))))","v":{"$error":"#N/A"}},{"$f":"IFERROR(VLOOKUP(A70,'البيانات الاساسية'!$AF$3:$AJ$69,2,0),\"\")","v":""},{"$f":"IFERROR(VLOOKUP(A70,'البيانات الاساسية'!$AF$3:$AJ$69,3,0),\"\")","v":""},{"$f":"IFERROR(VLOOKUP(A70,'البيانات الاساسية'!$AF$3:$AJ$69,4,0),\"\")","v":""},1,{"$f":"IFERROR(IF(A70=\"\",\"\",VLOOKUP(D70,'البيانات الاساسية'!$E$3:$F$316,2,0)),\"\")","v":""},null,null,null,null,null,null,null,null,null,null,null,null,null,null,{"$f":"IF(ROW()-2<='البيانات الاساسية'!$C$8,ROW()-17,\"\")","v":""},null,null,null,null,null,null,{"$f":"VLOOKUP(X44,'البيانات الاساسية'!$AF$3:$AK$32,5,0)","v":0},27,{"$f":"IF(AE70=$U$10,AF70,\"\")","v":""}]
[null,27,{"$f":"IF($Y$8=1,VLOOKUP(B71,'الثانوية العامة'!$B$3:$AC$151,16,0),IF($Y$8=2,VLOOKUP(B71,'الثانوية العامة'!$B$3:$AC$151,17,0),IF($Y$8=3,VLOOKUP(B71,'الثانوية العامة'!$B$3:$AC$151,18,0),IF($Y$8=4,VLOOKUP(B71,'الثانوية العامة'!$B$3:$AC$151,19,0),IF($Y$8=5,VLOOKUP(B71,'الثانوية العامة'!$B$3:$AC$151,20,0),IF($Y$8=6,VLOOKUP(B71,'الثانوية العامة'!$B$3:$AC$151,21,0),IF($Y$8=7,VLOOKUP(B71,'الثانوية العامة'!$B$3:$AC$151,22,0),IF($Y$8=8,VLOOKUP(B71,'الثانوية العامة'!$B$3:$AC$151,23,0),IF($Y$8=9,VLOOKUP(B71,'الثانوية العامة'!$B$3:$AC$151,24,0),IF($Y$8=10,VLOOKUP(B71,'الثانوية العامة'!$B$3:$AC$151,25,0),IF($Y$8=11,VLOOKUP(B71,'الثانوية العامة'!$B$3:$AC$151,26,0),IF($Y$8=12,VLOOKUP(B71,'الثانوية العامة'!$B$3:$AC$151,27,0),IF($Y$8=13,VLOOKUP(B71,'الثانوية العامة'!$B$3:$AC$151,28,0))))))))))))))","v":{"$error":"#N/A"}},null,null,null,null,2,{"$f":"IFERROR(IF(A70=\"\",\"\",VLOOKUP(C71,'البيانات الاساسية'!$E$3:$F$316,2,0)),\"\")","v":""},null,null,null,null,null,null,null,null,null,null,null,null,null,null,{"$f":"IF(ROW()-2<='البيانات الاساسية'!$C$8,ROW()-17,\"\")","v":""}]
[{"$f":"IF($E$7=\"\",AG72,AF72)","v":28},{"$f":"A72","v":28},null,{"$f":"IF($Y$8=1,VLOOKUP(B72,'الثانوية العامة'!$B$3:$AC$151,3,0),IF($Y$8=2,VLOOKUP(B72,'الثانوية العامة'!$B$3:$AC$151,4,0),IF($Y$8=3,VLOOKUP(B72,'الثانوية العامة'!$B$3:$AC$151,5,0),IF($Y$8=4,VLOOKUP(B72,'الثانوية العامة'!$B$3:$AC$151,6,0),IF($Y$8=5,VLOOKUP(B72,'الثانوية العامة'!$B$3:$AC$151,7,0),IF($Y$8=6,VLOOKUP(B72,'الثانوية العامة'!$B$3:$AC$151,8,0),IF($Y$8=7,VLOOKUP(B72,'الثانوية العامة'!$B$3:$AC$151,9,0),IF($Y$8=9,VLOOKUP(B72,'الثانوية العامة'!$B$3:$AC$151,11,0),IF($Y$8=10,VLOOKUP(B72,'الثانوية العامة'!$B$3:$AC$151,12,0),IF($Y$8=11,VLOOKUP(B72,'الثانوية العامة'!$B$3:$AC$151,13,0),IF($Y$8=12,VLOOKUP(B72,'الثانوية العامة'!$B$3:$AC$151,14,0),IF($Y$8=13,VLOOKUP(B72,'الثانوية العامة'!$B$3:$AC$151,15,0),IF($Y$8=8,VLOOKUP(B72,'الثانوية العامة'!$B$3:$AC$151,10,0))))))))))))))","v":{"$error":"#N/A"}},{"$f":"IFERROR(VLOOKUP(A72,'البيانات الاساسية'!$AF$3:$AJ$69,2,0),\"\")","v":""},{"$f":"IFERROR(VLOOKUP(A72,'البيانات الاساسية'!$AF$3:$AJ$69,3,0),\"\")","v":""},{"$f":"IFERROR(VLOOKUP(A72,'البيانات الاساسية'!$AF$3:$AJ$69,4,0),\"\")","v":""},1,{"$f":"IFERROR(IF(A72=\"\",\"\",VLOOKUP(D72,'البيانات الاساسية'!$E$3:$F$316,2,0)),\"\")","v":""},null,null,null,null,null,null,null,null,null,null,null,null,null,null,null,null,null,null,null,null,null,{"$f":"VLOOKUP(X45,'البيانات الاساسية'!$AF$3:$AK$32,5,0)","v":0},28,{"$f":"IF(AE72=$U$10,AF72,\"\")","v":""}]
[null,28,{"$f":"IF($Y$8=1,VLOOKUP(B73,'الثانوية العامة'!$B$3:$AC$151,16,0),IF($Y$8=2,VLOOKUP(B73,'الثانوية العامة'!$B$3:$AC$151,17,0),IF($Y$8=3,VLOOKUP(B73,'الثانوية العامة'!$B$3:$AC$151,18,0),IF($Y$8=4,VLOOKUP(B73,'الثانوية العامة'!$B$3:$AC$151,19,0),IF($Y$8=5,VLOOKUP(B73,'الثانوية العامة'!$B$3:$AC$151,20,0),IF($Y$8=6,VLOOKUP(B73,'الثانوية العامة'!$B$3:$AC$151,21,0),IF($Y$8=7,VLOOKUP(B73,'الثانوية العامة'!$B$3:$AC$151,22,0),IF($Y$8=8,VLOOKUP(B73,'الثانوية العامة'!$B$3:$AC$151,23,0),IF($Y$8=9,VLOOKUP(B73,'الثانوية العامة'!$B$3:$AC$151,24,0),IF($Y$8=10,VLOOKUP(B73,'الثانوية العامة'!$B$3:$AC$151,25,0),IF($Y$8=11,VLOOKUP(B73,'الثانوية العامة'!$B$3:$AC$151,26,0),IF($Y$8=12,VLOOKUP(B73,'الثانوية العامة'!$B$3:$AC$151,27,0),IF($Y$8=13,VLOOKUP(B73,'الثانوية العامة'!$B$3:$AC$151,28,0))))))))))))))","v":{"$error":"#N/A"}},null,null,null,null,2,{"$f":"IFERROR(IF(A72=\"\",\"\",VLOOKUP(C73,'البيانات الاساسية'!$E$3:$F$316,2,0)),\"\")","v":""}]
[{"$f":"IF($E$7=\"\",AG74,AF74)","v":29},{"$f":"A74","v":29},null,{"$f":"IF($Y$8=1,VLOOKUP(B74,'الثانوية العامة'!$B$3:$AC$151,3,0),IF($Y$8=2,VLOOKUP(B74,'الثانوية العامة'!$B$3:$AC$151,4,0),IF($Y$8=3,VLOOKUP(B74,'الثانوية العامة'!$B$3:$AC$151,5,0),IF($Y$8=4,VLOOKUP(B74,'الثانوية العامة'!$B$3:$AC$151,6,0),IF($Y$8=5,VLOOKUP(B74,'الثانوية العامة'!$B$3:$AC$151,7,0),IF($Y$8=6,VLOOKUP(B74,'الثانوية العامة'!$B$3:$AC$151,8,0),IF($Y$8=7,VLOOKUP(B74,'الثانوية العامة'!$B$3:$AC$151,9,0),IF($Y$8=9,VLOOKUP(B74,'الثانوية العامة'!$B$3:$AC$151,11,0),IF($Y$8=10,VLOOKUP(B74,'الثانوية العامة'!$B$3:$AC$151,12,0),IF($Y$8=11,VLOOKUP(B74,'الثانوية العامة'!$B$3:$AC$151,13,0),IF($Y$8=12,VLOOKUP(B74,'الثانوية العامة'!$B$3:$AC$151,14,0),IF($Y$8=13,VLOOKUP(B74,'الثانوية العامة'!$B$3:$AC$151,15,0),IF($Y$8=8,VLOOKUP(B74,'الثانوية العامة'!$B$3:$AC$151,10,0))))))))))))))","v":{"$error":"#N/A"}},{"$f":"IFERROR(VLOOKUP(A74,'البيانات الاساسية'!$AF$3:$AJ$69,2,0),\"\")","v":""},{"$f":"IFERROR(VLOOKUP(A74,'البيانات الاساسية'!$AF$3:$AJ$69,3,0),\"\")","v":""},{"$f":"IFERROR(VLOOKUP(A74,'البيانات الاساسية'!$AF$3:$AJ$69,4,0),\"\")","v":""},1,{"$f":"IFERROR(IF(A74=\"\",\"\",VLOOKUP(D74,'البيانات الاساسية'!$E$3:$F$316,2,0)),\"\")","v":""},null,null,null,null,null,null,null,null,null,null,null,null,null,null,null,null,null,null,null,null,null,{"$f":"VLOOKUP(X46,'البيانات الاساسية'!$AF$3:$AK$32,5,0)","v":0},29,{"$f":"IF(AE74=$U$10,AF74,\"\")","v":""}]
[null,29,{"$f":"IF($Y$8=1,VLOOKUP(B75,'الثانوية العامة'!$B$3:$AC$151,16,0),IF($Y$8=2,VLOOKUP(B75,'الثانوية العامة'!$B$3:$AC$151,17,0),IF($Y$8=3,VLOOKUP(B75,'الثانوية العامة'!$B$3:$AC$151,18,0),IF($Y$8=4,VLOOKUP(B75,'الثانوية العامة'!$B$3:$AC$151,19,0),IF($Y$8=5,VLOOKUP(B75,'الثانوية العامة'!$B$3:$AC$151,20,0),IF($Y$8=6,VLOOKUP(B75,'الثانوية العامة'!$B$3:$AC$151,21,0),IF($Y$8=7,VLOOKUP(B75,'الثانوية العامة'!$B$3:$AC$151,22,0),IF($Y$8=8,VLOOKUP(B75,'الثانوية العامة'!$B$3:$AC$151,23,0),IF($Y$8=9,VLOOKUP(B75,'الثانوية العامة'!$B$3:$AC$151,24,0),IF($Y$8=10,VLOOKUP(B75,'الثانوية العامة'!$B$3:$AC$151,25,0),IF($Y$8=11,VLOOKUP(B75,'الثانوية العامة'!$B$3:$AC$151,26,0),IF($Y$8=12,VLOOKUP(B75,'الثانوية العامة'!$B$3:$AC$151,27,0),IF($Y$8=13,VLOOKUP(B75,'الثانوية العامة'!$B$3:$AC$151,28,0))))))))))))))","v":{"$error":"#N/A"}},null,null,null,null,2,{"$f":"IFERROR(IF(A74=\"\",\"\",VLOOKUP(C75,'البيانات الاساسية'!$E$3:$F$316,2,0)),\"\")","v":""}]
[{"$f":"IF($E$7=\"\",AG76,AF76)","v":30},{"$f":"A76","v":30},null,{"$f":"IF($Y$8=1,VLOOKUP(B76,'الثانوية العامة'!$B$3:$AC$151,3,0),IF($Y$8=2,VLOOKUP(B76,'الثانوية العامة'!$B$3:$AC$151,4,0),IF($Y$8=3,VLOOKUP(B76,'الثانوية العامة'!$B$3:$AC$151,5,0),IF($Y$8=4,VLOOKUP(B76,'الثانوية العامة'!$B$3:$AC$151,6,0),IF($Y$8=5,VLOOKUP(B76,'الثانوية العامة'!$B$3:$AC$151,7,0),IF($Y$8=6,VLOOKUP(B76,'الثانوية العامة'!$B$3:$AC$151,8,0),IF($Y$8=7,VLOOKUP(B76,'الثانوية العامة'!$B$3:$AC$151,9,0),IF($Y$8=9,VLOOKUP(B76,'الثانوية العامة'!$B$3:$AC$151,11,0),IF($Y$8=10,VLOOKUP(B76,'الثانوية العامة'!$B$3:$AC$151,12,0),IF($Y$8=11,VLOOKUP(B76,'الثانوية العامة'!$B$3:$AC$151,13,0),IF($Y$8=12,VLOOKUP(B76,'الثانوية العامة'!$B$3:$AC$151,14,0),IF($Y$8=13,VLOOKUP(B76,'الثانوية العامة'!$B$3:$AC$151,15,0),IF($Y$8=8,VLOOKUP(B76,'الثانوية العامة'!$B$3:$AC$151,10,0))))))))))))))","v":{"$error":"#N/A"}},{"$f":"IFERROR(VLOOKUP(A76,'البيانات الاساسية'!$AF$3:$AJ$69,2,0),\"\")","v":""},{"$f":"IFERROR(VLOOKUP(A76,'البيانات الاساسية'!$AF$3:$AJ$69,3,0),\"\")","v":""},{"$f":"IFERROR(VLOOKUP(A76,'البيانات الاساسية'!$AF$3:$AJ$69,4,0),\"\")","v":""},1,{"$f":"IFERROR(IF(A76=\"\",\"\",VLOOKUP(D76,'البيانات الاساسية'!$E$3:$F$316,2,0)),\"\")","v":""},null,null,null,null,null,null,null,null,null,null,null,null,null,null,null,null,null,null,null,null,null,{"$f":"VLOOKUP(X47,'البيانات الاساسية'!$AF$3:$AK$32,5,0)","v":0},30,{"$f":"IF(AE76=$U$10,AF76,\"\")","v":""}]
[null,30,{"$f":"IF($Y$8=1,VLOOKUP(B77,'الثانوية العامة'!$B$3:$AC$151,16,0),IF($Y$8=2,VLOOKUP(B77,'الثانوية العامة'!$B$3:$AC$151,17,0),IF($Y$8=3,VLOOKUP(B77,'الثانوية العامة'!$B$3:$AC$151,18,0),IF($Y$8=4,VLOOKUP(B77,'الثانوية العامة'!$B$3:$AC$151,19,0),IF($Y$8=5,VLOOKUP(B77,'الثانوية العامة'!$B$3:$AC$151,20,0),IF($Y$8=6,VLOOKUP(B77,'الثانوية العامة'!$B$3:$AC$151,21,0),IF($Y$8=7,VLOOKUP(B77,'الثانوية العامة'!$B$3:$AC$151,22,0),IF($Y$8=8,VLOOKUP(B77,'الثانوية العامة'!$B$3:$AC$151,23,0),IF($Y$8=9,VLOOKUP(B77,'الثانوية العامة'!$B$3:$AC$151,24,0),IF($Y$8=10,VLOOKUP(B77,'الثانوية العامة'!$B$3:$AC$151,25,0),IF($Y$8=11,VLOOKUP(B77,'الثانوية العامة'!$B$3:$AC$151,26,0),IF($Y$8=12,VLOOKUP(B77,'الثانوية العامة'!$B$3:$AC$151,27,0),IF($Y$8=13,VLOOKUP(B77,'الثانوية العامة'!$B$3:$AC$151,28,0))))))))))))))","v":{"$error":"#N/A"}},null,null,null,null,2,{"$f":"IFERROR(IF(A76=\"\",\"\",VLOOKUP(C77,'البيانات الاساسية'!$E$3:$F$316,2,0)),\"\")","v":""}]
[]
["الاحتياطيون",null,null,null,null,null,null,null,null,null,"اللجان",null,null,null,"المراقبون"]
["م","الاســــــــــــــــــــم",null,null,null,null,null,null,"التوقيع",null,"من",null,"الى",null,"المراقب",null,null,null,null,null,"التوقيع"]
[1,{"$f":"IF(OR($AA$7=1,$AA$7=3,$AA$7=5,$AA$7=7,$AA$7=9,$AA$7=11,$AA$7=13),SMALL('البيانات الاساسية'!$H$3:$H$316,'البيانات الاساسية'!#REF!),LARGE('البيانات الاساسية'!$H$3:$H$316,'البيانات الاساسية'!#REF!))","v":{"$error":"#REF!"}},{"$f":"IFERROR(VLOOKUP(B81,'البيانات الاساسية'!$E$3:$F$316,2,0),\"\")","v":""},null,{"$f":"IF(OR($AA$7=1,$AA$7=3,$UAA$7=5,$AA$7=7,$AA$7=9,$AA$7=11,$AA$7=13),SMALL('البيانات الاساسية'!$H$3:$H$316,'البيانات الاساسية'!E3),LARGE('البيانات الاساسية'!$H$3:$H$316,'البيانات الاساسية'!E3))","v":1},{"$f":"IFERROR(VLOOKUP(E81,'البيانات الاساسية'!$E$3:$F$316,2,0),\"\")","v":"ملاحظ 1"},null,null,null,null,1,null,5,null,{"$f":"IF(OR($AA$7=1,$AA$7=3,$AA$7=5,$AA$7=7,$AA$7=9,$AA$7=11,$AA$7=13),SMALL('البيانات الاساسية'!$J$3:$K$316,'البيانات الاساسية'!J3),LARGE('البيانات الاساسية'!$J$3:$K$316,'البيانات الاساسية'!J3))","v":1},{"$f":"IF(K81=\"\",\"\",VLOOKUP(O81,'البيانات الاساسية'!$J$3:$K$316,2,0))","v":"مراقب 1"}]
[2,{"$f":"IF(OR($AA$7=1,$AA$7=3,$AA$7=5,$AA$7=7,$AA$7=9,$AA$7=11,$AA$7=13),SMALL('البيانات الاساسية'!$H$3:$H$316,'البيانات الاساسية'!#REF!),LARGE('البيانات الاساسية'!$H$3:$H$316,'البيانات الاساسية'!#REF!))","v":{"$error":"#REF!"}},{"$f":"IFERROR(VLOOKUP(B82,'البيانات الاساسية'!$E$3:$F$316,2,0),\"\")","v":""},null,{"$f":"IF(OR($AA$7=1,$AA$7=3,$UAA$7=5,$AA$7=7,$AA$7=9,$AA$7=11,$AA$7=13),SMALL('البيانات الاساسية'!$H$3:$H$316,'البيانات الاساسية'!E4),LARGE('البيانات الاساسية'!$H$3:$H$316,'البيانات الاساسية'!E4))","v":2},{"$f":"IFERROR(VLOOKUP(E82,'البيانات الاساسية'!$E$3:$F$316,2,0),\"\")","v":"ملاحظ 2"},null,null,null,null,6,null,10,null,{"$f":"IF(OR($AA$7=1,$AA$7=3,$AA$7=5,$AA$7=7,$AA$7=9,$AA$7=11,$AA$7=13),SMALL('البيانات الاساسية'!$J$3:$K$316,'البيانات الاساسية'!J4),LARGE('البيانات الاساسية'!$J$3:$K$316,'البيانات الاساسية'!J4))","v":2},{"$f":"IF(K82=\"\",\"\",VLOOKUP(O82,'البيانات الاساسية'!$J$3:$K$316,2,0))","v":"مراقب 2"}]
[3,{"$f":"IF(OR($AA$7=1,$AA$7=3,$AA$7=5,$AA$7=7,$AA$7=9,$AA$7=11,$AA$7=13),SMALL('البيانات الاساسية'!$H$3:$H$316,'البيانات الاساسية'!#REF!),LARGE('البيانات الاساسية'!$H$3:$H$316,'البيانات الاساسية'!#REF!))","v":{"$error":"#REF!"}},{"$f":"IFERROR(VLOOKUP(B83,'البيانات الاساسية'!$E$3:$F$316,2,0),\"\")","v":""},null,{"$f":"IF(OR($AA$7=1,$AA$7=3,$UAA$7=5,$AA$7=7,$AA$7=9,$AA$7=11,$AA$7=13),SMALL('البيانات الاساسية'!$H$3:$H$316,'البيانات الاساسية'!E5),LARGE('البيانات الاساسية'!$H$3:$H$316,'البيانات الاساسية'!E5))","v":3},{"$f":"IFERROR(VLOOKUP(E83,'البيانات الاساسية'!$E$3:$F$316,2,0),\"\")","v":"ملاحظ 3"},null,null,null,null,null,null,null,null,{"$f":"IF(OR($AA$7=1,$AA$7=3,$AA$7=5,$AA$7=7,$AA$7=9,$AA$7=11,$AA$7=13),SMALL('البيانات الاساسية'!$J$3:$K$316,'البيانات الاساسية'!J5),LARGE('البيانات الاساسية'!$J$3:$K$316,'البيانات الاساسية'!J5))","v":{"$error":"#VALUE!"}},{"$f":"IF(K83=\"\",\"\",VLOOKUP(O83,'البيانات الاساسية'!$J$3:$K$316,2,0))","v":""}]
[4,{"$f":"IF(OR($AA$7=1,$AA$7=3,$AA$7=5,$AA$7=7,$AA$7=9,$AA$7=11,$AA$7=13),SMALL('البيانات الاساسية'!$H$3:$H$316,'البيانات الاساسية'!#REF!),LARGE('البيانات الاساسية'!$H$3:$H$316,'البيانات الاساسية'!#REF!))","v":{"$error":"#REF!"}},{"$f":"IFERROR(VLOOKUP(B84,'البيانات الاساسية'!$E$3:$F$316,2,0),\"\")","v":""},null,{"$f":"IF(OR($AA$7=1,$AA$7=3,$UAA$7=5,$AA$7=7,$AA$7=9,$AA$7=11,$AA$7=13),SMALL('البيانات الاساسية'!$H$3:$H$316,'البيانات الاساسية'!E6),LARGE('البيانات الاساسية'!$H$3:$H$316,'البيانات الاساسية'!E6))","v":4},{"$f":"IFERROR(VLOOKUP(E84,'البيانات الاساسية'!$E$3:$F$316,2,0),\"\")","v":"ملاحظ 4"},null,null,null,null,null,null,null,null,{"$f":"IF(OR($AA$7=1,$AA$7=3,$AA$7=5,$AA$7=7,$AA$7=9,$AA$7=11,$AA$7=13),SMALL('البيانات الاساسية'!$J$3:$K$316,'البيانات الاساسية'!J6),LARGE('البيانات الاساسية'!$J$3:$K$316,'البيانات الاساسية'!J6))","v":{"$error":"#VALUE!"}},{"$f":"IF(K84=\"\",\"\",VLOOKUP(O84,'البيانات الاساسية'!$J$3:$K$316,2,0))","v":""}]
[5,{"$f":"IF(OR($AA$7=1,$AA$7=3,$AA$7=5,$AA$7=7,$AA$7=9,$AA$7=11,$AA$7=13),SMALL('البيانات الاساسية'!$H$3:$H$316,'البيانات الاساسية'!#REF!),LARGE('البيانات الاساسية'!$H$3:$H$316,'البيانات الاساسية'!#REF!))","v":{"$error":"#REF!"}},{"$f":"IFERROR(VLOOKUP(B85,'البيانات الاساسية'!$E$3:$F$316,2,0),\"\")","v":""},null,{"$f":"IF(OR($AA$7=1,$AA$7=3,$UAA$7=5,$AA$7=7,$AA$7=9,$AA$7=11,$AA$7=13),SMALL('البيانات الاساسية'!$H$3:$H$316,'البيانات الاساسية'!E7),LARGE('البيانات الاساسية'!$H$3:$H$316,'البيانات الاساسية'!E7))","v":5},{"$f":"IFERROR(VLOOKUP(E85,'البيانات الاساسية'!$E$3:$F$316,2,0),\"\")","v":"ملاحظ 5"},null,null,null,null,null,null,null,null,{"$f":"IF(OR($AA$7=1,$AA$7=3,$AA$7=5,$AA$7=7,$AA$7=9,$AA$7=11,$AA$7=13),SMALL('البيانات الاساسية'!$J$3:$K$316,'البيانات الاساسية'!J7),LARGE('البيانات الاساسية'!$J$3:$K$316,'البيانات الاساسية'!J7))","v":{"$error":"#VALUE!"}},{"$f":"IF(K85=\"\",\"\",VLOOKUP(O85,'البيانات الاساسية'!$J$3:$K$316,2,0))","v":""}]
[6,{"$f":"IF(OR($AA$7=1,$AA$7=3,$AA$7=5,$AA$7=7,$AA$7=9,$AA$7=11,$AA$7=13),SMALL('البيانات الاساسية'!$H$3:$H$316,'البيانات الاساسية'!#REF!),LARGE('البيانات الاساسية'!$H$3:$H$316,'البيانات الاساسية'!#REF!))","v":{"$error":"#REF!"}},{"$f":"IFERROR(VLOOKUP(B86,'البيانات الاساسية'!$E$3:$F$316,2,0),\"\")","v":""},null,{"$f":"IF(OR($AA$7=1,$AA$7=3,$UAA$7=5,$AA$7=7,$AA$7=9,$AA$7=11,$AA$7=13),SMALL('البيانات الاساسية'!$H$3:$H$316,'البيانات الاساسية'!E8),LARGE('البيانات الاساسية'!$H$3:$H$316,'البيانات الاساسية'!E8))","v":6},{"$f":"IFERROR(VLOOKUP(E86,'البيانات الاساسية'!$E$3:$F$316,2,0),\"\")","v":"ملاحظ 6"},null,null,null,null,null,null,null,null,{"$f":"IF(OR($AA$7=1,$AA$7=3,$AA$7=5,$AA$7=7,$AA$7=9,$AA$7=11,$AA$7=13),SMALL('البيانات الاساسية'!$J$3:$K$316,'البيانات الاساسية'!J8),LARGE('البيانات الاساسية'!$J$3:$K$316,'البيانات الاساسية'!J8))","v":{"$error":"#VALUE!"}},{"$f":"IF(K86=\"\",\"\",VLOOKUP(O86,'البيانات الاساسية'!$J$3:$K$316,2,0))","v":""}]
[7,{"$f":"IF(OR($AA$7=1,$AA$7=3,$AA$7=5,$AA$7=7,$AA$7=9,$AA$7=11,$AA$7=13),SMALL('البيانات الاساسية'!$H$3:$H$316,'البيانات الاساسية'!#REF!),LARGE('البيانات الاساسية'!$H$3:$H$316,'البيانات الاساسية'!#REF!))","v":{"$error":"#REF!"}},{"$f":"IFERROR(VLOOKUP(B87,'البيانات الاساسية'!$E$3:$F$316,2,0),\"\")","v":""},null,{"$f":"IF(OR($AA$7=1,$AA$7=3,$UAA$7=5,$AA$7=7,$AA$7=9,$AA$7=11,$AA$7=13),SMALL('البيانات الاساسية'!$H$3:$H$316,'البيانات الاساسية'!E9),LARGE('البيانات الاساسية'!$H$3:$H$316,'البيانات الاساسية'!E9))","v":7},{"$f":"IFERROR(VLOOKUP(E87,'البيانات الاساسية'!$E$3:$F$316,2,0),\"\")","v":"ملاحظ 7"},null,null,null,null,null,null,null,null,{"$f":"IF(OR($AA$7=1,$AA$7=3,$AA$7=5,$AA$7=7,$AA$7=9,$AA$7=11,$AA$7=13),SMALL('البيانات الاساسية'!$J$3:$K$316,'البيانات الاساسية'!J9),LARGE('البيانات الاساسية'!$J$3:$K$316,'البيانات الاساسية'!J9))","v":{"$error":"#VALUE!"}},{"$f":"IF(K87=\"\",\"\",VLOOKUP(O87,'البيانات الاساسية'!$J$3:$K$316,2,0))","v":""}]
[8,{"$f":"IF(OR($AA$7=1,$AA$7=3,$AA$7=5,$AA$7=7,$AA$7=9,$AA$7=11,$AA$7=13),SMALL('البيانات الاساسية'!$H$3:$H$316,'البيانات الاساسية'!#REF!),LARGE('البيانات الاساسية'!$H$3:$H$316,'البيانات الاساسية'!#REF!))","v":{"$error":"#REF!"}},{"$f":"IFERROR(VLOOKUP(B88,'البيانات الاساسية'!$E$3:$F$316,2,0),\"\")","v":""},null,{"$f":"IF(OR($AA$7=1,$AA$7=3,$UAA$7=5,$AA$7=7,$AA$7=9,$AA$7=11,$AA$7=13),SMALL('البيانات الاساسية'!$H$3:$H$316,'البيانات الاساسية'!E10),LARGE('البيانات الاساسية'!$H$3:$H$316,'البيانات الاساسية'!E10))","v":8},{"$f":"IFERROR(VLOOKUP(E88,'البيانات الاساسية'!$E$3:$F$316,2,0),\"\")","v":"ملاحظ 8"},null,null,null,null,null,null,null,null,{"$f":"IF(OR($AA$7=1,$AA$7=3,$AA$7=5,$AA$7=7,$AA$7=9,$AA$7=11,$AA$7=13),SMALL('البيانات الاساسية'!$J$3:$K$316,'البيانات الاساسية'!J10),LARGE('البيانات الاساسية'!$J$3:$K$316,'البيانات الاساسية'!J10))","v":{"$error":"#VALUE!"}},{"$f":"IF(K88=\"\",\"\",VLOOKUP(O88,'البيانات الاساسية'!$J$3:$K$316,2,0))","v":""}]
[9,{"$f":"IF(OR($AA$7=1,$AA$7=3,$AA$7=5,$AA$7=7,$AA$7=9,$AA$7=11,$AA$7=13),SMALL('البيانات الاساسية'!$H$3:$H$316,'البيانات الاساسية'!#REF!),LARGE('البيانات الاساسية'!$H$3:$H$316,'البيانات الاساسية'!#REF!))","v":{"$error":"#REF!"}},{"$f":"IFERROR(VLOOKUP(B89,'البيانات الاساسية'!$E$3:$F$316,2,0),\"\")","v":""},null,{"$f":"IF(OR($AA$7=1,$AA$7=3,$UAA$7=5,$AA$7=7,$AA$7=9,$AA$7=11,$AA$7=13),SMALL('البيانات الاساسية'!$H$3:$H$316,'البيانات الاساسية'!E11),LARGE('البيانات الاساسية'!$H$3:$H$316,'البيانات الاساسية'!E11))","v":9},{"$f":"IFERROR(VLOOKUP(E89,'البيانات الاساسية'!$E$3:$F$316,2,0),\"\")","v":"ملاحظ 9"},null,null,null,null,null,null,null,null,{"$f":"IF(OR($AA$7=1,$AA$7=3,$AA$7=5,$AA$7=7,$AA$7=9,$AA$7=11,$AA$7=13),SMALL('البيانات الاساسية'!$J$3:$K$316,'البيانات الاساسية'!J11),LARGE('البيانات الاساسية'!$J$3:$K$316,'البيانات الاساسية'!J11))","v":{"$error":"#VALUE!"}},{"$f":"IF(K89=\"\",\"\",VLOOKUP(O89,'البيانات الاساسية'!$J$3:$K$316,2,0))","v":""}]
[10,{"$f":"IF(OR($AA$7=1,$AA$7=3,$AA$7=5,$AA$7=7,$AA$7=9,$AA$7=11,$AA$7=13),SMALL('البيانات الاساسية'!$H$3:$H$316,'البيانات الاساسية'!#REF!),LARGE('البيانات الاساسية'!$H$3:$H$316,'البيانات الاساسية'!#REF!))","v":{"$error":"#REF!"}},{"$f":"IFERROR(VLOOKUP(B90,'البيانات الاساسية'!$E$3:$F$316,2,0),\"\")","v":""},null,{"$f":"IF(OR($AA$7=1,$AA$7=3,$UAA$7=5,$AA$7=7,$AA$7=9,$AA$7=11,$AA$7=13),SMALL('البيانات الاساسية'!$H$3:$H$316,'البيانات الاساسية'!E12),LARGE('البيانات الاساسية'!$H$3:$H$316,'البيانات الاساسية'!E12))","v":10},{"$f":"IFERROR(VLOOKUP(E90,'البيانات الاساسية'!$E$3:$F$316,2,0),\"\")","v":"ملاحظ 10"},null,null,null,null,null,null,null,null,{"$f":"IF(OR($AA$7=1,$AA$7=3,$AA$7=5,$AA$7=7,$AA$7=9,$AA$7=11,$AA$7=13),SMALL('البيانات الاساسية'!$J$3:$K$316,'البيانات الاساسية'!J12),LARGE('البيانات الاساسية'!$J$3:$K$316,'البيانات الاساسية'!J12))","v":{"$error":"#VALUE!"}},{"$f":"IF(K90=\"\",\"\",VLOOKUP(O90,'البيانات الاساسية'!$J$3:$K$316,2,0))","v":""}]
[11,{"$f":"IF(OR($AA$7=1,$AA$7=3,$AA$7=5,$AA$7=7,$AA$7=9,$AA$7=11,$AA$7=13),SMALL('البيانات الاساسية'!$H$3:$H$316,'البيانات الاساسية'!#REF!),LARGE('البيانات الاساسية'!$H$3:$H$316,'البيانات الاساسية'!#REF!))","v":{"$error":"#REF!"}},{"$f":"IFERROR(VLOOKUP(B91,'البيانات الاساسية'!$E$3:$F$316,2,0),\"\")","v":""},null,{"$f":"IF(OR($AA$7=1,$AA$7=3,$UAA$7=5,$AA$7=7,$AA$7=9,$AA$7=11,$AA$7=13),SMALL('البيانات الاساسية'!$H$3:$H$316,'البيانات الاساسية'!E13),LARGE('البيانات الاساسية'!$H$3:$H$316,'البيانات الاساسية'!E13))","v":{"$error":"#VALUE!"}},{"$f":"IFERROR(VLOOKUP(E91,'البيانات الاساسية'!$E$3:$F$316,2,0),\"\")","v":""},null,null,null,null,null,null,null,null,{"$f":"IF(OR($AA$7=1,$AA$7=3,$AA$7=5,$AA$7=7,$AA$7=9,$AA$7=11,$AA$7=13),SMALL('البيانات الاساسية'!$J$3:$K$316,'البيانات الاساسية'!J13),LARGE('البيانات الاساسية'!$J$3:$K$316,'البيانات الاساسية'!J13))","v":{"$error":"#VALUE!"}},{"$f":"IF(K91=\"\",\"\",VLOOKUP(O91,'البيانات الاساسية'!$J$3:$K$316,2,0))","v":""}]
[12,{"$f":"IF(OR($AA$7=1,$AA$7=3,$AA$7=5,$AA$7=7,$AA$7=9,$AA$7=11,$AA$7=13),SMALL('البيانات الاساسية'!$H$3:$H$316,'البيانات الاساسية'!#REF!),LARGE('البيانات الاساسية'!$H$3:$H$316,'البيانات الاساسية'!#REF!))","v":{"$error":"#REF!"}},{"$f":"IFERROR(VLOOKUP(B92,'البيانات الاساسية'!$E$3:$F$316,2,0),\"\")","v":""},null,{"$f":"IF(OR($AA$7=1,$AA$7=3,$UAA$7=5,$AA$7=7,$AA$7=9,$AA$7=11,$AA$7=13),SMALL('البيانات الاساسية'!$H$3:$H$316,'البيانات الاساسية'!E14),LARGE('البيانات الاساسية'!$H$3:$H$316,'البيانات الاساسية'!E14))","v":{"$error":"#VALUE!"}},{"$f":"IFERROR(VLOOKUP(E92,'البيانات الاساسية'!$E$3:$F$316,2,0),\"\")","v":""},null,null,null,null,null,null,null,null,{"$f":"IF(OR($AA$7=1,$AA$7=3,$AA$7=5,$AA$7=7,$AA$7=9,$AA$7=11,$AA$7=13),SMALL('البيانات الاساسية'!$J$3:$K$316,'البيانات الاساسية'!J14),LARGE('البيانات الاساسية'!$J$3:$K$316,'البيانات الاساسية'!J14))","v":{"$error":"#VALUE!"}},{"$f":"IF(K92=\"\",\"\",VLOOKUP(O92,'البيانات الاساسية'!$J$3:$K$316,2,0))","v":""}]
[13,{"$f":"IF(OR($AA$7=1,$AA$7=3,$AA$7=5,$AA$7=7,$AA$7=9,$AA$7=11,$AA$7=13),SMALL('البيانات الاساسية'!$H$3:$H$316,'البيانات الاساسية'!#REF!),LARGE('البيانات الاساسية'!$H$3:$H$316,'البيانات الاساسية'!#REF!))","v":{"$error":"#REF!"}},{"$f":"IFERROR(VLOOKUP(B93,'البيانات الاساسية'!$E$3:$F$316,2,0),\"\")","v":""},null,{"$f":"IF(OR($AA$7=1,$AA$7=3,$UAA$7=5,$AA$7=7,$AA$7=9,$AA$7=11,$AA$7=13),SMALL('البيانات الاساسية'!$H$3:$H$316,'البيانات الاساسية'!E15),LARGE('البيانات الاساسية'!$H$3:$H$316,'البيانات الاساسية'!E15))","v":{"$error":"#VALUE!"}},{"$f":"IFERROR(VLOOKUP(E93,'البيانات الاساسية'!$E$3:$F$316,2,0),\"\")","v":""},null,null,null,null,null,null,null,null,{"$f":"IF(OR($AA$7=1,$AA$7=3,$AA$7=5,$AA$7=7,$AA$7=9,$AA$7=11,$AA$7=13),SMALL('البيانات الاساسية'!$J$3:$K$316,'البيانات الاساسية'!J15),LARGE('البيانات الاساسية'!$J$3:$K$316,'البيانات الاساسية'!J15))","v":{"$error":"#VALUE!"}},{"$f":"IF(K93=\"\",\"\",VLOOKUP(O93,'البيانات الاساسية'!$J$3:$K$316,2,0))","v":""}]
[14,{"$f":"IF(OR($AA$7=1,$AA$7=3,$AA$7=5,$AA$7=7,$AA$7=9,$AA$7=11,$AA$7=13),SMALL('البيانات الاساسية'!$H$3:$H$316,'البيانات الاساسية'!#REF!),LARGE('البيانات الاساسية'!$H$3:$H$316,'البيانات الاساسية'!#REF!))","v":{"$error":"#REF!"}},{"$f":"IFERROR(VLOOKUP(B94,'البيانات الاساسية'!$E$3:$F$316,2,0),\"\")","v":""},null,{"$f":"IF(OR($U$7=1,$U$7=3,$U$7=5,$U$7=7,$U$7=9,$U$7=11,$U$7=13),SMALL('البيانات الاساسية'!$H$3:$H$316,'البيانات الاساسية'!E16),LARGE('البيانات الاساسية'!$H$3:$H$316,'البيانات الاساسية'!E16))","v":{"$error":"#VALUE!"}},{"$f":"IFERROR(VLOOKUP(E94,'البيانات الاساسية'!$E$3:$F$316,2,0),\"\")","v":""}]
[15,{"$f":"IF(OR($AA$7=1,$AA$7=3,$AA$7=5,$AA$7=7,$AA$7=9,$AA$7=11,$AA$7=13),SMALL('البيانات الاساسية'!$H$3:$H$316,'البيانات الاساسية'!#REF!),LARGE('البيانات الاساسية'!$H$3:$H$316,'البيانات الاساسية'!#REF!))","v":{"$error":"#REF!"}},{"$f":"IFERROR(VLOOKUP(B95,'البيانات الاساسية'!$E$3:$F$316,2,0),\"\")","v":""},null,{"$f":"IF(OR($U$7=1,$U$7=3,$U$7=5,$U$7=7,$U$7=9,$U$7=11,$U$7=13),SMALL('البيانات الاساسية'!$H$3:$H$316,'البيانات الاساسية'!E17),LARGE('البيانات الاساسية'!$H$3:$H$316,'البيانات الاساسية'!E17))","v":{"$error":"#VALUE!"}},{"$f":"IFERROR(VLOOKUP(E95,'البيانات الاساسية'!$E$3:$F$316,2,0),\"\")","v":""},null,null,null,null,"المراقب الأول",null,"المراقب الأول"]
[16,{"$f":"IF(OR($AA$7=1,$AA$7=3,$AA$7=5,$AA$7=7,$AA$7=9,$AA$7=11,$AA$7=13),SMALL('البيانات الاساسية'!$H$3:$H$316,'البيانات الاساسية'!#REF!),LARGE('البيانات الاساسية'!$H$3:$H$316,'البيانات الاساسية'!#REF!))","v":{"$error":"#REF!"}},{"$f":"IFERROR(VLOOKUP(B96,'البيانات الاساسية'!$E$3:$F$316,2,0),\"\")","v":""},null,{"$f":"IF(OR($U$7=1,$U$7=3,$U$7=5,$U$7=7,$U$7=9,$U$7=11,$U$7=13),SMALL('البيانات الاساسية'!$H$3:$H$316,'البيانات الاساسية'!E18),LARGE('البيانات الاساسية'!$H$3:$H$316,'البيانات الاساسية'!E18))","v":{"$error":"#VALUE!"}},{"$f":"IFERROR(VLOOKUP(E96,'البيانات الاساسية'!$E$3:$F$316,2,0),\"\")","v":""},null,null,null,null,null,null,{"$f":"'البيانات الاساسية'!C7","v":"أ/ محمود"}]
[17,{"$f":"IF(OR($AA$7=1,$AA$7=3,$AA$7=5,$AA$7=7,$AA$7=9,$AA$7=11,$AA$7=13),SMALL('البيانات الاساسية'!$H$3:$H$316,'البيانات الاساسية'!#REF!),LARGE('البيانات الاساسية'!$H$3:$H$316,'البيانات الاساسية'!#REF!))","v":{"$error":"#REF!"}},{"$f":"IFERROR(VLOOKUP(B97,'البيانات الاساسية'!$E$3:$F$316,2,0),\"\")","v":""},null,{"$f":"IF(OR($U$7=1,$U$7=3,$U$7=5,$U$7=7,$U$7=9,$U$7=11,$U$7=13),SMALL('البيانات الاساسية'!$H$3:$H$316,'البيانات الاساسية'!E19),LARGE('البيانات الاساسية'!$H$3:$H$316,'البيانات الاساسية'!E19))","v":{"$error":"#VALUE!"}},{"$f":"IFERROR(VLOOKUP(E97,'البيانات الاساسية'!$E$3:$F$316,2,0),\"\")","v":""}]
[18,{"$f":"IF(OR($AA$7=1,$AA$7=3,$AA$7=5,$AA$7=7,$AA$7=9,$AA$7=11,$AA$7=13),SMALL('البيانات الاساسية'!$H$3:$H$316,'البيانات الاساسية'!#REF!),LARGE('البيانات الاساسية'!$H$3:$H$316,'البيانات الاساسية'!#REF!))","v":{"$error":"#REF!"}},{"$f":"IFERROR(VLOOKUP(B98,'البيانات الاساسية'!$E$3:$F$316,2,0),\"\")","v":""},null,{"$f":"IF(OR($U$7=1,$U$7=3,$U$7=5,$U$7=7,$U$7=9,$U$7=11,$U$7=13),SMALL('البيانات الاساسية'!$H$3:$H$316,'البيانات الاساسية'!E20),LARGE('البيانات الاساسية'!$H$3:$H$316,'البيانات الاساسية'!E20))","v":{"$error":"#VALUE!"}},{"$f":"IFERROR(VLOOKUP(E98,'البيانات الاساسية'!$E$3:$F$316,2,0),\"\")","v":""}]
[19,{"$f":"IF(OR($AA$7=1,$AA$7=3,$AA$7=5,$AA$7=7,$AA$7=9,$AA$7=11,$AA$7=13),SMALL('البيانات الاساسية'!$H$3:$H$316,'البيانات الاساسية'!#REF!),LARGE('البيانات الاساسية'!$H$3:$H$316,'البيانات الاساسية'!#REF!))","v":{"$error":"#REF!"}},{"$f":"IFERROR(VLOOKUP(B99,'البيانات الاساسية'!$E$3:$F$316,2,0),\"\")","v":""},null,{"$f":"IF(OR($U$7=1,$U$7=3,$U$7=5,$U$7=7,$U$7=9,$U$7=11,$U$7=13),SMALL('البيانات الاساسية'!$H$3:$H$316,'البيانات الاساسية'!E21),LARGE('البيانات الاساسية'!$H$3:$H$316,'البيانات الاساسية'!E21))","v":{"$error":"#VALUE!"}},{"$f":"IFERROR(VLOOKUP(E99,'البيانات الاساسية'!$E$3:$F$316,2,0),\"\")","v":""}]
[20,{"$f":"IF(OR($AA$7=1,$AA$7=3,$AA$7=5,$AA$7=7,$AA$7=9,$AA$7=11,$AA$7=13),SMALL('البيانات الاساسية'!$H$3:$H$316,'البيانات الاساسية'!#REF!),LARGE('البيانات الاساسية'!$H$3:$H$316,'البيانات الاساسية'!#REF!))","v":{"$error":"#REF!"}},{"$f":"IFERROR(VLOOKUP(B100,'البيانات الاساسية'!$E$3:$F$316,2,0),\"\")","v":""},null,{"$f":"IF(OR($U$7=1,$U$7=3,$U$7=5,$U$7=7,$U$7=9,$U$7=11,$U$7=13),SMALL('البيانات الاساسية'!$H$3:$H$316,'البيانات الاساسية'!E22),LARGE('البيانات الاساسية'!$H$3:$H$316,'البيانات الاساسية'!E22))","v":{"$error":"#VALUE!"}},{"$f":"IFERROR(VLOOKUP(E100,'البيانات الاساسية'!$E$3:$F$316,2,0),\"\")","v":""},null,null,null,null,null,null,"رئيس اللجنة"]
[21,{"$f":"IF(OR($AA$7=1,$AA$7=3,$AA$7=5,$AA$7=7,$AA$7=9,$AA$7=11,$AA$7=13),SMALL('البيانات الاساسية'!$H$3:$H$316,'البيانات الاساسية'!#REF!),LARGE('البيانات الاساسية'!$H$3:$H$316,'البيانات الاساسية'!#REF!))","v":{"$error":"#REF!"}},{"$f":"IFERROR(VLOOKUP(B101,'البيانات الاساسية'!$E$3:$F$316,2,0),\"\")","v":""},null,{"$f":"IF(OR($U$7=1,$U$7=3,$U$7=5,$U$7=7,$U$7=9,$U$7=11,$U$7=13),SMALL('البيانات الاساسية'!$H$3:$H$316,'البيانات الاساسية'!E23),LARGE('البيانات الاساسية'!$H$3:$H$316,'البيانات الاساسية'!E23))","v":{"$error":"#VALUE!"}},{"$f":"IFERROR(VLOOKUP(E101,'البيانات الاساسية'!$E$3:$F$316,2,0),\"\")","v":""},null,null,null,null,null,null,{"$f":"'البيانات الاساسية'!C6","v":"أ/ محمود"}]
[22,{"$f":"IF(OR($AA$7=1,$AA$7=3,$AA$7=5,$AA$7=7,$AA$7=9,$AA$7=11,$AA$7=13),SMALL('البيانات الاساسية'!$H$3:$H$316,'البيانات الاساسية'!#REF!),LARGE('البيانات الاساسية'!$H$3:$H$316,'البيانات الاساسية'!#REF!))","v":{"$error":"#REF!"}},{"$f":"IFERROR(VLOOKUP(B102,'البيانات الاساسية'!$E$3:$F$316,2,0),\"\")","v":""},null,{"$f":"IF(OR($U$7=1,$U$7=3,$U$7=5,$U$7=7,$U$7=9,$U$7=11,$U$7=13),SMALL('البيانات الاساسية'!$H$3:$H$316,'البيانات الاساسية'!E24),LARGE('البيانات الاساسية'!$H$3:$H$316,'البيانات الاساسية'!E24))","v":{"$error":"#VALUE!"}},{"$f":"IFERROR(VLOOKUP(E102,'البيانات الاساسية'!$E$3:$F$316,2,0),\"\")","v":""}]
[23,{"$f":"IF(OR($AA$7=1,$AA$7=3,$AA$7=5,$AA$7=7,$AA$7=9,$AA$7=11,$AA$7=13),SMALL('البيانات الاساسية'!$H$3:$H$316,'البيانات الاساسية'!#REF!),LARGE('البيانات الاساسية'!$H$3:$H$316,'البيانات الاساسية'!#REF!))","v":{"$error":"#REF!"}},{"$f":"IFERROR(VLOOKUP(B103,'البيانات الاساسية'!$E$3:$F$316,2,0),\"\")","v":""},null,{"$f":"IF(OR($U$7=1,$U$7=3,$U$7=5,$U$7=7,$U$7=9,$U$7=11,$U$7=13),SMALL('البيانات الاساسية'!$H$3:$H$316,'البيانات الاساسية'!E25),LARGE('البيانات الاساسية'!$H$3:$H$316,'البيانات الاساسية'!E25))","v":{"$error":"#VALUE!"}},{"$f":"IFERROR(VLOOKUP(E103,'البيانات الاساسية'!$E$3:$F$316,2,0),\"\")","v":""}]
[24,{"$f":"IF(OR($AA$7=1,$AA$7=3,$AA$7=5,$AA$7=7,$AA$7=9,$AA$7=11,$AA$7=13),SMALL('البيانات الاساسية'!$H$3:$H$316,'البيانات الاساسية'!#REF!),LARGE('البيانات الاساسية'!$H$3:$H$316,'البيانات الاساسية'!#REF!))","v":{"$error":"#REF!"}},{"$f":"IFERROR(VLOOKUP(B104,'البيانات الاساسية'!$E$3:$F$316,2,0),\"\")","v":""},null,{"$f":"IF(OR($U$7=1,$U$7=3,$U$7=5,$U$7=7,$U$7=9,$U$7=11,$U$7=13),SMALL('البيانات الاساسية'!$H$3:$H$316,'البيانات الاساسية'!E26),LARGE('البيانات الاساسية'!$H$3:$H$316,'البيانات الاساسية'!E26))","v":{"$error":"#VALUE!"}},{"$f":"IFERROR(VLOOKUP(E104,'البيانات الاساسية'!$E$3:$F$316,2,0),\"\")","v":""}]
[25,{"$f":"IF(OR($AA$7=1,$AA$7=3,$AA$7=5,$AA$7=7,$AA$7=9,$AA$7=11,$AA$7=13),SMALL('البيانات الاساسية'!$H$3:$H$316,'البيانات الاساسية'!#REF!),LARGE('البيانات الاساسية'!$H$3:$H$316,'البيانات الاساسية'!#REF!))","v":{"$error":"#REF!"}},{"$f":"IFERROR(VLOOKUP(B105,'البيانات الاساسية'!$E$3:$F$316,2,0),\"\")","v":""},null,{"$f":"IF(OR($U$7=1,$U$7=3,$U$7=5,$U$7=7,$U$7=9,$U$7=11,$U$7=13),SMALL('البيانات الاساسية'!$H$3:$H$316,'البيانات الاساسية'!E27),LARGE('البيانات الاساسية'!$H$3:$H$316,'البيانات الاساسية'!E27))","v":{"$error":"#VALUE!"}},{"$f":"IFERROR(VLOOKUP(E105,'البيانات الاساسية'!$E$3:$F$316,2,0),\"\")","v":""}]